Organisation Name,Organisation Code,Unique Ref No,Effective Date,Directorate where expenditure incurred,Supplier Name ,Payment Date,Net amount,Purpose of Spend,Procurement Classification (Higher Level),Procurement Classification (Lower Level),Capital / Revenue
Walsall Council,http://opendatacommunities.org/id/metropolitan-district-council/walsall,WC122-1,31.01.2021,RESOURCES AND TRANSFORMATION,11KBW,20/01/2021,"-5,675.00",6610-External Legal Fees,SUPPLIES & SERVICES,SERVICES,REVENUE
Walsall Council,http://opendatacommunities.org/id/metropolitan-district-council/walsall,WC122-2,31.01.2021,RESOURCES AND TRANSFORMATION,11KBW,20/01/2021,"5,675.00",6610-External Legal Fees,SUPPLIES & SERVICES,SERVICES,REVENUE
Walsall Council,http://opendatacommunities.org/id/metropolitan-district-council/walsall,WC122-3,31.01.2021,CHILDRENS,247 CARS (WILLENHALL) LIMITED,28/01/2021,950.00,6241-Hire of Vehicle with Driver,TRANSPORT,DIRECT TRANSPORT COSTS,REVENUE
Walsall Council,http://opendatacommunities.org/id/metropolitan-district-council/walsall,WC122-4,31.01.2021,CHILDRENS,247 CARS (WILLENHALL) LIMITED,28/01/2021,657.72,6241-Hire of Vehicle with Driver,TRANSPORT,DIRECT TRANSPORT COSTS,REVENUE
Walsall Council,http://opendatacommunities.org/id/metropolitan-district-council/walsall,WC122-5,31.01.2021,RESOURCES AND TRANSFORMATION,2BM LIMITED,19/01/2021,259.00,6623-Computer Equipment,SUPPLIES & SERVICES,COMMUNICATIONS & COMPUTING,REVENUE
Walsall Council,http://opendatacommunities.org/id/metropolitan-district-council/walsall,WC122-6,31.01.2021,ADULT SOCIAL CARE,5 CARE SERVICES LTD,04/01/2021,-711.89,6541-Domiciliary Care,THIRD PARTY PAYMENTS,PRIVATE CONTRACTOR,REVENUE
Walsall Council,http://opendatacommunities.org/id/metropolitan-district-council/walsall,WC122-7,31.01.2021,ADULT SOCIAL CARE,5 CARE SERVICES LTD,04/01/2021,370.08,6541-Domiciliary Care,THIRD PARTY PAYMENTS,PRIVATE CONTRACTOR,REVENUE
Walsall Council,http://opendatacommunities.org/id/metropolitan-district-council/walsall,WC122-8,31.01.2021,ADULT SOCIAL CARE,5 CARE SERVICES LTD,04/01/2021,308.40,6541-Domiciliary Care,THIRD PARTY PAYMENTS,PRIVATE CONTRACTOR,REVENUE
Walsall Council,http://opendatacommunities.org/id/metropolitan-district-council/walsall,WC122-9,31.01.2021,ADULT SOCIAL CARE,5 CARE SERVICES LTD,04/01/2021,431.76,6541-Domiciliary Care,THIRD PARTY PAYMENTS,PRIVATE CONTRACTOR,REVENUE
Walsall Council,http://opendatacommunities.org/id/metropolitan-district-council/walsall,WC122-10,31.01.2021,ADULT SOCIAL CARE,5 CARE SERVICES LTD,04/01/2021,321.28,6541-Domiciliary Care,THIRD PARTY PAYMENTS,PRIVATE CONTRACTOR,REVENUE
Walsall Council,http://opendatacommunities.org/id/metropolitan-district-council/walsall,WC122-11,31.01.2021,ADULT SOCIAL CARE,5 CARE SERVICES LTD,04/01/2021,393.21,6541-Domiciliary Care,THIRD PARTY PAYMENTS,PRIVATE CONTRACTOR,REVENUE
Walsall Council,http://opendatacommunities.org/id/metropolitan-district-council/walsall,WC122-12,31.01.2021,ADULT SOCIAL CARE,5 CARE SERVICES LTD,04/01/2021,485.80,6541-Domiciliary Care,THIRD PARTY PAYMENTS,PRIVATE CONTRACTOR,REVENUE
Walsall Council,http://opendatacommunities.org/id/metropolitan-district-council/walsall,WC122-13,31.01.2021,ADULT SOCIAL CARE,5 CARE SERVICES LTD,04/01/2021,377.79,6541-Domiciliary Care,THIRD PARTY PAYMENTS,PRIVATE CONTRACTOR,REVENUE
Walsall Council,http://opendatacommunities.org/id/metropolitan-district-council/walsall,WC122-14,31.01.2021,ADULT SOCIAL CARE,5 CARE SERVICES LTD,04/01/2021,647.64,6541-Domiciliary Care,THIRD PARTY PAYMENTS,PRIVATE CONTRACTOR,REVENUE
Walsall Council,http://opendatacommunities.org/id/metropolitan-district-council/walsall,WC122-15,31.01.2021,ADULT SOCIAL CARE,5 CARE SERVICES LTD,04/01/2021,323.82,6541-Domiciliary Care,THIRD PARTY PAYMENTS,PRIVATE CONTRACTOR,REVENUE
Walsall Council,http://opendatacommunities.org/id/metropolitan-district-council/walsall,WC122-16,31.01.2021,ADULT SOCIAL CARE,5 CARE SERVICES LTD,04/01/2021,755.58,6541-Domiciliary Care,THIRD PARTY PAYMENTS,PRIVATE CONTRACTOR,REVENUE
Walsall Council,http://opendatacommunities.org/id/metropolitan-district-council/walsall,WC122-17,31.01.2021,ADULT SOCIAL CARE,5 CARE SERVICES LTD,04/01/2021,593.67,6541-Domiciliary Care,THIRD PARTY PAYMENTS,PRIVATE CONTRACTOR,REVENUE
Walsall Council,http://opendatacommunities.org/id/metropolitan-district-council/walsall,WC122-18,31.01.2021,ADULT SOCIAL CARE,5 CARE SERVICES LTD,04/01/2021,341.81,6541-Domiciliary Care,THIRD PARTY PAYMENTS,PRIVATE CONTRACTOR,REVENUE
Walsall Council,http://opendatacommunities.org/id/metropolitan-district-council/walsall,WC122-19,31.01.2021,ADULT SOCIAL CARE,5 CARE SERVICES LTD,04/01/2021,251.93,6541-Domiciliary Care,THIRD PARTY PAYMENTS,PRIVATE CONTRACTOR,REVENUE
Walsall Council,http://opendatacommunities.org/id/metropolitan-district-council/walsall,WC122-20,31.01.2021,ADULT SOCIAL CARE,5 CARE SERVICES LTD,04/01/2021,269.85,6541-Domiciliary Care,THIRD PARTY PAYMENTS,PRIVATE CONTRACTOR,REVENUE
Walsall Council,http://opendatacommunities.org/id/metropolitan-district-council/walsall,WC122-21,31.01.2021,ADULT SOCIAL CARE,5 CARE SERVICES LTD,04/01/2021,539.70,6541-Domiciliary Care,THIRD PARTY PAYMENTS,PRIVATE CONTRACTOR,REVENUE
Walsall Council,http://opendatacommunities.org/id/metropolitan-district-council/walsall,WC122-22,31.01.2021,ADULT SOCIAL CARE,5 CARE SERVICES LTD,04/01/2021,485.73,6541-Domiciliary Care,THIRD PARTY PAYMENTS,PRIVATE CONTRACTOR,REVENUE
Walsall Council,http://opendatacommunities.org/id/metropolitan-district-council/walsall,WC122-23,31.01.2021,ADULT SOCIAL CARE,5 CARE SERVICES LTD,04/01/2021,377.79,6541-Domiciliary Care,THIRD PARTY PAYMENTS,PRIVATE CONTRACTOR,REVENUE
Walsall Council,http://opendatacommunities.org/id/metropolitan-district-council/walsall,WC122-24,31.01.2021,ADULT SOCIAL CARE,5 CARE SERVICES LTD,04/01/2021,308.40,6541-Domiciliary Care,THIRD PARTY PAYMENTS,PRIVATE CONTRACTOR,REVENUE
Walsall Council,http://opendatacommunities.org/id/metropolitan-district-council/walsall,WC122-25,31.01.2021,ADULT SOCIAL CARE,5 CARE SERVICES LTD,04/01/2021,349.52,6541-Domiciliary Care,THIRD PARTY PAYMENTS,PRIVATE CONTRACTOR,REVENUE
Walsall Council,http://opendatacommunities.org/id/metropolitan-district-council/walsall,WC122-26,31.01.2021,ADULT SOCIAL CARE,5 CARE SERVICES LTD,04/01/2021,323.82,6541-Domiciliary Care,THIRD PARTY PAYMENTS,PRIVATE CONTRACTOR,REVENUE
Walsall Council,http://opendatacommunities.org/id/metropolitan-district-council/walsall,WC122-27,31.01.2021,ADULT SOCIAL CARE,5 CARE SERVICES LTD,04/01/2021,485.80,6541-Domiciliary Care,THIRD PARTY PAYMENTS,PRIVATE CONTRACTOR,REVENUE
Walsall Council,http://opendatacommunities.org/id/metropolitan-district-council/walsall,WC122-28,31.01.2021,ADULT SOCIAL CARE,5 CARE SERVICES LTD,04/01/2021,370.08,6541-Domiciliary Care,THIRD PARTY PAYMENTS,PRIVATE CONTRACTOR,REVENUE
Walsall Council,http://opendatacommunities.org/id/metropolitan-district-council/walsall,WC122-29,31.01.2021,ADULT SOCIAL CARE,5 CARE SERVICES LTD,04/01/2021,377.79,6541-Domiciliary Care,THIRD PARTY PAYMENTS,PRIVATE CONTRACTOR,REVENUE
Walsall Council,http://opendatacommunities.org/id/metropolitan-district-council/walsall,WC122-30,31.01.2021,ADULT SOCIAL CARE,5 CARE SERVICES LTD,04/01/2021,377.79,6541-Domiciliary Care,THIRD PARTY PAYMENTS,PRIVATE CONTRACTOR,REVENUE
Walsall Council,http://opendatacommunities.org/id/metropolitan-district-council/walsall,WC122-31,31.01.2021,ADULT SOCIAL CARE,5 CARE SERVICES LTD,04/01/2021,251.93,6541-Domiciliary Care,THIRD PARTY PAYMENTS,PRIVATE CONTRACTOR,REVENUE
Walsall Council,http://opendatacommunities.org/id/metropolitan-district-council/walsall,WC122-32,31.01.2021,ADULT SOCIAL CARE,5 CARE SERVICES LTD,04/01/2021,341.81,6541-Domiciliary Care,THIRD PARTY PAYMENTS,PRIVATE CONTRACTOR,REVENUE
Walsall Council,http://opendatacommunities.org/id/metropolitan-district-council/walsall,WC122-33,31.01.2021,ADULT SOCIAL CARE,5 CARE SERVICES LTD,04/01/2021,308.40,6541-Domiciliary Care,THIRD PARTY PAYMENTS,PRIVATE CONTRACTOR,REVENUE
Walsall Council,http://opendatacommunities.org/id/metropolitan-district-council/walsall,WC122-34,31.01.2021,ADULT SOCIAL CARE,5 CARE SERVICES LTD,04/01/2021,269.85,6541-Domiciliary Care,THIRD PARTY PAYMENTS,PRIVATE CONTRACTOR,REVENUE
Walsall Council,http://opendatacommunities.org/id/metropolitan-district-council/walsall,WC122-35,31.01.2021,ADULT SOCIAL CARE,5 CARE SERVICES LTD,04/01/2021,539.70,6541-Domiciliary Care,THIRD PARTY PAYMENTS,PRIVATE CONTRACTOR,REVENUE
Walsall Council,http://opendatacommunities.org/id/metropolitan-district-council/walsall,WC122-36,31.01.2021,ADULT SOCIAL CARE,5 CARE SERVICES LTD,04/01/2021,485.73,6541-Domiciliary Care,THIRD PARTY PAYMENTS,PRIVATE CONTRACTOR,REVENUE
Walsall Council,http://opendatacommunities.org/id/metropolitan-district-council/walsall,WC122-37,31.01.2021,ADULT SOCIAL CARE,5 CARE SERVICES LTD,04/01/2021,393.21,6541-Domiciliary Care,THIRD PARTY PAYMENTS,PRIVATE CONTRACTOR,REVENUE
Walsall Council,http://opendatacommunities.org/id/metropolitan-district-council/walsall,WC122-38,31.01.2021,ADULT SOCIAL CARE,5 CARE SERVICES LTD,04/01/2021,323.82,6541-Domiciliary Care,THIRD PARTY PAYMENTS,PRIVATE CONTRACTOR,REVENUE
Walsall Council,http://opendatacommunities.org/id/metropolitan-district-council/walsall,WC122-39,31.01.2021,ADULT SOCIAL CARE,5 CARE SERVICES LTD,04/01/2021,755.58,6541-Domiciliary Care,THIRD PARTY PAYMENTS,PRIVATE CONTRACTOR,REVENUE
Walsall Council,http://opendatacommunities.org/id/metropolitan-district-council/walsall,WC122-40,31.01.2021,ADULT SOCIAL CARE,5 CARE SERVICES LTD,04/01/2021,431.76,6541-Domiciliary Care,THIRD PARTY PAYMENTS,PRIVATE CONTRACTOR,REVENUE
Walsall Council,http://opendatacommunities.org/id/metropolitan-district-council/walsall,WC122-41,31.01.2021,ADULT SOCIAL CARE,5 CARE SERVICES LTD,04/01/2021,308.40,6541-Domiciliary Care,THIRD PARTY PAYMENTS,PRIVATE CONTRACTOR,REVENUE
Walsall Council,http://opendatacommunities.org/id/metropolitan-district-council/walsall,WC122-42,31.01.2021,ADULT SOCIAL CARE,5 CARE SERVICES LTD,04/01/2021,431.76,6541-Domiciliary Care,THIRD PARTY PAYMENTS,PRIVATE CONTRACTOR,REVENUE
Walsall Council,http://opendatacommunities.org/id/metropolitan-district-council/walsall,WC122-43,31.01.2021,ADULT SOCIAL CARE,5 CARE SERVICES LTD,04/01/2021,304.58,6541-Domiciliary Care,THIRD PARTY PAYMENTS,PRIVATE CONTRACTOR,REVENUE
Walsall Council,http://opendatacommunities.org/id/metropolitan-district-council/walsall,WC122-44,31.01.2021,ADULT SOCIAL CARE,5 CARE SERVICES LTD,04/01/2021,647.64,6541-Domiciliary Care,THIRD PARTY PAYMENTS,PRIVATE CONTRACTOR,REVENUE
Walsall Council,http://opendatacommunities.org/id/metropolitan-district-council/walsall,WC122-45,31.01.2021,ADULT SOCIAL CARE,5 CARE SERVICES LTD,04/01/2021,323.82,6541-Domiciliary Care,THIRD PARTY PAYMENTS,PRIVATE CONTRACTOR,REVENUE
Walsall Council,http://opendatacommunities.org/id/metropolitan-district-council/walsall,WC122-46,31.01.2021,ADULT SOCIAL CARE,5 CARE SERVICES LTD,04/01/2021,593.67,6541-Domiciliary Care,THIRD PARTY PAYMENTS,PRIVATE CONTRACTOR,REVENUE
Walsall Council,http://opendatacommunities.org/id/metropolitan-district-council/walsall,WC122-47,31.01.2021,ADULT SOCIAL CARE,5 CARE SERVICES LTD,15/01/2021,740.16,6541-Domiciliary Care,THIRD PARTY PAYMENTS,PRIVATE CONTRACTOR,REVENUE
Walsall Council,http://opendatacommunities.org/id/metropolitan-district-council/walsall,WC122-48,31.01.2021,ADULT SOCIAL CARE,5 CARE SERVICES LTD,15/01/2021,377.79,6541-Domiciliary Care,THIRD PARTY PAYMENTS,PRIVATE CONTRACTOR,REVENUE
Walsall Council,http://opendatacommunities.org/id/metropolitan-district-council/walsall,WC122-49,31.01.2021,ADULT SOCIAL CARE,5 CARE SERVICES LTD,15/01/2021,377.79,6541-Domiciliary Care,THIRD PARTY PAYMENTS,PRIVATE CONTRACTOR,REVENUE
Walsall Council,http://opendatacommunities.org/id/metropolitan-district-council/walsall,WC122-50,31.01.2021,ADULT SOCIAL CARE,5 CARE SERVICES LTD,15/01/2021,485.80,6541-Domiciliary Care,THIRD PARTY PAYMENTS,PRIVATE CONTRACTOR,REVENUE
Walsall Council,http://opendatacommunities.org/id/metropolitan-district-council/walsall,WC122-51,31.01.2021,ADULT SOCIAL CARE,5 CARE SERVICES LTD,15/01/2021,341.81,6541-Domiciliary Care,THIRD PARTY PAYMENTS,PRIVATE CONTRACTOR,REVENUE
Walsall Council,http://opendatacommunities.org/id/metropolitan-district-council/walsall,WC122-52,31.01.2021,ADULT SOCIAL CARE,5 CARE SERVICES LTD,15/01/2021,308.40,6541-Domiciliary Care,THIRD PARTY PAYMENTS,PRIVATE CONTRACTOR,REVENUE
Walsall Council,http://opendatacommunities.org/id/metropolitan-district-council/walsall,WC122-53,31.01.2021,ADULT SOCIAL CARE,5 CARE SERVICES LTD,15/01/2021,431.76,6541-Domiciliary Care,THIRD PARTY PAYMENTS,PRIVATE CONTRACTOR,REVENUE
Walsall Council,http://opendatacommunities.org/id/metropolitan-district-council/walsall,WC122-54,31.01.2021,ADULT SOCIAL CARE,5 CARE SERVICES LTD,15/01/2021,339.28,6541-Domiciliary Care,THIRD PARTY PAYMENTS,PRIVATE CONTRACTOR,REVENUE
Walsall Council,http://opendatacommunities.org/id/metropolitan-district-council/walsall,WC122-55,31.01.2021,ADULT SOCIAL CARE,5 CARE SERVICES LTD,15/01/2021,539.70,6541-Domiciliary Care,THIRD PARTY PAYMENTS,PRIVATE CONTRACTOR,REVENUE
Walsall Council,http://opendatacommunities.org/id/metropolitan-district-council/walsall,WC122-56,31.01.2021,ADULT SOCIAL CARE,5 CARE SERVICES LTD,15/01/2021,485.73,6541-Domiciliary Care,THIRD PARTY PAYMENTS,PRIVATE CONTRACTOR,REVENUE
Walsall Council,http://opendatacommunities.org/id/metropolitan-district-council/walsall,WC122-57,31.01.2021,ADULT SOCIAL CARE,5 CARE SERVICES LTD,15/01/2021,393.21,6541-Domiciliary Care,THIRD PARTY PAYMENTS,PRIVATE CONTRACTOR,REVENUE
Walsall Council,http://opendatacommunities.org/id/metropolitan-district-council/walsall,WC122-58,31.01.2021,ADULT SOCIAL CARE,5 CARE SERVICES LTD,15/01/2021,647.64,6541-Domiciliary Care,THIRD PARTY PAYMENTS,PRIVATE CONTRACTOR,REVENUE
Walsall Council,http://opendatacommunities.org/id/metropolitan-district-council/walsall,WC122-59,31.01.2021,ADULT SOCIAL CARE,5 CARE SERVICES LTD,15/01/2021,323.82,6541-Domiciliary Care,THIRD PARTY PAYMENTS,PRIVATE CONTRACTOR,REVENUE
Walsall Council,http://opendatacommunities.org/id/metropolitan-district-council/walsall,WC122-60,31.01.2021,ADULT SOCIAL CARE,5 CARE SERVICES LTD,15/01/2021,251.93,6541-Domiciliary Care,THIRD PARTY PAYMENTS,PRIVATE CONTRACTOR,REVENUE
Walsall Council,http://opendatacommunities.org/id/metropolitan-district-council/walsall,WC122-61,31.01.2021,ADULT SOCIAL CARE,5 CARE SERVICES LTD,15/01/2021,431.76,6541-Domiciliary Care,THIRD PARTY PAYMENTS,PRIVATE CONTRACTOR,REVENUE
Walsall Council,http://opendatacommunities.org/id/metropolitan-district-council/walsall,WC122-62,31.01.2021,ADULT SOCIAL CARE,5 CARE SERVICES LTD,15/01/2021,277.56,6541-Domiciliary Care,THIRD PARTY PAYMENTS,PRIVATE CONTRACTOR,REVENUE
Walsall Council,http://opendatacommunities.org/id/metropolitan-district-council/walsall,WC122-63,31.01.2021,ADULT SOCIAL CARE,5 CARE SERVICES LTD,15/01/2021,755.58,6541-Domiciliary Care,THIRD PARTY PAYMENTS,PRIVATE CONTRACTOR,REVENUE
Walsall Council,http://opendatacommunities.org/id/metropolitan-district-council/walsall,WC122-64,31.01.2021,ADULT SOCIAL CARE,5 CARE SERVICES LTD,15/01/2021,593.67,6541-Domiciliary Care,THIRD PARTY PAYMENTS,PRIVATE CONTRACTOR,REVENUE
Walsall Council,http://opendatacommunities.org/id/metropolitan-district-council/walsall,WC122-65,31.01.2021,ADULT SOCIAL CARE,5 CARE SERVICES LTD,15/01/2021,308.40,6541-Domiciliary Care,THIRD PARTY PAYMENTS,PRIVATE CONTRACTOR,REVENUE
Walsall Council,http://opendatacommunities.org/id/metropolitan-district-council/walsall,WC122-66,31.01.2021,ADULT SOCIAL CARE,5 CARE SERVICES LTD,15/01/2021,323.82,6541-Domiciliary Care,THIRD PARTY PAYMENTS,PRIVATE CONTRACTOR,REVENUE
Walsall Council,http://opendatacommunities.org/id/metropolitan-district-council/walsall,WC122-67,31.01.2021,ADULT SOCIAL CARE,5 CARE SERVICES LTD,15/01/2021,370.08,6541-Domiciliary Care,THIRD PARTY PAYMENTS,PRIVATE CONTRACTOR,REVENUE
Walsall Council,http://opendatacommunities.org/id/metropolitan-district-council/walsall,WC122-68,31.01.2021,ADULT SOCIAL CARE,5 CARE SERVICES LTD,15/01/2021,377.79,6541-Domiciliary Care,THIRD PARTY PAYMENTS,PRIVATE CONTRACTOR,REVENUE
Walsall Council,http://opendatacommunities.org/id/metropolitan-district-council/walsall,WC122-69,31.01.2021,ADULT SOCIAL CARE,5 CARE SERVICES LTD,15/01/2021,416.34,6541-Domiciliary Care,THIRD PARTY PAYMENTS,PRIVATE CONTRACTOR,REVENUE
Walsall Council,http://opendatacommunities.org/id/metropolitan-district-council/walsall,WC122-70,31.01.2021,ADULT SOCIAL CARE,5 CARE SERVICES LTD,15/01/2021,377.79,6541-Domiciliary Care,THIRD PARTY PAYMENTS,PRIVATE CONTRACTOR,REVENUE
Walsall Council,http://opendatacommunities.org/id/metropolitan-district-council/walsall,WC122-71,31.01.2021,ADULT SOCIAL CARE,5 CARE SERVICES LTD,15/01/2021,393.21,6541-Domiciliary Care,THIRD PARTY PAYMENTS,PRIVATE CONTRACTOR,REVENUE
Walsall Council,http://opendatacommunities.org/id/metropolitan-district-council/walsall,WC122-72,31.01.2021,ADULT SOCIAL CARE,5 CARE SERVICES LTD,15/01/2021,755.58,6541-Domiciliary Care,THIRD PARTY PAYMENTS,PRIVATE CONTRACTOR,REVENUE
Walsall Council,http://opendatacommunities.org/id/metropolitan-district-council/walsall,WC122-73,31.01.2021,ADULT SOCIAL CARE,5 CARE SERVICES LTD,15/01/2021,341.81,6541-Domiciliary Care,THIRD PARTY PAYMENTS,PRIVATE CONTRACTOR,REVENUE
Walsall Council,http://opendatacommunities.org/id/metropolitan-district-council/walsall,WC122-74,31.01.2021,ADULT SOCIAL CARE,5 CARE SERVICES LTD,15/01/2021,539.70,6541-Domiciliary Care,THIRD PARTY PAYMENTS,PRIVATE CONTRACTOR,REVENUE
Walsall Council,http://opendatacommunities.org/id/metropolitan-district-council/walsall,WC122-75,31.01.2021,ADULT SOCIAL CARE,5 CARE SERVICES LTD,15/01/2021,485.73,6541-Domiciliary Care,THIRD PARTY PAYMENTS,PRIVATE CONTRACTOR,REVENUE
Walsall Council,http://opendatacommunities.org/id/metropolitan-district-council/walsall,WC122-76,31.01.2021,ADULT SOCIAL CARE,5 CARE SERVICES LTD,15/01/2021,485.80,6541-Domiciliary Care,THIRD PARTY PAYMENTS,PRIVATE CONTRACTOR,REVENUE
Walsall Council,http://opendatacommunities.org/id/metropolitan-district-council/walsall,WC122-77,31.01.2021,ADULT SOCIAL CARE,5 CARE SERVICES LTD,15/01/2021,251.93,6541-Domiciliary Care,THIRD PARTY PAYMENTS,PRIVATE CONTRACTOR,REVENUE
Walsall Council,http://opendatacommunities.org/id/metropolitan-district-council/walsall,WC122-78,31.01.2021,ADULT SOCIAL CARE,5 CARE SERVICES LTD,15/01/2021,431.76,6541-Domiciliary Care,THIRD PARTY PAYMENTS,PRIVATE CONTRACTOR,REVENUE
Walsall Council,http://opendatacommunities.org/id/metropolitan-district-council/walsall,WC122-79,31.01.2021,ADULT SOCIAL CARE,5 CARE SERVICES LTD,15/01/2021,269.85,6541-Domiciliary Care,THIRD PARTY PAYMENTS,PRIVATE CONTRACTOR,REVENUE
Walsall Council,http://opendatacommunities.org/id/metropolitan-district-council/walsall,WC122-80,31.01.2021,ADULT SOCIAL CARE,5 CARE SERVICES LTD,15/01/2021,308.40,6541-Domiciliary Care,THIRD PARTY PAYMENTS,PRIVATE CONTRACTOR,REVENUE
Walsall Council,http://opendatacommunities.org/id/metropolitan-district-council/walsall,WC122-81,31.01.2021,ADULT SOCIAL CARE,5 CARE SERVICES LTD,15/01/2021,323.82,6541-Domiciliary Care,THIRD PARTY PAYMENTS,PRIVATE CONTRACTOR,REVENUE
Walsall Council,http://opendatacommunities.org/id/metropolitan-district-council/walsall,WC122-82,31.01.2021,ADULT SOCIAL CARE,5 CARE SERVICES LTD,15/01/2021,308.40,6541-Domiciliary Care,THIRD PARTY PAYMENTS,PRIVATE CONTRACTOR,REVENUE
Walsall Council,http://opendatacommunities.org/id/metropolitan-district-council/walsall,WC122-83,31.01.2021,ADULT SOCIAL CARE,5 CARE SERVICES LTD,15/01/2021,431.76,6541-Domiciliary Care,THIRD PARTY PAYMENTS,PRIVATE CONTRACTOR,REVENUE
Walsall Council,http://opendatacommunities.org/id/metropolitan-district-council/walsall,WC122-84,31.01.2021,ADULT SOCIAL CARE,5 CARE SERVICES LTD,15/01/2021,304.58,6541-Domiciliary Care,THIRD PARTY PAYMENTS,PRIVATE CONTRACTOR,REVENUE
Walsall Council,http://opendatacommunities.org/id/metropolitan-district-council/walsall,WC122-85,31.01.2021,ADULT SOCIAL CARE,5 CARE SERVICES LTD,15/01/2021,647.64,6541-Domiciliary Care,THIRD PARTY PAYMENTS,PRIVATE CONTRACTOR,REVENUE
Walsall Council,http://opendatacommunities.org/id/metropolitan-district-council/walsall,WC122-86,31.01.2021,ADULT SOCIAL CARE,5 CARE SERVICES LTD,15/01/2021,323.82,6541-Domiciliary Care,THIRD PARTY PAYMENTS,PRIVATE CONTRACTOR,REVENUE
Walsall Council,http://opendatacommunities.org/id/metropolitan-district-council/walsall,WC122-87,31.01.2021,ADULT SOCIAL CARE,5 CARE SERVICES LTD,15/01/2021,593.67,6541-Domiciliary Care,THIRD PARTY PAYMENTS,PRIVATE CONTRACTOR,REVENUE
Walsall Council,http://opendatacommunities.org/id/metropolitan-district-council/walsall,WC122-88,31.01.2021,CHILDRENS,5 CARE SERVICES LTD,06/01/2021,"3,636.60",6223-Professional Fees & Services,SUPPLIES & SERVICES,SERVICES,REVENUE
Walsall Council,http://opendatacommunities.org/id/metropolitan-district-council/walsall,WC122-89,31.01.2021,ADULT SOCIAL CARE,5 CARE SERVICES LTD,12/01/2021,566.76,6554-Professional Services-Priv Contractor & Other Agencies,THIRD PARTY PAYMENTS,PRIVATE CONTRACTOR,REVENUE
Walsall Council,http://opendatacommunities.org/id/metropolitan-district-council/walsall,WC122-90,31.01.2021,ADULT SOCIAL CARE,5 CARE SERVICES LTD,12/01/2021,585.96,6554-Professional Services-Priv Contractor & Other Agencies,THIRD PARTY PAYMENTS,PRIVATE CONTRACTOR,REVENUE
Walsall Council,http://opendatacommunities.org/id/metropolitan-district-council/walsall,WC122-91,31.01.2021,CHILDRENS,5 CARE SERVICES LTD,22/01/2021,"5,359.20",6223-Professional Fees & Services,SUPPLIES & SERVICES,SERVICES,REVENUE
Walsall Council,http://opendatacommunities.org/id/metropolitan-district-council/walsall,WC122-92,31.01.2021,ADULT SOCIAL CARE,5 CARE SERVICES LTD,19/01/2021,501.28,6554-Professional Services-Priv Contractor & Other Agencies,THIRD PARTY PAYMENTS,PRIVATE CONTRACTOR,REVENUE
Walsall Council,http://opendatacommunities.org/id/metropolitan-district-council/walsall,WC122-93,31.01.2021,ADULT SOCIAL CARE,5 CARE SERVICES LTD,19/01/2021,611.66,6554-Professional Services-Priv Contractor & Other Agencies,THIRD PARTY PAYMENTS,PRIVATE CONTRACTOR,REVENUE
Walsall Council,http://opendatacommunities.org/id/metropolitan-district-council/walsall,WC122-94,31.01.2021,ADULT SOCIAL CARE,5 CARE SERVICES LTD,05/01/2021,501.22,6554-Professional Services-Priv Contractor & Other Agencies,THIRD PARTY PAYMENTS,PRIVATE CONTRACTOR,REVENUE
Walsall Council,http://opendatacommunities.org/id/metropolitan-district-council/walsall,WC122-95,31.01.2021,ADULT SOCIAL CARE,5 CARE SERVICES LTD,05/01/2021,555.12,6554-Professional Services-Priv Contractor & Other Agencies,THIRD PARTY PAYMENTS,PRIVATE CONTRACTOR,REVENUE
Walsall Council,http://opendatacommunities.org/id/metropolitan-district-council/walsall,WC122-96,31.01.2021,ADULT SOCIAL CARE,5 CARE SERVICES LTD,13/01/2021,"2,220.48",6541-Domiciliary Care,THIRD PARTY PAYMENTS,PRIVATE CONTRACTOR,REVENUE
Walsall Council,http://opendatacommunities.org/id/metropolitan-district-council/walsall,WC122-97,31.01.2021,ADULT SOCIAL CARE,5 CARE SERVICES LTD,13/01/2021,"1,542.00",6541-Domiciliary Care,THIRD PARTY PAYMENTS,PRIVATE CONTRACTOR,REVENUE
Walsall Council,http://opendatacommunities.org/id/metropolitan-district-council/walsall,WC122-98,31.01.2021,ADULT SOCIAL CARE,5 CARE SERVICES LTD,13/01/2021,"2,220.48",6541-Domiciliary Care,THIRD PARTY PAYMENTS,PRIVATE CONTRACTOR,REVENUE
Walsall Council,http://opendatacommunities.org/id/metropolitan-district-council/walsall,WC122-99,31.01.2021,CHILDRENS,5 CARE SERVICES LTD,26/01/2021,"5,359.20",6223-Professional Fees & Services,SUPPLIES & SERVICES,SERVICES,REVENUE
Walsall Council,http://opendatacommunities.org/id/metropolitan-district-council/walsall,WC122-100,31.01.2021,ADULT SOCIAL CARE,5 CARE SERVICES LTD,26/01/2021,539.84,6554-Professional Services-Priv Contractor & Other Agencies,THIRD PARTY PAYMENTS,PRIVATE CONTRACTOR,REVENUE
Walsall Council,http://opendatacommunities.org/id/metropolitan-district-council/walsall,WC122-101,31.01.2021,ADULT SOCIAL CARE,5 CARE SERVICES LTD,27/01/2021,"-3,636.60",6554-Professional Services-Priv Contractor & Other Agencies,THIRD PARTY PAYMENTS,PRIVATE CONTRACTOR,REVENUE
Walsall Council,http://opendatacommunities.org/id/metropolitan-district-council/walsall,WC122-102,31.01.2021,CHILDRENS,5 CARE SERVICES LTD,27/01/2021,"3,636.60",6223-Professional Fees & Services,SUPPLIES & SERVICES,SERVICES,REVENUE
Walsall Council,http://opendatacommunities.org/id/metropolitan-district-council/walsall,WC122-103,31.01.2021,ADULT SOCIAL CARE,5 CARE SERVICES LTD,27/01/2021,"3,636.60",6554-Professional Services-Priv Contractor & Other Agencies,THIRD PARTY PAYMENTS,PRIVATE CONTRACTOR,REVENUE
Walsall Council,http://opendatacommunities.org/id/metropolitan-district-council/walsall,WC122-104,31.01.2021,ADULT SOCIAL CARE,5 CARE SERVICES LTD,26/01/2021,973.20,6550-Professional Fees & Services,SUPPLIES & SERVICES,SERVICES,REVENUE
Walsall Council,http://opendatacommunities.org/id/metropolitan-district-council/walsall,WC122-105,31.01.2021,ADULT SOCIAL CARE,5 CARE SERVICES LTD,28/01/2021,"2,020.00",6550-Professional Fees & Services,SUPPLIES & SERVICES,SERVICES,REVENUE
Walsall Council,http://opendatacommunities.org/id/metropolitan-district-council/walsall,WC122-106,31.01.2021,ECONOMY & ENVIRONMENT,A & P CHAMBERS LTD,14/01/2021,390.00,6410-Operational Maintenance,PREMISES,REPAIRS & MAINTENANCE,REVENUE
Walsall Council,http://opendatacommunities.org/id/metropolitan-district-council/walsall,WC122-107,31.01.2021,RESOURCES AND TRANSFORMATION,A D T FIRE AND SECURITY PLC,19/01/2021,471.57,6310-Repair & Maintenance of Furniture & Equipment,SUPPLIES & SERVICES,EQUIPMENT FURNITURE & MATERIALS,REVENUE
Walsall Council,http://opendatacommunities.org/id/metropolitan-district-council/walsall,WC122-108,31.01.2021,RESOURCES AND TRANSFORMATION,A D T FIRE AND SECURITY PLC,13/01/2021,297.32,6310-Security-Priv Contractor Fees,THIRD PARTY PAYMENTS,PRIVATE CONTRACTOR,REVENUE
Walsall Council,http://opendatacommunities.org/id/metropolitan-district-council/walsall,WC122-109,31.01.2021,RESOURCES AND TRANSFORMATION,A D T FIRE AND SECURITY PLC,19/01/2021,514.11,6310-Security-Priv Contractor Fees,THIRD PARTY PAYMENTS,PRIVATE CONTRACTOR,REVENUE
Walsall Council,http://opendatacommunities.org/id/metropolitan-district-council/walsall,WC122-110,31.01.2021,ADULT SOCIAL CARE,A F BLAKEMORE & SON LTD,14/01/2021,252.72,6543-Food & Drink Supplies,SUPPLIES & SERVICES,CATERING,REVENUE
Walsall Council,http://opendatacommunities.org/id/metropolitan-district-council/walsall,WC122-111,31.01.2021,CHILDRENS,AA GLOBAL LANGUAGE SERVICES LIMITED,22/01/2021,442.00,6223-Language & Interpretation Services,SUPPLIES & SERVICES,SERVICES,REVENUE
Walsall Council,http://opendatacommunities.org/id/metropolitan-district-council/walsall,WC122-112,31.01.2021,ECONOMY & ENVIRONMENT,AAINA COMMUNITY HUB,15/01/2021,"1,312.24",6430-Grants to Other Orgs,SUPPLIES & SERVICES,GRANTS (EXP) & SUBSCRIPTIONS,REVENUE
Walsall Council,http://opendatacommunities.org/id/metropolitan-district-council/walsall,WC122-113,31.01.2021,ADULT SOCIAL CARE,ABBEY COURT NURSING & RESIDEN,15/01/2021,"2,060.71",6541-Residential EMI,THIRD PARTY PAYMENTS,PRIVATE CONTRACTOR,REVENUE
Walsall Council,http://opendatacommunities.org/id/metropolitan-district-council/walsall,WC122-114,31.01.2021,ADULT SOCIAL CARE,ABBEY COURT NURSING & RESIDEN,15/01/2021,"2,308.00",6541-Residential EMI,THIRD PARTY PAYMENTS,PRIVATE CONTRACTOR,REVENUE
Walsall Council,http://opendatacommunities.org/id/metropolitan-district-council/walsall,WC122-115,31.01.2021,ADULT SOCIAL CARE,ABBEY COURT NURSING & RESIDEN,15/01/2021,"2,548.00",6541-Residential EMI,THIRD PARTY PAYMENTS,PRIVATE CONTRACTOR,REVENUE
Walsall Council,http://opendatacommunities.org/id/metropolitan-district-council/walsall,WC122-116,31.01.2021,ADULT SOCIAL CARE,ABBEY COURT NURSING & RESIDEN,15/01/2021,866.57,6541-Nursing EMI,THIRD PARTY PAYMENTS,PRIVATE CONTRACTOR,REVENUE
Walsall Council,http://opendatacommunities.org/id/metropolitan-district-council/walsall,WC122-117,31.01.2021,ADULT SOCIAL CARE,ABBEY COURT NURSING & RESIDEN,15/01/2021,"2,044.00",6541-Residential,THIRD PARTY PAYMENTS,PRIVATE CONTRACTOR,REVENUE
Walsall Council,http://opendatacommunities.org/id/metropolitan-district-council/walsall,WC122-118,31.01.2021,ADULT SOCIAL CARE,ABBEY HEALTHCARE HOMES LTD,15/01/2021,"3,516.40",6541-Residential,THIRD PARTY PAYMENTS,PRIVATE CONTRACTOR,REVENUE
Walsall Council,http://opendatacommunities.org/id/metropolitan-district-council/walsall,WC122-119,31.01.2021,ADULT SOCIAL CARE,ABBEY HEALTHCARE HOMES LTD,15/01/2021,"3,102.72",6541-Residential,THIRD PARTY PAYMENTS,PRIVATE CONTRACTOR,REVENUE
Walsall Council,http://opendatacommunities.org/id/metropolitan-district-council/walsall,WC122-120,31.01.2021,ADULT SOCIAL CARE,ABBEY HEALTHCARE HOMES LTD,15/01/2021,"2,372.64",6541-Residential,THIRD PARTY PAYMENTS,PRIVATE CONTRACTOR,REVENUE
Walsall Council,http://opendatacommunities.org/id/metropolitan-district-council/walsall,WC122-121,31.01.2021,ADULT SOCIAL CARE,ABBEY HEALTHCARE HOMES LTD,15/01/2021,"3,102.72",6541-Residential,THIRD PARTY PAYMENTS,PRIVATE CONTRACTOR,REVENUE
Walsall Council,http://opendatacommunities.org/id/metropolitan-district-council/walsall,WC122-122,31.01.2021,CHILDRENS,ABC DAY NURSERY (WILLENHALL) LIMITED,05/01/2021,"10,533.60",1184-Other-Grants to Other Orgs,SUPPLIES & SERVICES,GRANTS (EXP) & SUBSCRIPTIONS,REVENUE
Walsall Council,http://opendatacommunities.org/id/metropolitan-district-council/walsall,WC122-123,31.01.2021,CHILDRENS,ABC DAY NURSERY (WILLENHALL) LIMITED,05/01/2021,"14,801.74",1184-Other-Grants to Other Orgs,SUPPLIES & SERVICES,GRANTS (EXP) & SUBSCRIPTIONS,REVENUE
Walsall Council,http://opendatacommunities.org/id/metropolitan-district-council/walsall,WC122-124,31.01.2021,ADULT SOCIAL CARE,REDACTED,06/01/2021,"2,110.92",6541-Direct Payment,THIRD PARTY PAYMENTS,PRIVATE CONTRACTOR,REVENUE
Walsall Council,http://opendatacommunities.org/id/metropolitan-district-council/walsall,WC122-125,31.01.2021,ECONOMY & ENVIRONMENT,ABLEWELL ADVICE SERVICES,26/01/2021,"7,500.00",6430-Grants to Other Orgs,SUPPLIES & SERVICES,GRANTS (EXP) & SUBSCRIPTIONS,REVENUE
Walsall Council,http://opendatacommunities.org/id/metropolitan-district-council/walsall,WC122-126,31.01.2021,CHILDRENS,ABLEWELL CARS,28/01/2021,847.08,6241-Hire of Vehicle with Driver,TRANSPORT,DIRECT TRANSPORT COSTS,REVENUE
Walsall Council,http://opendatacommunities.org/id/metropolitan-district-council/walsall,WC122-127,31.01.2021,CHILDRENS,ABLEWELL CARS,28/01/2021,475.20,6241-Hire of Vehicle with Driver,TRANSPORT,DIRECT TRANSPORT COSTS,REVENUE
Walsall Council,http://opendatacommunities.org/id/metropolitan-district-council/walsall,WC122-128,31.01.2021,CHILDRENS,ABLEWELL CARS,28/01/2021,"1,168.00",6241-Hire of Vehicle with Driver,TRANSPORT,DIRECT TRANSPORT COSTS,REVENUE
Walsall Council,http://opendatacommunities.org/id/metropolitan-district-council/walsall,WC122-129,31.01.2021,CHILDRENS,ABLEWELL CARS,28/01/2021,661.80,6241-Hire of Vehicle with Driver,TRANSPORT,DIRECT TRANSPORT COSTS,REVENUE
Walsall Council,http://opendatacommunities.org/id/metropolitan-district-council/walsall,WC122-130,31.01.2021,CHILDRENS,ABLEWELL CARS,28/01/2021,832.00,6241-Hire of Vehicle with Driver,TRANSPORT,DIRECT TRANSPORT COSTS,REVENUE
Walsall Council,http://opendatacommunities.org/id/metropolitan-district-council/walsall,WC122-131,31.01.2021,CHILDRENS,ABLEWELL CARS,28/01/2021,442.80,6241-Hire of Vehicle with Driver,TRANSPORT,DIRECT TRANSPORT COSTS,REVENUE
Walsall Council,http://opendatacommunities.org/id/metropolitan-district-council/walsall,WC122-132,31.01.2021,CHILDRENS,ABLEWELL CARS,28/01/2021,570.00,6241-Hire of Vehicle with Driver,TRANSPORT,DIRECT TRANSPORT COSTS,REVENUE
Walsall Council,http://opendatacommunities.org/id/metropolitan-district-council/walsall,WC122-133,31.01.2021,CHILDRENS,ABS TAXIS (ALDRIDGE),28/01/2021,441.00,6241-Hire of Vehicle with Driver,TRANSPORT,DIRECT TRANSPORT COSTS,REVENUE
Walsall Council,http://opendatacommunities.org/id/metropolitan-district-council/walsall,WC122-134,31.01.2021,CHILDRENS,ABS TAXIS (ALDRIDGE),28/01/2021,"3,014.55",6241-Hire of Vehicle with Driver,TRANSPORT,DIRECT TRANSPORT COSTS,REVENUE
Walsall Council,http://opendatacommunities.org/id/metropolitan-district-council/walsall,WC122-135,31.01.2021,CHILDRENS,ABS TAXIS (ALDRIDGE),28/01/2021,"1,052.90",6241-Hire of Vehicle with Driver,TRANSPORT,DIRECT TRANSPORT COSTS,REVENUE
Walsall Council,http://opendatacommunities.org/id/metropolitan-district-council/walsall,WC122-136,31.01.2021,CHILDRENS,ABU BAKR NURSERY,05/01/2021,"9,216.90",1184-Other-Grants to Other Orgs,SUPPLIES & SERVICES,GRANTS (EXP) & SUBSCRIPTIONS,REVENUE
Walsall Council,http://opendatacommunities.org/id/metropolitan-district-council/walsall,WC122-137,31.01.2021,CHILDRENS,ABU BAKR NURSERY,05/01/2021,"33,440.96",1184-Other-Grants to Other Orgs,SUPPLIES & SERVICES,GRANTS (EXP) & SUBSCRIPTIONS,REVENUE
Walsall Council,http://opendatacommunities.org/id/metropolitan-district-council/walsall,WC122-138,31.01.2021,CHILDRENS,ABU BAKR NURSERY,18/01/2021,640.00,1184-Transfer Payments-Other Schoolchildren/Student Related Items,TRANSFER PAYMENTS,SCHOOLCHILDREN/STUDENTS,REVENUE
Walsall Council,http://opendatacommunities.org/id/metropolitan-district-council/walsall,WC122-139,31.01.2021,CHILDRENS,ABU BAKR NURSERY,22/01/2021,615.00,1184-Other-Grants to Other Orgs,SUPPLIES & SERVICES,GRANTS (EXP) & SUBSCRIPTIONS,REVENUE
Walsall Council,http://opendatacommunities.org/id/metropolitan-district-council/walsall,WC122-140,31.01.2021,CHILDRENS,AC EDUCATION,04/01/2021,"6,065.00",6220-Professional Services-Priv Contractor & Other Agencies,THIRD PARTY PAYMENTS,PRIVATE CONTRACTOR,REVENUE
Walsall Council,http://opendatacommunities.org/id/metropolitan-district-council/walsall,WC122-141,31.01.2021,CHILDRENS,ACCALIA CARE SERVICES LTD,22/01/2021,"19,980.00",6223-External Residential Care-Oth Agency Provision,THIRD PARTY PAYMENTS,PRIVATE CONTRACTOR,REVENUE
Walsall Council,http://opendatacommunities.org/id/metropolitan-district-council/walsall,WC122-142,31.01.2021,CHILDRENS,ACCALIA CARE SERVICES LTD,22/01/2021,"19,980.00",6223-External Residential Care-Oth Agency Provision,THIRD PARTY PAYMENTS,PRIVATE CONTRACTOR,REVENUE
Walsall Council,http://opendatacommunities.org/id/metropolitan-district-council/walsall,WC122-143,31.01.2021,ADULT SOCIAL CARE,ACCOMPLISH GROUP LTD,15/01/2021,"7,861.04",6541-Residential,THIRD PARTY PAYMENTS,PRIVATE CONTRACTOR,REVENUE
Walsall Council,http://opendatacommunities.org/id/metropolitan-district-council/walsall,WC122-144,31.01.2021,ADULT SOCIAL CARE,ACCORD HOUSING ASSOCIATION LIMITED - HOBS MEADOW,15/01/2021,"4,659.64",6541-Residential,THIRD PARTY PAYMENTS,PRIVATE CONTRACTOR,REVENUE
Walsall Council,http://opendatacommunities.org/id/metropolitan-district-council/walsall,WC122-145,31.01.2021,ADULT SOCIAL CARE,ACCORD HOUSING ASSOCIATION LIMITED - HOBS MEADOW,15/01/2021,"4,659.64",6541-Residential,THIRD PARTY PAYMENTS,PRIVATE CONTRACTOR,REVENUE
Walsall Council,http://opendatacommunities.org/id/metropolitan-district-council/walsall,WC122-146,31.01.2021,ADULT SOCIAL CARE,ACCORD HOUSING ASSOCIATION LIMITED - HOBS MEADOW,15/01/2021,"4,659.64",6541-Residential,THIRD PARTY PAYMENTS,PRIVATE CONTRACTOR,REVENUE
Walsall Council,http://opendatacommunities.org/id/metropolitan-district-council/walsall,WC122-147,31.01.2021,ADULT SOCIAL CARE,ACCORD HOUSING ASSOCIATION LIMITED - HOBS MEADOW,15/01/2021,"4,659.64",6541-Residential,THIRD PARTY PAYMENTS,PRIVATE CONTRACTOR,REVENUE
Walsall Council,http://opendatacommunities.org/id/metropolitan-district-council/walsall,WC122-148,31.01.2021,ADULT SOCIAL CARE,ACCORD HOUSING ASSOCIATION LTD#135,15/01/2021,"6,503.40",6541-Residential,THIRD PARTY PAYMENTS,PRIVATE CONTRACTOR,REVENUE
Walsall Council,http://opendatacommunities.org/id/metropolitan-district-council/walsall,WC122-149,31.01.2021,ADULT SOCIAL CARE,ACCORD HOUSING ASSOCIATION LTD#135,15/01/2021,"6,503.40",6541-Residential,THIRD PARTY PAYMENTS,PRIVATE CONTRACTOR,REVENUE
Walsall Council,http://opendatacommunities.org/id/metropolitan-district-council/walsall,WC122-150,31.01.2021,ADULT SOCIAL CARE,ACCORD HOUSING ASSOCIATION LTD#135,15/01/2021,"5,807.56",6541-Residential,THIRD PARTY PAYMENTS,PRIVATE CONTRACTOR,REVENUE
Walsall Council,http://opendatacommunities.org/id/metropolitan-district-council/walsall,WC122-151,31.01.2021,CHILDRENS,ACCORD HOUSING ASSOCIATION LTD#135,12/01/2021,396.59,6314-Rents,PREMISES,RENTS,REVENUE
Walsall Council,http://opendatacommunities.org/id/metropolitan-district-council/walsall,WC122-152,31.01.2021,CHILDRENS,ACCORD HOUSING ASSOCIATION LTD#135,08/01/2021,396.59,6314-Rents,PREMISES,RENTS,REVENUE
Walsall Council,http://opendatacommunities.org/id/metropolitan-district-council/walsall,WC122-153,31.01.2021,CHILDRENS,ACCORD HOUSING ASSOCIATION LTD#135,04/01/2021,343.32,6314-Rents,PREMISES,RENTS,REVENUE
Walsall Council,http://opendatacommunities.org/id/metropolitan-district-council/walsall,WC122-154,31.01.2021,CHILDRENS,ACCORD HOUSING ASSOCIATION LTD#135,08/01/2021,343.32,6314-Rents,PREMISES,RENTS,REVENUE
Walsall Council,http://opendatacommunities.org/id/metropolitan-district-council/walsall,WC122-155,31.01.2021,CHILDRENS,ACCORD HOUSING ASSOCIATION LTD#135,04/01/2021,399.54,6314-Rents,PREMISES,RENTS,REVENUE
Walsall Council,http://opendatacommunities.org/id/metropolitan-district-council/walsall,WC122-156,31.01.2021,CHILDRENS,ACCORD HOUSING ASSOCIATION LTD#135,08/01/2021,399.54,6314-Rents,PREMISES,RENTS,REVENUE
Walsall Council,http://opendatacommunities.org/id/metropolitan-district-council/walsall,WC122-157,31.01.2021,CHILDRENS,ACCORD HOUSING ASSOCIATION LTD#135,04/01/2021,447.13,6314-Rents,PREMISES,RENTS,REVENUE
Walsall Council,http://opendatacommunities.org/id/metropolitan-district-council/walsall,WC122-158,31.01.2021,CHILDRENS,ACCORD HOUSING ASSOCIATION LTD#135,08/01/2021,447.13,6314-Rents,PREMISES,RENTS,REVENUE
Walsall Council,http://opendatacommunities.org/id/metropolitan-district-council/walsall,WC122-159,31.01.2021,CHILDRENS,ACCORD HOUSING ASSOCIATION LTD#135,04/01/2021,516.50,6314-Rents,PREMISES,RENTS,REVENUE
Walsall Council,http://opendatacommunities.org/id/metropolitan-district-council/walsall,WC122-160,31.01.2021,CHILDRENS,ACCORD HOUSING ASSOCIATION LTD#135,08/01/2021,413.20,6314-Rents,PREMISES,RENTS,REVENUE
Walsall Council,http://opendatacommunities.org/id/metropolitan-district-council/walsall,WC122-161,31.01.2021,CHILDRENS,ACCORD HOUSING ASSOCIATION LTD#135,04/01/2021,456.00,6314-Rents,PREMISES,RENTS,REVENUE
Walsall Council,http://opendatacommunities.org/id/metropolitan-district-council/walsall,WC122-162,31.01.2021,CHILDRENS,ACCORD HOUSING ASSOCIATION LTD#135,05/01/2021,"28,502.83",6314-Professional Fees & Services,SUPPLIES & SERVICES,SERVICES,REVENUE
Walsall Council,http://opendatacommunities.org/id/metropolitan-district-council/walsall,WC122-163,31.01.2021,ECONOMY & ENVIRONMENT,ACCORD HOUSING ASSOCIATION LTD#135,14/01/2021,"25,000.00",6430-Professional Services-Priv Contractor & Other Agencies,THIRD PARTY PAYMENTS,PRIVATE CONTRACTOR,REVENUE
Walsall Council,http://opendatacommunities.org/id/metropolitan-district-council/walsall,WC122-164,31.01.2021,ADULT SOCIAL CARE,ACCORD HOUSING ASSOCIATION LTD#135,14/01/2021,"5,488.43",6552-Social Services-Fees to Voluntary Bodies,THIRD PARTY PAYMENTS,VOLUNTARY BODIES,REVENUE
Walsall Council,http://opendatacommunities.org/id/metropolitan-district-council/walsall,WC122-165,31.01.2021,ADULT SOCIAL CARE,ACCORD HOUSING ASSOCIATION LTD#135,14/01/2021,"6,407.06",6552-Social Services-Fees to Voluntary Bodies,THIRD PARTY PAYMENTS,VOLUNTARY BODIES,REVENUE
Walsall Council,http://opendatacommunities.org/id/metropolitan-district-council/walsall,WC122-166,31.01.2021,ADULT SOCIAL CARE,ACCORD HOUSING ASSOCIATION LTD#135,14/01/2021,"5,605.20",6552-Social Services-Fees to Voluntary Bodies,THIRD PARTY PAYMENTS,VOLUNTARY BODIES,REVENUE
Walsall Council,http://opendatacommunities.org/id/metropolitan-district-council/walsall,WC122-167,31.01.2021,ADULT SOCIAL CARE,ACCORD HOUSING ASSOCIATION LTD#135,13/01/2021,"1,208.04",6541-Domiciliary Care,THIRD PARTY PAYMENTS,PRIVATE CONTRACTOR,REVENUE
Walsall Council,http://opendatacommunities.org/id/metropolitan-district-council/walsall,WC122-168,31.01.2021,ADULT SOCIAL CARE,ACCORD HOUSING ASSOCIATION LTD#135,13/01/2021,"1,907.08",6541-Domiciliary Care,THIRD PARTY PAYMENTS,PRIVATE CONTRACTOR,REVENUE
Walsall Council,http://opendatacommunities.org/id/metropolitan-district-council/walsall,WC122-169,31.01.2021,ADULT SOCIAL CARE,ACCORD HOUSING ASSOCIATION LTD#135,13/01/2021,452.32,6541-Domiciliary Care,THIRD PARTY PAYMENTS,PRIVATE CONTRACTOR,REVENUE
Walsall Council,http://opendatacommunities.org/id/metropolitan-district-council/walsall,WC122-170,31.01.2021,ADULT SOCIAL CARE,ACCORD HOUSING ASSOCIATION LTD#135,13/01/2021,503.72,6541-Domiciliary Care,THIRD PARTY PAYMENTS,PRIVATE CONTRACTOR,REVENUE
Walsall Council,http://opendatacommunities.org/id/metropolitan-district-council/walsall,WC122-171,31.01.2021,ADULT SOCIAL CARE,ACCORD HOUSING ASSOCIATION LTD#135,13/01/2021,"1,439.20",6541-Domiciliary Care,THIRD PARTY PAYMENTS,PRIVATE CONTRACTOR,REVENUE
Walsall Council,http://opendatacommunities.org/id/metropolitan-district-council/walsall,WC122-172,31.01.2021,ADULT SOCIAL CARE,ACCORD HOUSING ASSOCIATION LTD#135,13/01/2021,503.72,6541-Domiciliary Care,THIRD PARTY PAYMENTS,PRIVATE CONTRACTOR,REVENUE
Walsall Council,http://opendatacommunities.org/id/metropolitan-district-council/walsall,WC122-173,31.01.2021,ADULT SOCIAL CARE,ACCORD HOUSING ASSOCIATION LTD#135,13/01/2021,609.09,6541-Domiciliary Care,THIRD PARTY PAYMENTS,PRIVATE CONTRACTOR,REVENUE
Walsall Council,http://opendatacommunities.org/id/metropolitan-district-council/walsall,WC122-174,31.01.2021,ADULT SOCIAL CARE,ACCORD HOUSING ASSOCIATION LTD#135,13/01/2021,755.72,6541-Domiciliary Care,THIRD PARTY PAYMENTS,PRIVATE CONTRACTOR,REVENUE
Walsall Council,http://opendatacommunities.org/id/metropolitan-district-council/walsall,WC122-175,31.01.2021,ADULT SOCIAL CARE,ACCORD HOUSING ASSOCIATION LTD#135,13/01/2021,493.44,6541-Domiciliary Care,THIRD PARTY PAYMENTS,PRIVATE CONTRACTOR,REVENUE
Walsall Council,http://opendatacommunities.org/id/metropolitan-district-council/walsall,WC122-176,31.01.2021,ADULT SOCIAL CARE,ACCORD HOUSING ASSOCIATION LTD#135,13/01/2021,"1,048.56",6541-Community Supported Living/Supported Accommodation,THIRD PARTY PAYMENTS,PRIVATE CONTRACTOR,REVENUE
Walsall Council,http://opendatacommunities.org/id/metropolitan-district-council/walsall,WC122-177,31.01.2021,ADULT SOCIAL CARE,ACCORD HOUSING ASSOCIATION LTD#135,13/01/2021,719.60,6541-Domiciliary Care,THIRD PARTY PAYMENTS,PRIVATE CONTRACTOR,REVENUE
Walsall Council,http://opendatacommunities.org/id/metropolitan-district-council/walsall,WC122-178,31.01.2021,ADULT SOCIAL CARE,ACCORD HOUSING ASSOCIATION LTD#135,13/01/2021,575.68,6541-Domiciliary Care,THIRD PARTY PAYMENTS,PRIVATE CONTRACTOR,REVENUE
Walsall Council,http://opendatacommunities.org/id/metropolitan-district-council/walsall,WC122-179,31.01.2021,ADULT SOCIAL CARE,ACCORD HOUSING ASSOCIATION LTD#135,13/01/2021,"1,146.36",6541-Domiciliary Care,THIRD PARTY PAYMENTS,PRIVATE CONTRACTOR,REVENUE
Walsall Council,http://opendatacommunities.org/id/metropolitan-district-council/walsall,WC122-180,31.01.2021,ADULT SOCIAL CARE,ACCORD HOUSING ASSOCIATION LTD#135,13/01/2021,"1,295.28",6541-Domiciliary Care,THIRD PARTY PAYMENTS,PRIVATE CONTRACTOR,REVENUE
Walsall Council,http://opendatacommunities.org/id/metropolitan-district-council/walsall,WC122-181,31.01.2021,ADULT SOCIAL CARE,ACCORD HOUSING ASSOCIATION LTD#135,13/01/2021,925.20,6541-Domiciliary Care,THIRD PARTY PAYMENTS,PRIVATE CONTRACTOR,REVENUE
Walsall Council,http://opendatacommunities.org/id/metropolitan-district-council/walsall,WC122-182,31.01.2021,ADULT SOCIAL CARE,ACCORD HOUSING ASSOCIATION LTD#135,13/01/2021,364.94,6541-Domiciliary Care,THIRD PARTY PAYMENTS,PRIVATE CONTRACTOR,REVENUE
Walsall Council,http://opendatacommunities.org/id/metropolitan-district-council/walsall,WC122-183,31.01.2021,ADULT SOCIAL CARE,ACCORD HOUSING ASSOCIATION LTD#135,13/01/2021,"2,285.92",6541-Domiciliary Care,THIRD PARTY PAYMENTS,PRIVATE CONTRACTOR,REVENUE
Walsall Council,http://opendatacommunities.org/id/metropolitan-district-council/walsall,WC122-184,31.01.2021,ADULT SOCIAL CARE,ACCORD HOUSING ASSOCIATION LTD#135,13/01/2021,"1,187.48",6541-Domiciliary Care,THIRD PARTY PAYMENTS,PRIVATE CONTRACTOR,REVENUE
Walsall Council,http://opendatacommunities.org/id/metropolitan-district-council/walsall,WC122-185,31.01.2021,ADULT SOCIAL CARE,ACCORD HOUSING ASSOCIATION LTD#135,13/01/2021,511.43,6541-Domiciliary Care,THIRD PARTY PAYMENTS,PRIVATE CONTRACTOR,REVENUE
Walsall Council,http://opendatacommunities.org/id/metropolitan-district-council/walsall,WC122-186,31.01.2021,ADULT SOCIAL CARE,ACCORD HOUSING ASSOCIATION LTD#135,13/01/2021,452.32,6541-Domiciliary Care,THIRD PARTY PAYMENTS,PRIVATE CONTRACTOR,REVENUE
Walsall Council,http://opendatacommunities.org/id/metropolitan-district-council/walsall,WC122-187,31.01.2021,ADULT SOCIAL CARE,ACCORD HOUSING ASSOCIATION LTD#135,13/01/2021,287.84,6541-Domiciliary Care,THIRD PARTY PAYMENTS,PRIVATE CONTRACTOR,REVENUE
Walsall Council,http://opendatacommunities.org/id/metropolitan-district-council/walsall,WC122-188,31.01.2021,ADULT SOCIAL CARE,ACCORD HOUSING ASSOCIATION LTD#135,13/01/2021,493.44,6541-Domiciliary Care,THIRD PARTY PAYMENTS,PRIVATE CONTRACTOR,REVENUE
Walsall Council,http://opendatacommunities.org/id/metropolitan-district-council/walsall,WC122-189,31.01.2021,ADULT SOCIAL CARE,ACCORD HOUSING ASSOCIATION LTD#135,13/01/2021,894.40,6541-Domiciliary Care,THIRD PARTY PAYMENTS,PRIVATE CONTRACTOR,REVENUE
Walsall Council,http://opendatacommunities.org/id/metropolitan-district-council/walsall,WC122-190,31.01.2021,ADULT SOCIAL CARE,ACCORD HOUSING ASSOCIATION LTD#135,13/01/2021,"3,310.72",6541-Domiciliary Care,THIRD PARTY PAYMENTS,PRIVATE CONTRACTOR,REVENUE
Walsall Council,http://opendatacommunities.org/id/metropolitan-district-council/walsall,WC122-191,31.01.2021,ADULT SOCIAL CARE,ACCORD HOUSING ASSOCIATION LTD#135,13/01/2021,575.68,6541-Domiciliary Care,THIRD PARTY PAYMENTS,PRIVATE CONTRACTOR,REVENUE
Walsall Council,http://opendatacommunities.org/id/metropolitan-district-council/walsall,WC122-192,31.01.2021,ADULT SOCIAL CARE,ACCORD HOUSING ASSOCIATION LTD#135,13/01/2021,524.28,6541-Domiciliary Care,THIRD PARTY PAYMENTS,PRIVATE CONTRACTOR,REVENUE
Walsall Council,http://opendatacommunities.org/id/metropolitan-district-council/walsall,WC122-193,31.01.2021,ADULT SOCIAL CARE,ACCORD HOUSING ASSOCIATION LTD#135,13/01/2021,719.60,6541-Domiciliary Care,THIRD PARTY PAYMENTS,PRIVATE CONTRACTOR,REVENUE
Walsall Council,http://opendatacommunities.org/id/metropolitan-district-council/walsall,WC122-194,31.01.2021,CHILDRENS,ACCORD HOUSING ASSOCIATION LTD#135,22/01/2021,"28,502.83",6314-Professional Fees & Services,SUPPLIES & SERVICES,SERVICES,REVENUE
Walsall Council,http://opendatacommunities.org/id/metropolitan-district-council/walsall,WC122-195,31.01.2021,ADULT SOCIAL CARE,ACCORD HOUSING ASSOCIATION LTD#135,26/01/2021,431.76,6541-Domiciliary Care,THIRD PARTY PAYMENTS,PRIVATE CONTRACTOR,REVENUE
Walsall Council,http://opendatacommunities.org/id/metropolitan-district-council/walsall,WC122-196,31.01.2021,ADULT SOCIAL CARE,ACCORD HOUSING ASSOCIATION LTD#135,26/01/2021,678.48,6541-Domiciliary Care,THIRD PARTY PAYMENTS,PRIVATE CONTRACTOR,REVENUE
Walsall Council,http://opendatacommunities.org/id/metropolitan-district-council/walsall,WC122-197,31.01.2021,ADULT SOCIAL CARE,ACCORD HOUSING ASSOCIATION LTD#135,26/01/2021,954.92,6541-Domiciliary Care,THIRD PARTY PAYMENTS,PRIVATE CONTRACTOR,REVENUE
Walsall Council,http://opendatacommunities.org/id/metropolitan-district-council/walsall,WC122-198,31.01.2021,ADULT SOCIAL CARE,ACCORD HOUSING ASSOCIATION LTD#135,26/01/2021,868.80,6541-Domiciliary Care,THIRD PARTY PAYMENTS,PRIVATE CONTRACTOR,REVENUE
Walsall Council,http://opendatacommunities.org/id/metropolitan-district-council/walsall,WC122-199,31.01.2021,ADULT SOCIAL CARE,ACCORD HOUSING ASSOCIATION LTD#135,26/01/2021,334.12,6541-Domiciliary Care,THIRD PARTY PAYMENTS,PRIVATE CONTRACTOR,REVENUE
Walsall Council,http://opendatacommunities.org/id/metropolitan-district-council/walsall,WC122-200,31.01.2021,ADULT SOCIAL CARE,ACCORD HOUSING ASSOCIATION LTD#135,26/01/2021,909.92,6541-Domiciliary Care,THIRD PARTY PAYMENTS,PRIVATE CONTRACTOR,REVENUE
Walsall Council,http://opendatacommunities.org/id/metropolitan-district-council/walsall,WC122-201,31.01.2021,ADULT SOCIAL CARE,ACCORD HOUSING ASSOCIATION LTD#135,26/01/2021,488.36,6541-Domiciliary Care,THIRD PARTY PAYMENTS,PRIVATE CONTRACTOR,REVENUE
Walsall Council,http://opendatacommunities.org/id/metropolitan-district-council/walsall,WC122-202,31.01.2021,ADULT SOCIAL CARE,ACCORD HOUSING ASSOCIATION LTD#135,26/01/2021,"1,079.40",6541-Domiciliary Care,THIRD PARTY PAYMENTS,PRIVATE CONTRACTOR,REVENUE
Walsall Council,http://opendatacommunities.org/id/metropolitan-district-council/walsall,WC122-203,31.01.2021,ADULT SOCIAL CARE,ACCORD HOUSING ASSOCIATION LTD#135,26/01/2021,349.52,6541-Domiciliary Care,THIRD PARTY PAYMENTS,PRIVATE CONTRACTOR,REVENUE
Walsall Council,http://opendatacommunities.org/id/metropolitan-district-council/walsall,WC122-204,31.01.2021,ADULT SOCIAL CARE,ACCORD HOUSING ASSOCIATION LTD#135,26/01/2021,642.52,6541-Domiciliary Care,THIRD PARTY PAYMENTS,PRIVATE CONTRACTOR,REVENUE
Walsall Council,http://opendatacommunities.org/id/metropolitan-district-council/walsall,WC122-205,31.01.2021,ADULT SOCIAL CARE,ACCORD HOUSING ASSOCIATION LTD#135,26/01/2021,390.72,6541-Domiciliary Care,THIRD PARTY PAYMENTS,PRIVATE CONTRACTOR,REVENUE
Walsall Council,http://opendatacommunities.org/id/metropolitan-district-council/walsall,WC122-206,31.01.2021,ADULT SOCIAL CARE,ACCORD HOUSING ASSOCIATION LTD#135,26/01/2021,"2,136.16",6541-Domiciliary Care,THIRD PARTY PAYMENTS,PRIVATE CONTRACTOR,REVENUE
Walsall Council,http://opendatacommunities.org/id/metropolitan-district-council/walsall,WC122-207,31.01.2021,ADULT SOCIAL CARE,ACCORD HOUSING ASSOCIATION LTD#135,26/01/2021,"1,987.91",6541-Domiciliary Care,THIRD PARTY PAYMENTS,PRIVATE CONTRACTOR,REVENUE
Walsall Council,http://opendatacommunities.org/id/metropolitan-district-council/walsall,WC122-208,31.01.2021,ADULT SOCIAL CARE,ACCORD HOUSING ASSOCIATION LTD#135,26/01/2021,380.36,6541-Community Supported Living/Supported Accommodation,THIRD PARTY PAYMENTS,PRIVATE CONTRACTOR,REVENUE
Walsall Council,http://opendatacommunities.org/id/metropolitan-district-council/walsall,WC122-209,31.01.2021,ADULT SOCIAL CARE,ACCORD HOUSING ASSOCIATION LTD#135,26/01/2021,"1,465.04",6541-Domiciliary Care,THIRD PARTY PAYMENTS,PRIVATE CONTRACTOR,REVENUE
Walsall Council,http://opendatacommunities.org/id/metropolitan-district-council/walsall,WC122-210,31.01.2021,ADULT SOCIAL CARE,ACCORD HOUSING ASSOCIATION LTD#135,26/01/2021,359.80,6541-Domiciliary Care,THIRD PARTY PAYMENTS,PRIVATE CONTRACTOR,REVENUE
Walsall Council,http://opendatacommunities.org/id/metropolitan-district-council/walsall,WC122-211,31.01.2021,ADULT SOCIAL CARE,ACCORD HOUSING ASSOCIATION LTD#135,26/01/2021,992.16,6541-Domiciliary Care,THIRD PARTY PAYMENTS,PRIVATE CONTRACTOR,REVENUE
Walsall Council,http://opendatacommunities.org/id/metropolitan-district-council/walsall,WC122-212,31.01.2021,ADULT SOCIAL CARE,ACCORD HOUSING ASSOCIATION LTD#135,26/01/2021,832.80,6541-Domiciliary Care,THIRD PARTY PAYMENTS,PRIVATE CONTRACTOR,REVENUE
Walsall Council,http://opendatacommunities.org/id/metropolitan-district-council/walsall,WC122-213,31.01.2021,ADULT SOCIAL CARE,ACCORD HOUSING ASSOCIATION LTD#135,26/01/2021,"1,439.20",6541-Domiciliary Care,THIRD PARTY PAYMENTS,PRIVATE CONTRACTOR,REVENUE
Walsall Council,http://opendatacommunities.org/id/metropolitan-district-council/walsall,WC122-214,31.01.2021,CHILDRENS,ACCORD HOUSING ASSOCIATION LTD#135,14/01/2021,"-1,068.40",6222-Rents,PREMISES,RENTS,REVENUE
Walsall Council,http://opendatacommunities.org/id/metropolitan-district-council/walsall,WC122-215,31.01.2021,CHILDRENS,ACCORD HOUSING ASSOCIATION LTD#135,14/01/2021,"1,068.40",6222-Rents,PREMISES,RENTS,REVENUE
Walsall Council,http://opendatacommunities.org/id/metropolitan-district-council/walsall,WC122-216,31.01.2021,CHILDRENS,ACCORD HOUSING ASSOCIATION LTD#135,14/01/2021,"1,068.40",6222-Accommodation and Related Costs-Assistance to S/S Clients,TRANSFER PAYMENTS,ADULT SOCIAL SERVICES CLIENT,REVENUE
Walsall Council,http://opendatacommunities.org/id/metropolitan-district-council/walsall,WC122-217,31.01.2021,ADULT SOCIAL CARE,ACE CARE AGENCY,13/01/2021,"3,495.85",6550-Professional Fees & Services,SUPPLIES & SERVICES,SERVICES,REVENUE
Walsall Council,http://opendatacommunities.org/id/metropolitan-district-council/walsall,WC122-218,31.01.2021,CHILDRENS,ACE CARS & MINIBUSES LTD,28/01/2021,"1,150.00",6241-Hire of Vehicle with Driver,TRANSPORT,DIRECT TRANSPORT COSTS,REVENUE
Walsall Council,http://opendatacommunities.org/id/metropolitan-district-council/walsall,WC122-219,31.01.2021,CHILDRENS,ACE CARS & MINIBUSES LTD,28/01/2021,"1,265.00",6241-Hire of Vehicle with Driver,TRANSPORT,DIRECT TRANSPORT COSTS,REVENUE
Walsall Council,http://opendatacommunities.org/id/metropolitan-district-council/walsall,WC122-220,31.01.2021,CHILDRENS,ACE CARS & MINIBUSES LTD,28/01/2021,880.00,6241-Hire of Vehicle with Driver,TRANSPORT,DIRECT TRANSPORT COSTS,REVENUE
Walsall Council,http://opendatacommunities.org/id/metropolitan-district-council/walsall,WC122-221,31.01.2021,CHILDRENS,ACE CARS & MINIBUSES LTD,28/01/2021,-974.00,6241-Hire of Vehicle with Driver,TRANSPORT,DIRECT TRANSPORT COSTS,REVENUE
Walsall Council,http://opendatacommunities.org/id/metropolitan-district-council/walsall,WC122-222,31.01.2021,CHILDRENS,ACE CARS & MINIBUSES LTD,28/01/2021,"1,380.00",6241-Hire of Vehicle with Driver,TRANSPORT,DIRECT TRANSPORT COSTS,REVENUE
Walsall Council,http://opendatacommunities.org/id/metropolitan-district-council/walsall,WC122-223,31.01.2021,CHILDRENS,ACE CARS & MINIBUSES LTD,28/01/2021,"1,035.00",6241-Hire of Vehicle with Driver,TRANSPORT,DIRECT TRANSPORT COSTS,REVENUE
Walsall Council,http://opendatacommunities.org/id/metropolitan-district-council/walsall,WC122-224,31.01.2021,CHILDRENS,ACE CARS & MINIBUSES LTD,28/01/2021,"1,265.00",6241-Hire of Vehicle with Driver,TRANSPORT,DIRECT TRANSPORT COSTS,REVENUE
Walsall Council,http://opendatacommunities.org/id/metropolitan-district-council/walsall,WC122-225,31.01.2021,CHILDRENS,ACE CARS & MINIBUSES LTD,28/01/2021,"1,375.00",6241-Hire of Vehicle with Driver,TRANSPORT,DIRECT TRANSPORT COSTS,REVENUE
Walsall Council,http://opendatacommunities.org/id/metropolitan-district-council/walsall,WC122-226,31.01.2021,CHILDRENS,ACE CARS & MINIBUSES LTD,28/01/2021,920.00,6241-Hire of Vehicle with Driver,TRANSPORT,DIRECT TRANSPORT COSTS,REVENUE
Walsall Council,http://opendatacommunities.org/id/metropolitan-district-council/walsall,WC122-227,31.01.2021,CHILDRENS,ACE CARS & MINIBUSES LTD,28/01/2021,"1,545.00",6241-Hire of Vehicle with Driver,TRANSPORT,DIRECT TRANSPORT COSTS,REVENUE
Walsall Council,http://opendatacommunities.org/id/metropolitan-district-council/walsall,WC122-228,31.01.2021,CHILDRENS,ACE CARS & MINIBUSES LTD,28/01/2021,"1,495.00",6241-Hire of Vehicle with Driver,TRANSPORT,DIRECT TRANSPORT COSTS,REVENUE
Walsall Council,http://opendatacommunities.org/id/metropolitan-district-council/walsall,WC122-229,31.01.2021,CHILDRENS,ACE CARS & MINIBUSES LTD,28/01/2021,440.00,6241-Hire of Vehicle with Driver,TRANSPORT,DIRECT TRANSPORT COSTS,REVENUE
Walsall Council,http://opendatacommunities.org/id/metropolitan-district-council/walsall,WC122-230,31.01.2021,CHILDRENS,ACE CARS & MINIBUSES LTD,28/01/2021,"1,035.00",6241-Hire of Vehicle with Driver,TRANSPORT,DIRECT TRANSPORT COSTS,REVENUE
Walsall Council,http://opendatacommunities.org/id/metropolitan-district-council/walsall,WC122-231,31.01.2021,CHILDRENS,ACE CARS & MINIBUSES LTD,28/01/2021,"1,544.00",6241-Hire of Vehicle with Driver,TRANSPORT,DIRECT TRANSPORT COSTS,REVENUE
Walsall Council,http://opendatacommunities.org/id/metropolitan-district-council/walsall,WC122-232,31.01.2021,CHILDRENS,ACE CARS & MINIBUSES LTD,28/01/2021,650.00,6241-Hire of Vehicle with Driver,TRANSPORT,DIRECT TRANSPORT COSTS,REVENUE
Walsall Council,http://opendatacommunities.org/id/metropolitan-district-council/walsall,WC122-233,31.01.2021,CHILDRENS,ACE CARS & MINIBUSES LTD,28/01/2021,785.00,6241-Hire of Vehicle with Driver,TRANSPORT,DIRECT TRANSPORT COSTS,REVENUE
Walsall Council,http://opendatacommunities.org/id/metropolitan-district-council/walsall,WC122-234,31.01.2021,CHILDRENS,ACE CARS & MINIBUSES LTD,28/01/2021,780.00,6241-Hire of Vehicle with Driver,TRANSPORT,DIRECT TRANSPORT COSTS,REVENUE
Walsall Council,http://opendatacommunities.org/id/metropolitan-district-council/walsall,WC122-235,31.01.2021,CHILDRENS,ACE CARS & MINIBUSES LTD,28/01/2021,"1,092.50",6241-Hire of Vehicle with Driver,TRANSPORT,DIRECT TRANSPORT COSTS,REVENUE
Walsall Council,http://opendatacommunities.org/id/metropolitan-district-council/walsall,WC122-236,31.01.2021,CHILDRENS,ACE CARS & MINIBUSES LTD,28/01/2021,"1,092.50",6241-Hire of Vehicle with Driver,TRANSPORT,DIRECT TRANSPORT COSTS,REVENUE
Walsall Council,http://opendatacommunities.org/id/metropolitan-district-council/walsall,WC122-237,31.01.2021,CHILDRENS,ACE CARS & MINIBUSES LTD,28/01/2021,"1,100.00",6241-Hire of Vehicle with Driver,TRANSPORT,DIRECT TRANSPORT COSTS,REVENUE
Walsall Council,http://opendatacommunities.org/id/metropolitan-district-council/walsall,WC122-238,31.01.2021,CHILDRENS,ACE CARS & MINIBUSES LTD,28/01/2021,974.00,6241-Hire of Vehicle with Driver,TRANSPORT,DIRECT TRANSPORT COSTS,REVENUE
Walsall Council,http://opendatacommunities.org/id/metropolitan-district-council/walsall,WC122-239,31.01.2021,CHILDRENS,ACE CARS & MINIBUSES LTD,28/01/2021,"1,875.00",6241-Hire of Vehicle with Driver,TRANSPORT,DIRECT TRANSPORT COSTS,REVENUE
Walsall Council,http://opendatacommunities.org/id/metropolitan-district-council/walsall,WC122-240,31.01.2021,CHILDRENS,ACE CARS & MINIBUSES LTD,28/01/2021,"1,154.25",6241-Hire of Vehicle with Driver,TRANSPORT,DIRECT TRANSPORT COSTS,REVENUE
Walsall Council,http://opendatacommunities.org/id/metropolitan-district-council/walsall,WC122-241,31.01.2021,CHILDRENS,ACE CARS & MINIBUSES LTD,28/01/2021,"1,545.00",6241-Hire of Vehicle with Driver,TRANSPORT,DIRECT TRANSPORT COSTS,REVENUE
Walsall Council,http://opendatacommunities.org/id/metropolitan-district-council/walsall,WC122-242,31.01.2021,CHILDRENS,ACE CARS & MINIBUSES LTD,28/01/2021,655.00,6241-Hire of Vehicle with Driver,TRANSPORT,DIRECT TRANSPORT COSTS,REVENUE
Walsall Council,http://opendatacommunities.org/id/metropolitan-district-council/walsall,WC122-243,31.01.2021,CHILDRENS,ACE CARS & MINIBUSES LTD,28/01/2021,"1,100.00",6241-Hire of Vehicle with Driver,TRANSPORT,DIRECT TRANSPORT COSTS,REVENUE
Walsall Council,http://opendatacommunities.org/id/metropolitan-district-council/walsall,WC122-244,31.01.2021,CHILDRENS,ACE CARS & MINIBUSES LTD,28/01/2021,"1,945.00",6241-Hire of Vehicle with Driver,TRANSPORT,DIRECT TRANSPORT COSTS,REVENUE
Walsall Council,http://opendatacommunities.org/id/metropolitan-district-council/walsall,WC122-245,31.01.2021,CHILDRENS,ACE CARS & MINIBUSES LTD,28/01/2021,500.00,6241-Hire of Vehicle with Driver,TRANSPORT,DIRECT TRANSPORT COSTS,REVENUE
Walsall Council,http://opendatacommunities.org/id/metropolitan-district-council/walsall,WC122-246,31.01.2021,CHILDRENS,ACE CARS & MINIBUSES LTD,28/01/2021,"1,655.00",6241-Hire of Vehicle with Driver,TRANSPORT,DIRECT TRANSPORT COSTS,REVENUE
Walsall Council,http://opendatacommunities.org/id/metropolitan-district-council/walsall,WC122-247,31.01.2021,CHILDRENS,ACE CARS & MINIBUSES LTD,28/01/2021,640.00,6241-Hire of Vehicle with Driver,TRANSPORT,DIRECT TRANSPORT COSTS,REVENUE
Walsall Council,http://opendatacommunities.org/id/metropolitan-district-council/walsall,WC122-248,31.01.2021,ADULT SOCIAL CARE,ACEPAY LTD (COTTAGE NUR HOME),15/01/2021,"2,396.00",6541-Nursing,THIRD PARTY PAYMENTS,PRIVATE CONTRACTOR,REVENUE
Walsall Council,http://opendatacommunities.org/id/metropolitan-district-council/walsall,WC122-249,31.01.2021,ADULT SOCIAL CARE,ACEPAY LTD (COTTAGE NUR HOME),15/01/2021,"2,396.00",6541-Nursing,THIRD PARTY PAYMENTS,PRIVATE CONTRACTOR,REVENUE
Walsall Council,http://opendatacommunities.org/id/metropolitan-district-council/walsall,WC122-250,31.01.2021,ADULT SOCIAL CARE,ACEPAY LTD (COTTAGE NUR HOME),15/01/2021,"2,396.00",6541-Nursing,THIRD PARTY PAYMENTS,PRIVATE CONTRACTOR,REVENUE
Walsall Council,http://opendatacommunities.org/id/metropolitan-district-council/walsall,WC122-251,31.01.2021,ADULT SOCIAL CARE,ACEPAY LTD (COTTAGE NUR HOME),15/01/2021,"2,396.00",6541-Nursing,THIRD PARTY PAYMENTS,PRIVATE CONTRACTOR,REVENUE
Walsall Council,http://opendatacommunities.org/id/metropolitan-district-council/walsall,WC122-252,31.01.2021,ADULT SOCIAL CARE,ACEPAY LTD (COTTAGE NUR HOME),15/01/2021,"2,396.00",6541-Nursing,THIRD PARTY PAYMENTS,PRIVATE CONTRACTOR,REVENUE
Walsall Council,http://opendatacommunities.org/id/metropolitan-district-council/walsall,WC122-253,31.01.2021,ADULT SOCIAL CARE,ACEPAY LTD (COTTAGE NUR HOME),15/01/2021,"2,396.00",6541-Nursing,THIRD PARTY PAYMENTS,PRIVATE CONTRACTOR,REVENUE
Walsall Council,http://opendatacommunities.org/id/metropolitan-district-council/walsall,WC122-254,31.01.2021,ADULT SOCIAL CARE,ACEPAY LTD (COTTAGE NUR HOME),15/01/2021,"2,396.00",6541-Nursing,THIRD PARTY PAYMENTS,PRIVATE CONTRACTOR,REVENUE
Walsall Council,http://opendatacommunities.org/id/metropolitan-district-council/walsall,WC122-255,31.01.2021,ADULT SOCIAL CARE,ACEPAY LTD (COTTAGE NUR HOME),15/01/2021,"2,396.00",6541-Nursing,THIRD PARTY PAYMENTS,PRIVATE CONTRACTOR,REVENUE
Walsall Council,http://opendatacommunities.org/id/metropolitan-district-council/walsall,WC122-256,31.01.2021,ADULT SOCIAL CARE,ACEPAY LTD (COTTAGE NUR HOME),15/01/2021,"2,044.00",6541-Residential,THIRD PARTY PAYMENTS,PRIVATE CONTRACTOR,REVENUE
Walsall Council,http://opendatacommunities.org/id/metropolitan-district-council/walsall,WC122-257,31.01.2021,ADULT SOCIAL CARE,ACEPAY LTD (COTTAGE NUR HOME),15/01/2021,"2,396.00",6541-Nursing,THIRD PARTY PAYMENTS,PRIVATE CONTRACTOR,REVENUE
Walsall Council,http://opendatacommunities.org/id/metropolitan-district-council/walsall,WC122-258,31.01.2021,ADULT SOCIAL CARE,ACEPAY LTD (COTTAGE NUR HOME),15/01/2021,"2,396.00",6541-Nursing,THIRD PARTY PAYMENTS,PRIVATE CONTRACTOR,REVENUE
Walsall Council,http://opendatacommunities.org/id/metropolitan-district-council/walsall,WC122-259,31.01.2021,ADULT SOCIAL CARE,ACEPAY LTD (COTTAGE NUR HOME),15/01/2021,"2,396.00",6541-Nursing,THIRD PARTY PAYMENTS,PRIVATE CONTRACTOR,REVENUE
Walsall Council,http://opendatacommunities.org/id/metropolitan-district-council/walsall,WC122-260,31.01.2021,ADULT SOCIAL CARE,ACEPAY LTD (COTTAGE NUR HOME),15/01/2021,"2,308.00",6541-Residential EMI,THIRD PARTY PAYMENTS,PRIVATE CONTRACTOR,REVENUE
Walsall Council,http://opendatacommunities.org/id/metropolitan-district-council/walsall,WC122-261,31.01.2021,ADULT SOCIAL CARE,ACEPAY LTD (COTTAGE NUR HOME),15/01/2021,"2,308.00",6541-Residential EMI,THIRD PARTY PAYMENTS,PRIVATE CONTRACTOR,REVENUE
Walsall Council,http://opendatacommunities.org/id/metropolitan-district-council/walsall,WC122-262,31.01.2021,ADULT SOCIAL CARE,ACEPAY LTD (COTTAGE NUR HOME),15/01/2021,"2,396.00",6541-Nursing,THIRD PARTY PAYMENTS,PRIVATE CONTRACTOR,REVENUE
Walsall Council,http://opendatacommunities.org/id/metropolitan-district-council/walsall,WC122-263,31.01.2021,ADULT SOCIAL CARE,ACEPAY LTD (COTTAGE NUR HOME),15/01/2021,"2,396.00",6541-Nursing,THIRD PARTY PAYMENTS,PRIVATE CONTRACTOR,REVENUE
Walsall Council,http://opendatacommunities.org/id/metropolitan-district-council/walsall,WC122-264,31.01.2021,ADULT SOCIAL CARE,ACEPAY LTD (COTTAGE NUR HOME),15/01/2021,"2,396.00",6541-Nursing,THIRD PARTY PAYMENTS,PRIVATE CONTRACTOR,REVENUE
Walsall Council,http://opendatacommunities.org/id/metropolitan-district-council/walsall,WC122-265,31.01.2021,ADULT SOCIAL CARE,ACEPAY LTD (COTTAGE NUR HOME),15/01/2021,"2,596.00",6541-Nursing,THIRD PARTY PAYMENTS,PRIVATE CONTRACTOR,REVENUE
Walsall Council,http://opendatacommunities.org/id/metropolitan-district-council/walsall,WC122-266,31.01.2021,ADULT SOCIAL CARE,ACEPAY LTD (COTTAGE NUR HOME),15/01/2021,"2,396.00",6541-Nursing,THIRD PARTY PAYMENTS,PRIVATE CONTRACTOR,REVENUE
Walsall Council,http://opendatacommunities.org/id/metropolitan-district-council/walsall,WC122-267,31.01.2021,ADULT SOCIAL CARE,ACEPAY LTD (COTTAGE NUR HOME),15/01/2021,855.71,6541-Nursing,THIRD PARTY PAYMENTS,PRIVATE CONTRACTOR,REVENUE
Walsall Council,http://opendatacommunities.org/id/metropolitan-district-council/walsall,WC122-268,31.01.2021,CHILDRENS,ACORN CARE & EDUCATION LTD (SALES),05/01/2021,"16,500.00",1220-Professional Fees & Services,SUPPLIES & SERVICES,SERVICES,REVENUE
Walsall Council,http://opendatacommunities.org/id/metropolitan-district-council/walsall,WC122-269,31.01.2021,CHILDRENS,ACORN CARE & EDUCATION LTD (SALES),05/01/2021,"19,883.33",1220-Professional Fees & Services,SUPPLIES & SERVICES,SERVICES,REVENUE
Walsall Council,http://opendatacommunities.org/id/metropolitan-district-council/walsall,WC122-270,31.01.2021,CHILDRENS,ACORN CARE & EDUCATION LTD (SALES),05/01/2021,"-14,456.67",1220-Professional Fees & Services,SUPPLIES & SERVICES,SERVICES,REVENUE
Walsall Council,http://opendatacommunities.org/id/metropolitan-district-council/walsall,WC122-271,31.01.2021,CHILDRENS,ACORN CARE & EDUCATION LTD (SALES),05/01/2021,"14,456.66",1220-Professional Fees & Services,SUPPLIES & SERVICES,SERVICES,REVENUE
Walsall Council,http://opendatacommunities.org/id/metropolitan-district-council/walsall,WC122-272,31.01.2021,CHILDRENS,ACORN CARE & EDUCATION LTD (SALES),05/01/2021,"14,456.67",1220-Professional Fees & Services,SUPPLIES & SERVICES,SERVICES,REVENUE
Walsall Council,http://opendatacommunities.org/id/metropolitan-district-council/walsall,WC122-273,31.01.2021,CHILDRENS,ACORN CARE & EDUCATION LTD (SALES),05/01/2021,"-14,456.67",1220-Professional Fees & Services,SUPPLIES & SERVICES,SERVICES,REVENUE
Walsall Council,http://opendatacommunities.org/id/metropolitan-district-council/walsall,WC122-274,31.01.2021,CHILDRENS,ACORN CARE & EDUCATION LTD (SALES),05/01/2021,"14,456.66",1220-Professional Fees & Services,SUPPLIES & SERVICES,SERVICES,REVENUE
Walsall Council,http://opendatacommunities.org/id/metropolitan-district-council/walsall,WC122-275,31.01.2021,CHILDRENS,ACORN CARE & EDUCATION LTD (SALES),05/01/2021,"14,456.67",1220-Professional Fees & Services,SUPPLIES & SERVICES,SERVICES,REVENUE
Walsall Council,http://opendatacommunities.org/id/metropolitan-district-council/walsall,WC122-276,31.01.2021,CHILDRENS,ACORN CARE & EDUCATION LTD (SALES),05/01/2021,"14,456.67",1220-Professional Fees & Services,SUPPLIES & SERVICES,SERVICES,REVENUE
Walsall Council,http://opendatacommunities.org/id/metropolitan-district-council/walsall,WC122-277,31.01.2021,CHILDRENS,ACORN CARE & EDUCATION LTD (SALES),05/01/2021,"14,053.33",1220-Professional Fees & Services,SUPPLIES & SERVICES,SERVICES,REVENUE
Walsall Council,http://opendatacommunities.org/id/metropolitan-district-council/walsall,WC122-278,31.01.2021,CHILDRENS,ACORN CARE & EDUCATION LTD (SALES),05/01/2021,"-17,302.00",1220-Professional Fees & Services,SUPPLIES & SERVICES,SERVICES,REVENUE
Walsall Council,http://opendatacommunities.org/id/metropolitan-district-council/walsall,WC122-279,31.01.2021,CHILDRENS,ACORN CARE & EDUCATION LTD (SALES),05/01/2021,"17,302.00",1220-Professional Fees & Services,SUPPLIES & SERVICES,SERVICES,REVENUE
Walsall Council,http://opendatacommunities.org/id/metropolitan-district-council/walsall,WC122-280,31.01.2021,CHILDRENS,ACORN CARE & EDUCATION LTD (SALES),05/01/2021,"17,302.00",1220-Professional Fees & Services,SUPPLIES & SERVICES,SERVICES,REVENUE
Walsall Council,http://opendatacommunities.org/id/metropolitan-district-council/walsall,WC122-281,31.01.2021,CHILDRENS,ACORN CARE & EDUCATION LTD (SALES),05/01/2021,"16,166.67",1220-Professional Fees & Services,SUPPLIES & SERVICES,SERVICES,REVENUE
Walsall Council,http://opendatacommunities.org/id/metropolitan-district-council/walsall,WC122-282,31.01.2021,CHILDRENS,ACORN CARE & EDUCATION LTD (SALES),05/01/2021,"16,789.47",1220-Professional Fees & Services,SUPPLIES & SERVICES,SERVICES,REVENUE
Walsall Council,http://opendatacommunities.org/id/metropolitan-district-council/walsall,WC122-283,31.01.2021,CHILDRENS,ACORN CARE & EDUCATION LTD (SALES),15/01/2021,"8,070.53",1220-Professional Fees & Services,SUPPLIES & SERVICES,SERVICES,REVENUE
Walsall Council,http://opendatacommunities.org/id/metropolitan-district-council/walsall,WC122-284,31.01.2021,CHILDRENS,ACORN CARE & EDUCATION LTD (SALES),15/01/2021,"6,859.95",1220-Professional Fees & Services,SUPPLIES & SERVICES,SERVICES,REVENUE
Walsall Council,http://opendatacommunities.org/id/metropolitan-district-council/walsall,WC122-285,31.01.2021,CHILDRENS,ACORN CARE & EDUCATION LTD (SALES),15/01/2021,"8,070.53",1220-Professional Fees & Services,SUPPLIES & SERVICES,SERVICES,REVENUE
Walsall Council,http://opendatacommunities.org/id/metropolitan-district-council/walsall,WC122-286,31.01.2021,CHILDRENS,ACORN FOSTERING SERVICES LTD,22/01/2021,"3,380.00",6223-Independent Foster Care-Oth Agency Provision,THIRD PARTY PAYMENTS,PRIVATE CONTRACTOR,REVENUE
Walsall Council,http://opendatacommunities.org/id/metropolitan-district-council/walsall,WC122-287,31.01.2021,ECONOMY & ENVIRONMENT,ACTION GRAPHICS & DISPLAY LTD,28/01/2021,323.00,6414-External Printing Services,SUPPLIES & SERVICES,PRINTING STATIONERY & GENERAL OFFICE,REVENUE
Walsall Council,http://opendatacommunities.org/id/metropolitan-district-council/walsall,WC122-288,31.01.2021,CHILDRENS,ACTIVE CARE SOLUTIONS LTD,22/01/2021,"4,540.38",6223-Independent Foster Care-Oth Agency Provision,THIRD PARTY PAYMENTS,PRIVATE CONTRACTOR,REVENUE
Walsall Council,http://opendatacommunities.org/id/metropolitan-district-council/walsall,WC122-289,31.01.2021,CHILDRENS,ACTIVE CARE SOLUTIONS LTD,22/01/2021,"2,596.36",6223-Independent Foster Care-Oth Agency Provision,THIRD PARTY PAYMENTS,PRIVATE CONTRACTOR,REVENUE
Walsall Council,http://opendatacommunities.org/id/metropolitan-district-council/walsall,WC122-290,31.01.2021,RESOURCES AND TRANSFORMATION,AD HOC PROPERTY MANAGEMENT LTD,19/01/2021,-400.00,6310-Repair & Maintenance of Furniture & Equipment,SUPPLIES & SERVICES,EQUIPMENT FURNITURE & MATERIALS,REVENUE
Walsall Council,http://opendatacommunities.org/id/metropolitan-district-council/walsall,WC122-291,31.01.2021,RESOURCES AND TRANSFORMATION,AD HOC PROPERTY MANAGEMENT LTD,19/01/2021,400.00,6310-Repair & Maintenance of Furniture & Equipment,SUPPLIES & SERVICES,EQUIPMENT FURNITURE & MATERIALS,REVENUE
Walsall Council,http://opendatacommunities.org/id/metropolitan-district-council/walsall,WC122-292,31.01.2021,RESOURCES AND TRANSFORMATION,AD HOC UK SECURITY LTD,27/01/2021,400.00,6310-Repair & Maintenance of Furniture & Equipment,SUPPLIES & SERVICES,EQUIPMENT FURNITURE & MATERIALS,REVENUE
Walsall Council,http://opendatacommunities.org/id/metropolitan-district-council/walsall,WC122-293,31.01.2021,ADULT SOCIAL CARE,REDACTED,06/01/2021,782.88,6541-Direct Payment,THIRD PARTY PAYMENTS,PRIVATE CONTRACTOR,REVENUE
Walsall Council,http://opendatacommunities.org/id/metropolitan-district-council/walsall,WC122-294,31.01.2021,CHILDRENS,REDACTED,08/01/2021,333.12,6223-Residents Orders,TRANSFER PAYMENTS,CHILDREN SOCIAL SERVICES CLIENT,REVENUE
Walsall Council,http://opendatacommunities.org/id/metropolitan-district-council/walsall,WC122-295,31.01.2021,CHILDRENS,REDACTED,08/01/2021,361.12,6223-Residents Orders,TRANSFER PAYMENTS,CHILDREN SOCIAL SERVICES CLIENT,REVENUE
Walsall Council,http://opendatacommunities.org/id/metropolitan-district-council/walsall,WC122-296,31.01.2021,ADULT SOCIAL CARE,REDACTED,06/01/2021,"2,083.20",6541-Direct Payment,THIRD PARTY PAYMENTS,PRIVATE CONTRACTOR,REVENUE
Walsall Council,http://opendatacommunities.org/id/metropolitan-district-council/walsall,WC122-297,31.01.2021,ADULT SOCIAL CARE,ADVANCE HEALTH CARE (UK) LTD,04/01/2021,439.47,6541-Domiciliary Care,THIRD PARTY PAYMENTS,PRIVATE CONTRACTOR,REVENUE
Walsall Council,http://opendatacommunities.org/id/metropolitan-district-council/walsall,WC122-298,31.01.2021,ADULT SOCIAL CARE,ADVANCE HEALTH CARE (UK) LTD,04/01/2021,593.88,6541-Domiciliary Care,THIRD PARTY PAYMENTS,PRIVATE CONTRACTOR,REVENUE
Walsall Council,http://opendatacommunities.org/id/metropolitan-district-council/walsall,WC122-299,31.01.2021,ADULT SOCIAL CARE,ADVANCE HEALTH CARE (UK) LTD,04/01/2021,485.73,6541-Domiciliary Care,THIRD PARTY PAYMENTS,PRIVATE CONTRACTOR,REVENUE
Walsall Council,http://opendatacommunities.org/id/metropolitan-district-council/walsall,WC122-300,31.01.2021,ADULT SOCIAL CARE,ADVANCE HEALTH CARE (UK) LTD,04/01/2021,863.52,6541-Domiciliary Care,THIRD PARTY PAYMENTS,PRIVATE CONTRACTOR,REVENUE
Walsall Council,http://opendatacommunities.org/id/metropolitan-district-council/walsall,WC122-301,31.01.2021,ADULT SOCIAL CARE,ADVANCE HEALTH CARE (UK) LTD,04/01/2021,323.82,6541-Domiciliary Care,THIRD PARTY PAYMENTS,PRIVATE CONTRACTOR,REVENUE
Walsall Council,http://opendatacommunities.org/id/metropolitan-district-council/walsall,WC122-302,31.01.2021,ADULT SOCIAL CARE,ADVANCE HEALTH CARE (UK) LTD,04/01/2021,377.79,6541-Domiciliary Care,THIRD PARTY PAYMENTS,PRIVATE CONTRACTOR,REVENUE
Walsall Council,http://opendatacommunities.org/id/metropolitan-district-council/walsall,WC122-303,31.01.2021,ADULT SOCIAL CARE,ADVANCE HEALTH CARE (UK) LTD,04/01/2021,323.82,6541-Domiciliary Care,THIRD PARTY PAYMENTS,PRIVATE CONTRACTOR,REVENUE
Walsall Council,http://opendatacommunities.org/id/metropolitan-district-council/walsall,WC122-304,31.01.2021,ADULT SOCIAL CARE,ADVANCE HEALTH CARE (UK) LTD,04/01/2021,701.61,6541-Domiciliary Care,THIRD PARTY PAYMENTS,PRIVATE CONTRACTOR,REVENUE
Walsall Council,http://opendatacommunities.org/id/metropolitan-district-council/walsall,WC122-305,31.01.2021,ADULT SOCIAL CARE,ADVANCE HEALTH CARE (UK) LTD,04/01/2021,431.76,6541-Domiciliary Care,THIRD PARTY PAYMENTS,PRIVATE CONTRACTOR,REVENUE
Walsall Council,http://opendatacommunities.org/id/metropolitan-district-council/walsall,WC122-306,31.01.2021,ADULT SOCIAL CARE,ADVANCE HEALTH CARE (UK) LTD,04/01/2021,485.80,6541-Domiciliary Care,THIRD PARTY PAYMENTS,PRIVATE CONTRACTOR,REVENUE
Walsall Council,http://opendatacommunities.org/id/metropolitan-district-council/walsall,WC122-307,31.01.2021,ADULT SOCIAL CARE,ADVANCE HEALTH CARE (UK) LTD,04/01/2021,501.15,6541-Domiciliary Care,THIRD PARTY PAYMENTS,PRIVATE CONTRACTOR,REVENUE
Walsall Council,http://opendatacommunities.org/id/metropolitan-district-council/walsall,WC122-308,31.01.2021,ADULT SOCIAL CARE,ADVANCE HEALTH CARE (UK) LTD,04/01/2021,431.76,6541-Domiciliary Care,THIRD PARTY PAYMENTS,PRIVATE CONTRACTOR,REVENUE
Walsall Council,http://opendatacommunities.org/id/metropolitan-district-council/walsall,WC122-309,31.01.2021,ADULT SOCIAL CARE,ADVANCE HEALTH CARE (UK) LTD,04/01/2021,377.79,6541-Domiciliary Care,THIRD PARTY PAYMENTS,PRIVATE CONTRACTOR,REVENUE
Walsall Council,http://opendatacommunities.org/id/metropolitan-district-council/walsall,WC122-310,31.01.2021,ADULT SOCIAL CARE,ADVANCE HEALTH CARE (UK) LTD,04/01/2021,485.73,6541-Domiciliary Care,THIRD PARTY PAYMENTS,PRIVATE CONTRACTOR,REVENUE
Walsall Council,http://opendatacommunities.org/id/metropolitan-district-council/walsall,WC122-311,31.01.2021,ADULT SOCIAL CARE,ADVANCE HEALTH CARE (UK) LTD,04/01/2021,431.76,6541-Domiciliary Care,THIRD PARTY PAYMENTS,PRIVATE CONTRACTOR,REVENUE
Walsall Council,http://opendatacommunities.org/id/metropolitan-district-council/walsall,WC122-312,31.01.2021,ADULT SOCIAL CARE,ADVANCE HEALTH CARE (UK) LTD,04/01/2021,485.73,6541-Domiciliary Care,THIRD PARTY PAYMENTS,PRIVATE CONTRACTOR,REVENUE
Walsall Council,http://opendatacommunities.org/id/metropolitan-district-council/walsall,WC122-313,31.01.2021,ADULT SOCIAL CARE,ADVANCE HEALTH CARE (UK) LTD,04/01/2021,755.58,6541-Domiciliary Care,THIRD PARTY PAYMENTS,PRIVATE CONTRACTOR,REVENUE
Walsall Council,http://opendatacommunities.org/id/metropolitan-district-council/walsall,WC122-314,31.01.2021,ADULT SOCIAL CARE,ADVANCE HEALTH CARE (UK) LTD,04/01/2021,377.79,6541-Domiciliary Care,THIRD PARTY PAYMENTS,PRIVATE CONTRACTOR,REVENUE
Walsall Council,http://opendatacommunities.org/id/metropolitan-district-council/walsall,WC122-315,31.01.2021,ADULT SOCIAL CARE,ADVANCE HEALTH CARE (UK) LTD,04/01/2021,431.76,6541-Domiciliary Care,THIRD PARTY PAYMENTS,PRIVATE CONTRACTOR,REVENUE
Walsall Council,http://opendatacommunities.org/id/metropolitan-district-council/walsall,WC122-316,31.01.2021,ADULT SOCIAL CARE,ADVANCE HEALTH CARE (UK) LTD,04/01/2021,431.76,6541-Domiciliary Care,THIRD PARTY PAYMENTS,PRIVATE CONTRACTOR,REVENUE
Walsall Council,http://opendatacommunities.org/id/metropolitan-district-council/walsall,WC122-317,31.01.2021,ADULT SOCIAL CARE,ADVANCE HEALTH CARE (UK) LTD,04/01/2021,359.80,6541-Domiciliary Care,THIRD PARTY PAYMENTS,PRIVATE CONTRACTOR,REVENUE
Walsall Council,http://opendatacommunities.org/id/metropolitan-district-council/walsall,WC122-318,31.01.2021,ADULT SOCIAL CARE,ADVANCE HEALTH CARE (UK) LTD,04/01/2021,462.60,6541-Domiciliary Care,THIRD PARTY PAYMENTS,PRIVATE CONTRACTOR,REVENUE
Walsall Council,http://opendatacommunities.org/id/metropolitan-district-council/walsall,WC122-319,31.01.2021,ADULT SOCIAL CARE,ADVANCE HEALTH CARE (UK) LTD,04/01/2021,524.28,6541-Domiciliary Care,THIRD PARTY PAYMENTS,PRIVATE CONTRACTOR,REVENUE
Walsall Council,http://opendatacommunities.org/id/metropolitan-district-council/walsall,WC122-320,31.01.2021,ADULT SOCIAL CARE,ADVANCE HEALTH CARE (UK) LTD,04/01/2021,-370.08,6541-Domiciliary Care,THIRD PARTY PAYMENTS,PRIVATE CONTRACTOR,REVENUE
Walsall Council,http://opendatacommunities.org/id/metropolitan-district-council/walsall,WC122-321,31.01.2021,ADULT SOCIAL CARE,ADVANCE HEALTH CARE (UK) LTD,04/01/2021,485.73,6541-Domiciliary Care,THIRD PARTY PAYMENTS,PRIVATE CONTRACTOR,REVENUE
Walsall Council,http://opendatacommunities.org/id/metropolitan-district-council/walsall,WC122-322,31.01.2021,ADULT SOCIAL CARE,ADVANCE HEALTH CARE (UK) LTD,04/01/2021,485.73,6541-Domiciliary Care,THIRD PARTY PAYMENTS,PRIVATE CONTRACTOR,REVENUE
Walsall Council,http://opendatacommunities.org/id/metropolitan-district-council/walsall,WC122-323,31.01.2021,ADULT SOCIAL CARE,ADVANCE HEALTH CARE (UK) LTD,04/01/2021,485.73,6541-Domiciliary Care,THIRD PARTY PAYMENTS,PRIVATE CONTRACTOR,REVENUE
Walsall Council,http://opendatacommunities.org/id/metropolitan-district-council/walsall,WC122-324,31.01.2021,ADULT SOCIAL CARE,ADVANCE HEALTH CARE (UK) LTD,04/01/2021,824.97,6541-Domiciliary Care,THIRD PARTY PAYMENTS,PRIVATE CONTRACTOR,REVENUE
Walsall Council,http://opendatacommunities.org/id/metropolitan-district-council/walsall,WC122-325,31.01.2021,ADULT SOCIAL CARE,ADVANCE HEALTH CARE (UK) LTD,04/01/2021,485.73,6541-Domiciliary Care,THIRD PARTY PAYMENTS,PRIVATE CONTRACTOR,REVENUE
Walsall Council,http://opendatacommunities.org/id/metropolitan-district-council/walsall,WC122-326,31.01.2021,ADULT SOCIAL CARE,ADVANCE HEALTH CARE (UK) LTD,04/01/2021,485.73,6541-Domiciliary Care,THIRD PARTY PAYMENTS,PRIVATE CONTRACTOR,REVENUE
Walsall Council,http://opendatacommunities.org/id/metropolitan-district-council/walsall,WC122-327,31.01.2021,ADULT SOCIAL CARE,ADVANCE HEALTH CARE (UK) LTD,04/01/2021,431.76,6541-Domiciliary Care,THIRD PARTY PAYMENTS,PRIVATE CONTRACTOR,REVENUE
Walsall Council,http://opendatacommunities.org/id/metropolitan-district-council/walsall,WC122-328,31.01.2021,ADULT SOCIAL CARE,ADVANCE HEALTH CARE (UK) LTD,04/01/2021,539.70,6541-Domiciliary Care,THIRD PARTY PAYMENTS,PRIVATE CONTRACTOR,REVENUE
Walsall Council,http://opendatacommunities.org/id/metropolitan-district-council/walsall,WC122-329,31.01.2021,ADULT SOCIAL CARE,ADVANCE HEALTH CARE (UK) LTD,04/01/2021,431.76,6541-Domiciliary Care,THIRD PARTY PAYMENTS,PRIVATE CONTRACTOR,REVENUE
Walsall Council,http://opendatacommunities.org/id/metropolitan-district-council/walsall,WC122-330,31.01.2021,ADULT SOCIAL CARE,ADVANCE HEALTH CARE (UK) LTD,04/01/2021,323.82,6541-Domiciliary Care,THIRD PARTY PAYMENTS,PRIVATE CONTRACTOR,REVENUE
Walsall Council,http://opendatacommunities.org/id/metropolitan-district-council/walsall,WC122-331,31.01.2021,ADULT SOCIAL CARE,ADVANCE HEALTH CARE (UK) LTD,04/01/2021,431.76,6541-Domiciliary Care,THIRD PARTY PAYMENTS,PRIVATE CONTRACTOR,REVENUE
Walsall Council,http://opendatacommunities.org/id/metropolitan-district-council/walsall,WC122-332,31.01.2021,ADULT SOCIAL CARE,ADVANCE HEALTH CARE (UK) LTD,04/01/2021,359.80,6541-Domiciliary Care,THIRD PARTY PAYMENTS,PRIVATE CONTRACTOR,REVENUE
Walsall Council,http://opendatacommunities.org/id/metropolitan-district-council/walsall,WC122-333,31.01.2021,ADULT SOCIAL CARE,ADVANCE HEALTH CARE (UK) LTD,04/01/2021,485.73,6541-Domiciliary Care,THIRD PARTY PAYMENTS,PRIVATE CONTRACTOR,REVENUE
Walsall Council,http://opendatacommunities.org/id/metropolitan-district-council/walsall,WC122-334,31.01.2021,ADULT SOCIAL CARE,ADVANCE HEALTH CARE (UK) LTD,04/01/2021,431.76,6541-Domiciliary Care,THIRD PARTY PAYMENTS,PRIVATE CONTRACTOR,REVENUE
Walsall Council,http://opendatacommunities.org/id/metropolitan-district-council/walsall,WC122-335,31.01.2021,ADULT SOCIAL CARE,ADVANCE HEALTH CARE (UK) LTD,04/01/2021,593.67,6541-Domiciliary Care,THIRD PARTY PAYMENTS,PRIVATE CONTRACTOR,REVENUE
Walsall Council,http://opendatacommunities.org/id/metropolitan-district-council/walsall,WC122-336,31.01.2021,ADULT SOCIAL CARE,ADVANCE HEALTH CARE (UK) LTD,04/01/2021,485.80,6541-Domiciliary Care,THIRD PARTY PAYMENTS,PRIVATE CONTRACTOR,REVENUE
Walsall Council,http://opendatacommunities.org/id/metropolitan-district-council/walsall,WC122-337,31.01.2021,ADULT SOCIAL CARE,ADVANCE HEALTH CARE (UK) LTD,04/01/2021,501.15,6541-Domiciliary Care,THIRD PARTY PAYMENTS,PRIVATE CONTRACTOR,REVENUE
Walsall Council,http://opendatacommunities.org/id/metropolitan-district-council/walsall,WC122-338,31.01.2021,ADULT SOCIAL CARE,ADVANCE HEALTH CARE (UK) LTD,04/01/2021,431.76,6541-Domiciliary Care,THIRD PARTY PAYMENTS,PRIVATE CONTRACTOR,REVENUE
Walsall Council,http://opendatacommunities.org/id/metropolitan-district-council/walsall,WC122-339,31.01.2021,ADULT SOCIAL CARE,ADVANCE HEALTH CARE (UK) LTD,04/01/2021,439.47,6541-Domiciliary Care,THIRD PARTY PAYMENTS,PRIVATE CONTRACTOR,REVENUE
Walsall Council,http://opendatacommunities.org/id/metropolitan-district-council/walsall,WC122-340,31.01.2021,ADULT SOCIAL CARE,ADVANCE HEALTH CARE (UK) LTD,04/01/2021,593.88,6541-Domiciliary Care,THIRD PARTY PAYMENTS,PRIVATE CONTRACTOR,REVENUE
Walsall Council,http://opendatacommunities.org/id/metropolitan-district-council/walsall,WC122-341,31.01.2021,ADULT SOCIAL CARE,ADVANCE HEALTH CARE (UK) LTD,04/01/2021,485.73,6541-Domiciliary Care,THIRD PARTY PAYMENTS,PRIVATE CONTRACTOR,REVENUE
Walsall Council,http://opendatacommunities.org/id/metropolitan-district-council/walsall,WC122-342,31.01.2021,ADULT SOCIAL CARE,ADVANCE HEALTH CARE (UK) LTD,04/01/2021,863.52,6541-Domiciliary Care,THIRD PARTY PAYMENTS,PRIVATE CONTRACTOR,REVENUE
Walsall Council,http://opendatacommunities.org/id/metropolitan-district-council/walsall,WC122-343,31.01.2021,ADULT SOCIAL CARE,ADVANCE HEALTH CARE (UK) LTD,04/01/2021,323.82,6541-Domiciliary Care,THIRD PARTY PAYMENTS,PRIVATE CONTRACTOR,REVENUE
Walsall Council,http://opendatacommunities.org/id/metropolitan-district-council/walsall,WC122-344,31.01.2021,ADULT SOCIAL CARE,ADVANCE HEALTH CARE (UK) LTD,04/01/2021,377.79,6541-Domiciliary Care,THIRD PARTY PAYMENTS,PRIVATE CONTRACTOR,REVENUE
Walsall Council,http://opendatacommunities.org/id/metropolitan-district-council/walsall,WC122-345,31.01.2021,ADULT SOCIAL CARE,ADVANCE HEALTH CARE (UK) LTD,04/01/2021,485.73,6541-Domiciliary Care,THIRD PARTY PAYMENTS,PRIVATE CONTRACTOR,REVENUE
Walsall Council,http://opendatacommunities.org/id/metropolitan-district-council/walsall,WC122-346,31.01.2021,ADULT SOCIAL CARE,ADVANCE HEALTH CARE (UK) LTD,04/01/2021,824.97,6541-Domiciliary Care,THIRD PARTY PAYMENTS,PRIVATE CONTRACTOR,REVENUE
Walsall Council,http://opendatacommunities.org/id/metropolitan-district-council/walsall,WC122-347,31.01.2021,ADULT SOCIAL CARE,ADVANCE HEALTH CARE (UK) LTD,04/01/2021,485.73,6541-Domiciliary Care,THIRD PARTY PAYMENTS,PRIVATE CONTRACTOR,REVENUE
Walsall Council,http://opendatacommunities.org/id/metropolitan-district-council/walsall,WC122-348,31.01.2021,ADULT SOCIAL CARE,ADVANCE HEALTH CARE (UK) LTD,04/01/2021,485.73,6541-Domiciliary Care,THIRD PARTY PAYMENTS,PRIVATE CONTRACTOR,REVENUE
Walsall Council,http://opendatacommunities.org/id/metropolitan-district-council/walsall,WC122-349,31.01.2021,ADULT SOCIAL CARE,ADVANCE HEALTH CARE (UK) LTD,04/01/2021,431.76,6541-Domiciliary Care,THIRD PARTY PAYMENTS,PRIVATE CONTRACTOR,REVENUE
Walsall Council,http://opendatacommunities.org/id/metropolitan-district-council/walsall,WC122-350,31.01.2021,ADULT SOCIAL CARE,ADVANCE HEALTH CARE (UK) LTD,04/01/2021,377.79,6541-Domiciliary Care,THIRD PARTY PAYMENTS,PRIVATE CONTRACTOR,REVENUE
Walsall Council,http://opendatacommunities.org/id/metropolitan-district-council/walsall,WC122-351,31.01.2021,ADULT SOCIAL CARE,ADVANCE HEALTH CARE (UK) LTD,04/01/2021,431.76,6541-Domiciliary Care,THIRD PARTY PAYMENTS,PRIVATE CONTRACTOR,REVENUE
Walsall Council,http://opendatacommunities.org/id/metropolitan-district-council/walsall,WC122-352,31.01.2021,ADULT SOCIAL CARE,ADVANCE HEALTH CARE (UK) LTD,04/01/2021,539.70,6541-Domiciliary Care,THIRD PARTY PAYMENTS,PRIVATE CONTRACTOR,REVENUE
Walsall Council,http://opendatacommunities.org/id/metropolitan-district-council/walsall,WC122-353,31.01.2021,ADULT SOCIAL CARE,ADVANCE HEALTH CARE (UK) LTD,04/01/2021,431.76,6541-Domiciliary Care,THIRD PARTY PAYMENTS,PRIVATE CONTRACTOR,REVENUE
Walsall Council,http://opendatacommunities.org/id/metropolitan-district-council/walsall,WC122-354,31.01.2021,ADULT SOCIAL CARE,ADVANCE HEALTH CARE (UK) LTD,04/01/2021,323.82,6541-Domiciliary Care,THIRD PARTY PAYMENTS,PRIVATE CONTRACTOR,REVENUE
Walsall Council,http://opendatacommunities.org/id/metropolitan-district-council/walsall,WC122-355,31.01.2021,ADULT SOCIAL CARE,ADVANCE HEALTH CARE (UK) LTD,04/01/2021,431.76,6541-Domiciliary Care,THIRD PARTY PAYMENTS,PRIVATE CONTRACTOR,REVENUE
Walsall Council,http://opendatacommunities.org/id/metropolitan-district-council/walsall,WC122-356,31.01.2021,ADULT SOCIAL CARE,ADVANCE HEALTH CARE (UK) LTD,04/01/2021,359.80,6541-Domiciliary Care,THIRD PARTY PAYMENTS,PRIVATE CONTRACTOR,REVENUE
Walsall Council,http://opendatacommunities.org/id/metropolitan-district-council/walsall,WC122-357,31.01.2021,ADULT SOCIAL CARE,ADVANCE HEALTH CARE (UK) LTD,04/01/2021,485.73,6541-Domiciliary Care,THIRD PARTY PAYMENTS,PRIVATE CONTRACTOR,REVENUE
Walsall Council,http://opendatacommunities.org/id/metropolitan-district-council/walsall,WC122-358,31.01.2021,ADULT SOCIAL CARE,ADVANCE HEALTH CARE (UK) LTD,04/01/2021,485.73,6541-Domiciliary Care,THIRD PARTY PAYMENTS,PRIVATE CONTRACTOR,REVENUE
Walsall Council,http://opendatacommunities.org/id/metropolitan-district-council/walsall,WC122-359,31.01.2021,ADULT SOCIAL CARE,ADVANCE HEALTH CARE (UK) LTD,04/01/2021,462.60,6541-Domiciliary Care,THIRD PARTY PAYMENTS,PRIVATE CONTRACTOR,REVENUE
Walsall Council,http://opendatacommunities.org/id/metropolitan-district-council/walsall,WC122-360,31.01.2021,ADULT SOCIAL CARE,ADVANCE HEALTH CARE (UK) LTD,04/01/2021,524.28,6541-Domiciliary Care,THIRD PARTY PAYMENTS,PRIVATE CONTRACTOR,REVENUE
Walsall Council,http://opendatacommunities.org/id/metropolitan-district-council/walsall,WC122-361,31.01.2021,ADULT SOCIAL CARE,ADVANCE HEALTH CARE (UK) LTD,04/01/2021,485.73,6541-Domiciliary Care,THIRD PARTY PAYMENTS,PRIVATE CONTRACTOR,REVENUE
Walsall Council,http://opendatacommunities.org/id/metropolitan-district-council/walsall,WC122-362,31.01.2021,ADULT SOCIAL CARE,ADVANCE HEALTH CARE (UK) LTD,04/01/2021,323.82,6541-Domiciliary Care,THIRD PARTY PAYMENTS,PRIVATE CONTRACTOR,REVENUE
Walsall Council,http://opendatacommunities.org/id/metropolitan-district-council/walsall,WC122-363,31.01.2021,ADULT SOCIAL CARE,ADVANCE HEALTH CARE (UK) LTD,04/01/2021,701.61,6541-Domiciliary Care,THIRD PARTY PAYMENTS,PRIVATE CONTRACTOR,REVENUE
Walsall Council,http://opendatacommunities.org/id/metropolitan-district-council/walsall,WC122-364,31.01.2021,ADULT SOCIAL CARE,ADVANCE HEALTH CARE (UK) LTD,04/01/2021,431.76,6541-Domiciliary Care,THIRD PARTY PAYMENTS,PRIVATE CONTRACTOR,REVENUE
Walsall Council,http://opendatacommunities.org/id/metropolitan-district-council/walsall,WC122-365,31.01.2021,ADULT SOCIAL CARE,ADVANCE HEALTH CARE (UK) LTD,04/01/2021,431.76,6541-Domiciliary Care,THIRD PARTY PAYMENTS,PRIVATE CONTRACTOR,REVENUE
Walsall Council,http://opendatacommunities.org/id/metropolitan-district-council/walsall,WC122-366,31.01.2021,ADULT SOCIAL CARE,ADVANCE HEALTH CARE (UK) LTD,04/01/2021,359.80,6541-Domiciliary Care,THIRD PARTY PAYMENTS,PRIVATE CONTRACTOR,REVENUE
Walsall Council,http://opendatacommunities.org/id/metropolitan-district-council/walsall,WC122-367,31.01.2021,ADULT SOCIAL CARE,ADVANCE HEALTH CARE (UK) LTD,04/01/2021,431.76,6541-Domiciliary Care,THIRD PARTY PAYMENTS,PRIVATE CONTRACTOR,REVENUE
Walsall Council,http://opendatacommunities.org/id/metropolitan-district-council/walsall,WC122-368,31.01.2021,ADULT SOCIAL CARE,ADVANCE HEALTH CARE (UK) LTD,04/01/2021,485.73,6541-Domiciliary Care,THIRD PARTY PAYMENTS,PRIVATE CONTRACTOR,REVENUE
Walsall Council,http://opendatacommunities.org/id/metropolitan-district-council/walsall,WC122-369,31.01.2021,ADULT SOCIAL CARE,ADVANCE HEALTH CARE (UK) LTD,04/01/2021,755.58,6541-Domiciliary Care,THIRD PARTY PAYMENTS,PRIVATE CONTRACTOR,REVENUE
Walsall Council,http://opendatacommunities.org/id/metropolitan-district-council/walsall,WC122-370,31.01.2021,ADULT SOCIAL CARE,ADVANCE HEALTH CARE (UK) LTD,04/01/2021,400.92,6541-Domiciliary Care,THIRD PARTY PAYMENTS,PRIVATE CONTRACTOR,REVENUE
Walsall Council,http://opendatacommunities.org/id/metropolitan-district-council/walsall,WC122-371,31.01.2021,ADULT SOCIAL CARE,ADVANCE HEALTH CARE (UK) LTD,04/01/2021,377.79,6541-Domiciliary Care,THIRD PARTY PAYMENTS,PRIVATE CONTRACTOR,REVENUE
Walsall Council,http://opendatacommunities.org/id/metropolitan-district-council/walsall,WC122-372,31.01.2021,ADULT SOCIAL CARE,ADVANCE HEALTH CARE (UK) LTD,04/01/2021,485.73,6541-Domiciliary Care,THIRD PARTY PAYMENTS,PRIVATE CONTRACTOR,REVENUE
Walsall Council,http://opendatacommunities.org/id/metropolitan-district-council/walsall,WC122-373,31.01.2021,ADULT SOCIAL CARE,ADVANCE HEALTH CARE (UK) LTD,04/01/2021,431.76,6541-Domiciliary Care,THIRD PARTY PAYMENTS,PRIVATE CONTRACTOR,REVENUE
Walsall Council,http://opendatacommunities.org/id/metropolitan-district-council/walsall,WC122-374,31.01.2021,ADULT SOCIAL CARE,ADVANCE HEALTH CARE (UK) LTD,15/01/2021,439.47,6541-Domiciliary Care,THIRD PARTY PAYMENTS,PRIVATE CONTRACTOR,REVENUE
Walsall Council,http://opendatacommunities.org/id/metropolitan-district-council/walsall,WC122-375,31.01.2021,ADULT SOCIAL CARE,ADVANCE HEALTH CARE (UK) LTD,15/01/2021,593.88,6541-Domiciliary Care,THIRD PARTY PAYMENTS,PRIVATE CONTRACTOR,REVENUE
Walsall Council,http://opendatacommunities.org/id/metropolitan-district-council/walsall,WC122-376,31.01.2021,ADULT SOCIAL CARE,ADVANCE HEALTH CARE (UK) LTD,15/01/2021,485.73,6541-Domiciliary Care,THIRD PARTY PAYMENTS,PRIVATE CONTRACTOR,REVENUE
Walsall Council,http://opendatacommunities.org/id/metropolitan-district-council/walsall,WC122-377,31.01.2021,ADULT SOCIAL CARE,ADVANCE HEALTH CARE (UK) LTD,15/01/2021,863.52,6541-Domiciliary Care,THIRD PARTY PAYMENTS,PRIVATE CONTRACTOR,REVENUE
Walsall Council,http://opendatacommunities.org/id/metropolitan-district-council/walsall,WC122-378,31.01.2021,ADULT SOCIAL CARE,ADVANCE HEALTH CARE (UK) LTD,15/01/2021,323.82,6541-Domiciliary Care,THIRD PARTY PAYMENTS,PRIVATE CONTRACTOR,REVENUE
Walsall Council,http://opendatacommunities.org/id/metropolitan-district-council/walsall,WC122-379,31.01.2021,ADULT SOCIAL CARE,ADVANCE HEALTH CARE (UK) LTD,15/01/2021,377.79,6541-Domiciliary Care,THIRD PARTY PAYMENTS,PRIVATE CONTRACTOR,REVENUE
Walsall Council,http://opendatacommunities.org/id/metropolitan-district-council/walsall,WC122-380,31.01.2021,ADULT SOCIAL CARE,ADVANCE HEALTH CARE (UK) LTD,15/01/2021,485.73,6541-Domiciliary Care,THIRD PARTY PAYMENTS,PRIVATE CONTRACTOR,REVENUE
Walsall Council,http://opendatacommunities.org/id/metropolitan-district-council/walsall,WC122-381,31.01.2021,ADULT SOCIAL CARE,ADVANCE HEALTH CARE (UK) LTD,15/01/2021,824.97,6541-Domiciliary Care,THIRD PARTY PAYMENTS,PRIVATE CONTRACTOR,REVENUE
Walsall Council,http://opendatacommunities.org/id/metropolitan-district-council/walsall,WC122-382,31.01.2021,ADULT SOCIAL CARE,ADVANCE HEALTH CARE (UK) LTD,15/01/2021,485.73,6541-Domiciliary Care,THIRD PARTY PAYMENTS,PRIVATE CONTRACTOR,REVENUE
Walsall Council,http://opendatacommunities.org/id/metropolitan-district-council/walsall,WC122-383,31.01.2021,ADULT SOCIAL CARE,ADVANCE HEALTH CARE (UK) LTD,15/01/2021,485.73,6541-Domiciliary Care,THIRD PARTY PAYMENTS,PRIVATE CONTRACTOR,REVENUE
Walsall Council,http://opendatacommunities.org/id/metropolitan-district-council/walsall,WC122-384,31.01.2021,ADULT SOCIAL CARE,ADVANCE HEALTH CARE (UK) LTD,15/01/2021,431.76,6541-Domiciliary Care,THIRD PARTY PAYMENTS,PRIVATE CONTRACTOR,REVENUE
Walsall Council,http://opendatacommunities.org/id/metropolitan-district-council/walsall,WC122-385,31.01.2021,ADULT SOCIAL CARE,ADVANCE HEALTH CARE (UK) LTD,15/01/2021,485.80,6541-Domiciliary Care,THIRD PARTY PAYMENTS,PRIVATE CONTRACTOR,REVENUE
Walsall Council,http://opendatacommunities.org/id/metropolitan-district-council/walsall,WC122-386,31.01.2021,ADULT SOCIAL CARE,ADVANCE HEALTH CARE (UK) LTD,15/01/2021,501.15,6541-Domiciliary Care,THIRD PARTY PAYMENTS,PRIVATE CONTRACTOR,REVENUE
Walsall Council,http://opendatacommunities.org/id/metropolitan-district-council/walsall,WC122-387,31.01.2021,ADULT SOCIAL CARE,ADVANCE HEALTH CARE (UK) LTD,15/01/2021,431.76,6541-Domiciliary Care,THIRD PARTY PAYMENTS,PRIVATE CONTRACTOR,REVENUE
Walsall Council,http://opendatacommunities.org/id/metropolitan-district-council/walsall,WC122-388,31.01.2021,ADULT SOCIAL CARE,ADVANCE HEALTH CARE (UK) LTD,15/01/2021,539.70,6541-Domiciliary Care,THIRD PARTY PAYMENTS,PRIVATE CONTRACTOR,REVENUE
Walsall Council,http://opendatacommunities.org/id/metropolitan-district-council/walsall,WC122-389,31.01.2021,ADULT SOCIAL CARE,ADVANCE HEALTH CARE (UK) LTD,15/01/2021,431.76,6541-Domiciliary Care,THIRD PARTY PAYMENTS,PRIVATE CONTRACTOR,REVENUE
Walsall Council,http://opendatacommunities.org/id/metropolitan-district-council/walsall,WC122-390,31.01.2021,ADULT SOCIAL CARE,ADVANCE HEALTH CARE (UK) LTD,15/01/2021,323.82,6541-Domiciliary Care,THIRD PARTY PAYMENTS,PRIVATE CONTRACTOR,REVENUE
Walsall Council,http://opendatacommunities.org/id/metropolitan-district-council/walsall,WC122-391,31.01.2021,ADULT SOCIAL CARE,ADVANCE HEALTH CARE (UK) LTD,15/01/2021,377.79,6541-Domiciliary Care,THIRD PARTY PAYMENTS,PRIVATE CONTRACTOR,REVENUE
Walsall Council,http://opendatacommunities.org/id/metropolitan-district-council/walsall,WC122-392,31.01.2021,ADULT SOCIAL CARE,ADVANCE HEALTH CARE (UK) LTD,15/01/2021,431.76,6541-Domiciliary Care,THIRD PARTY PAYMENTS,PRIVATE CONTRACTOR,REVENUE
Walsall Council,http://opendatacommunities.org/id/metropolitan-district-council/walsall,WC122-393,31.01.2021,ADULT SOCIAL CARE,ADVANCE HEALTH CARE (UK) LTD,15/01/2021,359.80,6541-Domiciliary Care,THIRD PARTY PAYMENTS,PRIVATE CONTRACTOR,REVENUE
Walsall Council,http://opendatacommunities.org/id/metropolitan-district-council/walsall,WC122-394,31.01.2021,ADULT SOCIAL CARE,ADVANCE HEALTH CARE (UK) LTD,15/01/2021,431.76,6541-Domiciliary Care,THIRD PARTY PAYMENTS,PRIVATE CONTRACTOR,REVENUE
Walsall Council,http://opendatacommunities.org/id/metropolitan-district-council/walsall,WC122-395,31.01.2021,ADULT SOCIAL CARE,ADVANCE HEALTH CARE (UK) LTD,15/01/2021,359.80,6541-Domiciliary Care,THIRD PARTY PAYMENTS,PRIVATE CONTRACTOR,REVENUE
Walsall Council,http://opendatacommunities.org/id/metropolitan-district-council/walsall,WC122-396,31.01.2021,ADULT SOCIAL CARE,ADVANCE HEALTH CARE (UK) LTD,15/01/2021,431.76,6541-Domiciliary Care,THIRD PARTY PAYMENTS,PRIVATE CONTRACTOR,REVENUE
Walsall Council,http://opendatacommunities.org/id/metropolitan-district-council/walsall,WC122-397,31.01.2021,ADULT SOCIAL CARE,ADVANCE HEALTH CARE (UK) LTD,15/01/2021,462.60,6541-Domiciliary Care,THIRD PARTY PAYMENTS,PRIVATE CONTRACTOR,REVENUE
Walsall Council,http://opendatacommunities.org/id/metropolitan-district-council/walsall,WC122-398,31.01.2021,ADULT SOCIAL CARE,ADVANCE HEALTH CARE (UK) LTD,15/01/2021,524.28,6541-Domiciliary Care,THIRD PARTY PAYMENTS,PRIVATE CONTRACTOR,REVENUE
Walsall Council,http://opendatacommunities.org/id/metropolitan-district-council/walsall,WC122-399,31.01.2021,ADULT SOCIAL CARE,ADVANCE HEALTH CARE (UK) LTD,15/01/2021,485.73,6541-Domiciliary Care,THIRD PARTY PAYMENTS,PRIVATE CONTRACTOR,REVENUE
Walsall Council,http://opendatacommunities.org/id/metropolitan-district-council/walsall,WC122-400,31.01.2021,ADULT SOCIAL CARE,ADVANCE HEALTH CARE (UK) LTD,15/01/2021,323.82,6541-Domiciliary Care,THIRD PARTY PAYMENTS,PRIVATE CONTRACTOR,REVENUE
Walsall Council,http://opendatacommunities.org/id/metropolitan-district-council/walsall,WC122-401,31.01.2021,ADULT SOCIAL CARE,ADVANCE HEALTH CARE (UK) LTD,15/01/2021,701.61,6541-Domiciliary Care,THIRD PARTY PAYMENTS,PRIVATE CONTRACTOR,REVENUE
Walsall Council,http://opendatacommunities.org/id/metropolitan-district-council/walsall,WC122-402,31.01.2021,ADULT SOCIAL CARE,ADVANCE HEALTH CARE (UK) LTD,15/01/2021,431.76,6541-Domiciliary Care,THIRD PARTY PAYMENTS,PRIVATE CONTRACTOR,REVENUE
Walsall Council,http://opendatacommunities.org/id/metropolitan-district-council/walsall,WC122-403,31.01.2021,ADULT SOCIAL CARE,ADVANCE HEALTH CARE (UK) LTD,15/01/2021,377.79,6541-Domiciliary Care,THIRD PARTY PAYMENTS,PRIVATE CONTRACTOR,REVENUE
Walsall Council,http://opendatacommunities.org/id/metropolitan-district-council/walsall,WC122-404,31.01.2021,ADULT SOCIAL CARE,ADVANCE HEALTH CARE (UK) LTD,15/01/2021,485.73,6541-Domiciliary Care,THIRD PARTY PAYMENTS,PRIVATE CONTRACTOR,REVENUE
Walsall Council,http://opendatacommunities.org/id/metropolitan-district-council/walsall,WC122-405,31.01.2021,ADULT SOCIAL CARE,ADVANCE HEALTH CARE (UK) LTD,15/01/2021,485.73,6541-Domiciliary Care,THIRD PARTY PAYMENTS,PRIVATE CONTRACTOR,REVENUE
Walsall Council,http://opendatacommunities.org/id/metropolitan-district-council/walsall,WC122-406,31.01.2021,ADULT SOCIAL CARE,ADVANCE HEALTH CARE (UK) LTD,15/01/2021,485.73,6541-Domiciliary Care,THIRD PARTY PAYMENTS,PRIVATE CONTRACTOR,REVENUE
Walsall Council,http://opendatacommunities.org/id/metropolitan-district-council/walsall,WC122-407,31.01.2021,ADULT SOCIAL CARE,ADVANCE HEALTH CARE (UK) LTD,15/01/2021,-308.40,6541-Domiciliary Care,THIRD PARTY PAYMENTS,PRIVATE CONTRACTOR,REVENUE
Walsall Council,http://opendatacommunities.org/id/metropolitan-district-council/walsall,WC122-408,31.01.2021,ADULT SOCIAL CARE,ADVANCE HEALTH CARE (UK) LTD,15/01/2021,431.76,6541-Domiciliary Care,THIRD PARTY PAYMENTS,PRIVATE CONTRACTOR,REVENUE
Walsall Council,http://opendatacommunities.org/id/metropolitan-district-council/walsall,WC122-409,31.01.2021,ADULT SOCIAL CARE,ADVANCE HEALTH CARE (UK) LTD,15/01/2021,485.73,6541-Domiciliary Care,THIRD PARTY PAYMENTS,PRIVATE CONTRACTOR,REVENUE
Walsall Council,http://opendatacommunities.org/id/metropolitan-district-council/walsall,WC122-410,31.01.2021,ADULT SOCIAL CARE,ADVANCE HEALTH CARE (UK) LTD,15/01/2021,755.58,6541-Domiciliary Care,THIRD PARTY PAYMENTS,PRIVATE CONTRACTOR,REVENUE
Walsall Council,http://opendatacommunities.org/id/metropolitan-district-council/walsall,WC122-411,31.01.2021,ADULT SOCIAL CARE,ADVANCE HEALTH CARE (UK) LTD,15/01/2021,431.76,6541-Domiciliary Care,THIRD PARTY PAYMENTS,PRIVATE CONTRACTOR,REVENUE
Walsall Council,http://opendatacommunities.org/id/metropolitan-district-council/walsall,WC122-412,31.01.2021,ADULT SOCIAL CARE,ADVANCE HEALTH CARE (UK) LTD,15/01/2021,431.76,6541-Domiciliary Care,THIRD PARTY PAYMENTS,PRIVATE CONTRACTOR,REVENUE
Walsall Council,http://opendatacommunities.org/id/metropolitan-district-council/walsall,WC122-413,31.01.2021,ADULT SOCIAL CARE,ADVANCE HEALTH CARE (UK) LTD,15/01/2021,359.80,6541-Domiciliary Care,THIRD PARTY PAYMENTS,PRIVATE CONTRACTOR,REVENUE
Walsall Council,http://opendatacommunities.org/id/metropolitan-district-council/walsall,WC122-414,31.01.2021,ADULT SOCIAL CARE,ADVANCE HEALTH CARE (UK) LTD,15/01/2021,439.47,6541-Domiciliary Care,THIRD PARTY PAYMENTS,PRIVATE CONTRACTOR,REVENUE
Walsall Council,http://opendatacommunities.org/id/metropolitan-district-council/walsall,WC122-415,31.01.2021,ADULT SOCIAL CARE,ADVANCE HEALTH CARE (UK) LTD,15/01/2021,593.88,6541-Domiciliary Care,THIRD PARTY PAYMENTS,PRIVATE CONTRACTOR,REVENUE
Walsall Council,http://opendatacommunities.org/id/metropolitan-district-council/walsall,WC122-416,31.01.2021,ADULT SOCIAL CARE,ADVANCE HEALTH CARE (UK) LTD,15/01/2021,485.73,6541-Domiciliary Care,THIRD PARTY PAYMENTS,PRIVATE CONTRACTOR,REVENUE
Walsall Council,http://opendatacommunities.org/id/metropolitan-district-council/walsall,WC122-417,31.01.2021,ADULT SOCIAL CARE,ADVANCE HEALTH CARE (UK) LTD,15/01/2021,863.52,6541-Domiciliary Care,THIRD PARTY PAYMENTS,PRIVATE CONTRACTOR,REVENUE
Walsall Council,http://opendatacommunities.org/id/metropolitan-district-council/walsall,WC122-418,31.01.2021,ADULT SOCIAL CARE,ADVANCE HEALTH CARE (UK) LTD,15/01/2021,323.82,6541-Domiciliary Care,THIRD PARTY PAYMENTS,PRIVATE CONTRACTOR,REVENUE
Walsall Council,http://opendatacommunities.org/id/metropolitan-district-council/walsall,WC122-419,31.01.2021,ADULT SOCIAL CARE,ADVANCE HEALTH CARE (UK) LTD,15/01/2021,377.79,6541-Domiciliary Care,THIRD PARTY PAYMENTS,PRIVATE CONTRACTOR,REVENUE
Walsall Council,http://opendatacommunities.org/id/metropolitan-district-council/walsall,WC122-420,31.01.2021,ADULT SOCIAL CARE,ADVANCE HEALTH CARE (UK) LTD,15/01/2021,485.73,6541-Domiciliary Care,THIRD PARTY PAYMENTS,PRIVATE CONTRACTOR,REVENUE
Walsall Council,http://opendatacommunities.org/id/metropolitan-district-council/walsall,WC122-421,31.01.2021,ADULT SOCIAL CARE,ADVANCE HEALTH CARE (UK) LTD,15/01/2021,824.97,6541-Domiciliary Care,THIRD PARTY PAYMENTS,PRIVATE CONTRACTOR,REVENUE
Walsall Council,http://opendatacommunities.org/id/metropolitan-district-council/walsall,WC122-422,31.01.2021,ADULT SOCIAL CARE,ADVANCE HEALTH CARE (UK) LTD,15/01/2021,485.73,6541-Domiciliary Care,THIRD PARTY PAYMENTS,PRIVATE CONTRACTOR,REVENUE
Walsall Council,http://opendatacommunities.org/id/metropolitan-district-council/walsall,WC122-423,31.01.2021,ADULT SOCIAL CARE,ADVANCE HEALTH CARE (UK) LTD,15/01/2021,485.73,6541-Domiciliary Care,THIRD PARTY PAYMENTS,PRIVATE CONTRACTOR,REVENUE
Walsall Council,http://opendatacommunities.org/id/metropolitan-district-council/walsall,WC122-424,31.01.2021,ADULT SOCIAL CARE,ADVANCE HEALTH CARE (UK) LTD,15/01/2021,431.76,6541-Domiciliary Care,THIRD PARTY PAYMENTS,PRIVATE CONTRACTOR,REVENUE
Walsall Council,http://opendatacommunities.org/id/metropolitan-district-council/walsall,WC122-425,31.01.2021,ADULT SOCIAL CARE,ADVANCE HEALTH CARE (UK) LTD,15/01/2021,539.70,6541-Domiciliary Care,THIRD PARTY PAYMENTS,PRIVATE CONTRACTOR,REVENUE
Walsall Council,http://opendatacommunities.org/id/metropolitan-district-council/walsall,WC122-426,31.01.2021,ADULT SOCIAL CARE,ADVANCE HEALTH CARE (UK) LTD,15/01/2021,431.76,6541-Domiciliary Care,THIRD PARTY PAYMENTS,PRIVATE CONTRACTOR,REVENUE
Walsall Council,http://opendatacommunities.org/id/metropolitan-district-council/walsall,WC122-427,31.01.2021,ADULT SOCIAL CARE,ADVANCE HEALTH CARE (UK) LTD,15/01/2021,323.82,6541-Domiciliary Care,THIRD PARTY PAYMENTS,PRIVATE CONTRACTOR,REVENUE
Walsall Council,http://opendatacommunities.org/id/metropolitan-district-council/walsall,WC122-428,31.01.2021,ADULT SOCIAL CARE,ADVANCE HEALTH CARE (UK) LTD,15/01/2021,431.76,6541-Domiciliary Care,THIRD PARTY PAYMENTS,PRIVATE CONTRACTOR,REVENUE
Walsall Council,http://opendatacommunities.org/id/metropolitan-district-council/walsall,WC122-429,31.01.2021,ADULT SOCIAL CARE,ADVANCE HEALTH CARE (UK) LTD,15/01/2021,431.76,6541-Domiciliary Care,THIRD PARTY PAYMENTS,PRIVATE CONTRACTOR,REVENUE
Walsall Council,http://opendatacommunities.org/id/metropolitan-district-council/walsall,WC122-430,31.01.2021,ADULT SOCIAL CARE,ADVANCE HEALTH CARE (UK) LTD,15/01/2021,339.24,6541-Domiciliary Care,THIRD PARTY PAYMENTS,PRIVATE CONTRACTOR,REVENUE
Walsall Council,http://opendatacommunities.org/id/metropolitan-district-council/walsall,WC122-431,31.01.2021,ADULT SOCIAL CARE,ADVANCE HEALTH CARE (UK) LTD,15/01/2021,701.61,6541-Domiciliary Care,THIRD PARTY PAYMENTS,PRIVATE CONTRACTOR,REVENUE
Walsall Council,http://opendatacommunities.org/id/metropolitan-district-council/walsall,WC122-432,31.01.2021,ADULT SOCIAL CARE,ADVANCE HEALTH CARE (UK) LTD,15/01/2021,431.76,6541-Domiciliary Care,THIRD PARTY PAYMENTS,PRIVATE CONTRACTOR,REVENUE
Walsall Council,http://opendatacommunities.org/id/metropolitan-district-council/walsall,WC122-433,31.01.2021,ADULT SOCIAL CARE,ADVANCE HEALTH CARE (UK) LTD,15/01/2021,431.76,6541-Domiciliary Care,THIRD PARTY PAYMENTS,PRIVATE CONTRACTOR,REVENUE
Walsall Council,http://opendatacommunities.org/id/metropolitan-district-council/walsall,WC122-434,31.01.2021,ADULT SOCIAL CARE,ADVANCE HEALTH CARE (UK) LTD,15/01/2021,485.73,6541-Domiciliary Care,THIRD PARTY PAYMENTS,PRIVATE CONTRACTOR,REVENUE
Walsall Council,http://opendatacommunities.org/id/metropolitan-district-council/walsall,WC122-435,31.01.2021,ADULT SOCIAL CARE,ADVANCE HEALTH CARE (UK) LTD,15/01/2021,755.58,6541-Domiciliary Care,THIRD PARTY PAYMENTS,PRIVATE CONTRACTOR,REVENUE
Walsall Council,http://opendatacommunities.org/id/metropolitan-district-council/walsall,WC122-436,31.01.2021,ADULT SOCIAL CARE,ADVANCE HEALTH CARE (UK) LTD,15/01/2021,462.60,6541-Domiciliary Care,THIRD PARTY PAYMENTS,PRIVATE CONTRACTOR,REVENUE
Walsall Council,http://opendatacommunities.org/id/metropolitan-district-council/walsall,WC122-437,31.01.2021,ADULT SOCIAL CARE,ADVANCE HEALTH CARE (UK) LTD,15/01/2021,524.28,6541-Domiciliary Care,THIRD PARTY PAYMENTS,PRIVATE CONTRACTOR,REVENUE
Walsall Council,http://opendatacommunities.org/id/metropolitan-district-council/walsall,WC122-438,31.01.2021,ADULT SOCIAL CARE,ADVANCE HEALTH CARE (UK) LTD,15/01/2021,485.73,6541-Domiciliary Care,THIRD PARTY PAYMENTS,PRIVATE CONTRACTOR,REVENUE
Walsall Council,http://opendatacommunities.org/id/metropolitan-district-council/walsall,WC122-439,31.01.2021,ADULT SOCIAL CARE,ADVANCE HEALTH CARE (UK) LTD,15/01/2021,485.80,6541-Domiciliary Care,THIRD PARTY PAYMENTS,PRIVATE CONTRACTOR,REVENUE
Walsall Council,http://opendatacommunities.org/id/metropolitan-district-council/walsall,WC122-440,31.01.2021,ADULT SOCIAL CARE,ADVANCE HEALTH CARE (UK) LTD,15/01/2021,501.15,6541-Domiciliary Care,THIRD PARTY PAYMENTS,PRIVATE CONTRACTOR,REVENUE
Walsall Council,http://opendatacommunities.org/id/metropolitan-district-council/walsall,WC122-441,31.01.2021,ADULT SOCIAL CARE,ADVANCE HEALTH CARE (UK) LTD,15/01/2021,431.76,6541-Domiciliary Care,THIRD PARTY PAYMENTS,PRIVATE CONTRACTOR,REVENUE
Walsall Council,http://opendatacommunities.org/id/metropolitan-district-council/walsall,WC122-442,31.01.2021,ADULT SOCIAL CARE,ADVANCE HEALTH CARE (UK) LTD,15/01/2021,485.73,6541-Domiciliary Care,THIRD PARTY PAYMENTS,PRIVATE CONTRACTOR,REVENUE
Walsall Council,http://opendatacommunities.org/id/metropolitan-district-council/walsall,WC122-443,31.01.2021,ADULT SOCIAL CARE,ADVANCE HEALTH CARE (UK) LTD,15/01/2021,485.73,6541-Domiciliary Care,THIRD PARTY PAYMENTS,PRIVATE CONTRACTOR,REVENUE
Walsall Council,http://opendatacommunities.org/id/metropolitan-district-council/walsall,WC122-444,31.01.2021,ADULT SOCIAL CARE,ADVANCE HEALTH CARE (UK) LTD,15/01/2021,377.79,6541-Domiciliary Care,THIRD PARTY PAYMENTS,PRIVATE CONTRACTOR,REVENUE
Walsall Council,http://opendatacommunities.org/id/metropolitan-district-council/walsall,WC122-445,31.01.2021,ADULT SOCIAL CARE,ADVANCE HEALTH CARE (UK) LTD,15/01/2021,431.76,6541-Domiciliary Care,THIRD PARTY PAYMENTS,PRIVATE CONTRACTOR,REVENUE
Walsall Council,http://opendatacommunities.org/id/metropolitan-district-council/walsall,WC122-446,31.01.2021,ADULT SOCIAL CARE,ADVANCE HEALTH CARE (UK) LTD,15/01/2021,359.80,6541-Domiciliary Care,THIRD PARTY PAYMENTS,PRIVATE CONTRACTOR,REVENUE
Walsall Council,http://opendatacommunities.org/id/metropolitan-district-council/walsall,WC122-447,31.01.2021,ADULT SOCIAL CARE,ADVANCE HEALTH CARE (UK) LTD,15/01/2021,431.76,6541-Domiciliary Care,THIRD PARTY PAYMENTS,PRIVATE CONTRACTOR,REVENUE
Walsall Council,http://opendatacommunities.org/id/metropolitan-district-council/walsall,WC122-448,31.01.2021,ADULT SOCIAL CARE,ADVANCE HEALTH CARE (UK) LTD,15/01/2021,377.79,6541-Domiciliary Care,THIRD PARTY PAYMENTS,PRIVATE CONTRACTOR,REVENUE
Walsall Council,http://opendatacommunities.org/id/metropolitan-district-council/walsall,WC122-449,31.01.2021,ADULT SOCIAL CARE,ADVANCE HEALTH CARE (UK) LTD,15/01/2021,431.76,6541-Domiciliary Care,THIRD PARTY PAYMENTS,PRIVATE CONTRACTOR,REVENUE
Walsall Council,http://opendatacommunities.org/id/metropolitan-district-council/walsall,WC122-450,31.01.2021,ADULT SOCIAL CARE,ADVANCE HEALTH CARE (UK) LTD,21/01/2021,485.73,6554-Professional Services-Priv Contractor & Other Agencies,THIRD PARTY PAYMENTS,PRIVATE CONTRACTOR,REVENUE
Walsall Council,http://opendatacommunities.org/id/metropolitan-district-council/walsall,WC122-451,31.01.2021,ADULT SOCIAL CARE,ADVANCE HEALTH CARE (UK) LTD,21/01/2021,485.73,6554-Professional Services-Priv Contractor & Other Agencies,THIRD PARTY PAYMENTS,PRIVATE CONTRACTOR,REVENUE
Walsall Council,http://opendatacommunities.org/id/metropolitan-district-council/walsall,WC122-452,31.01.2021,ADULT SOCIAL CARE,ADVANCE HEALTH CARE (UK) LTD,21/01/2021,485.73,6554-Professional Services-Priv Contractor & Other Agencies,THIRD PARTY PAYMENTS,PRIVATE CONTRACTOR,REVENUE
Walsall Council,http://opendatacommunities.org/id/metropolitan-district-council/walsall,WC122-453,31.01.2021,ADULT SOCIAL CARE,ADVANCE HEALTH CARE (UK) LTD,21/01/2021,485.73,6554-Professional Services-Priv Contractor & Other Agencies,THIRD PARTY PAYMENTS,PRIVATE CONTRACTOR,REVENUE
Walsall Council,http://opendatacommunities.org/id/metropolitan-district-council/walsall,WC122-454,31.01.2021,ADULT SOCIAL CARE,ADVANCE HEALTH CARE (UK) LTD,21/01/2021,485.73,6554-Professional Services-Priv Contractor & Other Agencies,THIRD PARTY PAYMENTS,PRIVATE CONTRACTOR,REVENUE
Walsall Council,http://opendatacommunities.org/id/metropolitan-district-council/walsall,WC122-455,31.01.2021,ADULT SOCIAL CARE,ADVANCE HEALTH CARE (UK) LTD,21/01/2021,377.79,6554-Professional Services-Priv Contractor & Other Agencies,THIRD PARTY PAYMENTS,PRIVATE CONTRACTOR,REVENUE
Walsall Council,http://opendatacommunities.org/id/metropolitan-district-council/walsall,WC122-456,31.01.2021,ADULT SOCIAL CARE,ADVANCE HEALTH CARE (UK) LTD,21/01/2021,485.73,6554-Professional Services-Priv Contractor & Other Agencies,THIRD PARTY PAYMENTS,PRIVATE CONTRACTOR,REVENUE
Walsall Council,http://opendatacommunities.org/id/metropolitan-district-council/walsall,WC122-457,31.01.2021,ADULT SOCIAL CARE,ADVANCE HEALTH CARE (UK) LTD,15/01/2021,"13,333.37",6554-Other Expenses,SUPPLIES & SERVICES,EXPENSES,REVENUE
Walsall Council,http://opendatacommunities.org/id/metropolitan-district-council/walsall,WC122-458,31.01.2021,ADULT SOCIAL CARE,ADVANCE HEALTH CARE (UK) LTD,21/01/2021,485.73,6554-Professional Services-Priv Contractor & Other Agencies,THIRD PARTY PAYMENTS,PRIVATE CONTRACTOR,REVENUE
Walsall Council,http://opendatacommunities.org/id/metropolitan-district-council/walsall,WC122-459,31.01.2021,ADULT SOCIAL CARE,ADVANCE HEALTH CARE (UK) LTD,21/01/2021,485.73,6554-Professional Services-Priv Contractor & Other Agencies,THIRD PARTY PAYMENTS,PRIVATE CONTRACTOR,REVENUE
Walsall Council,http://opendatacommunities.org/id/metropolitan-district-council/walsall,WC122-460,31.01.2021,ADULT SOCIAL CARE,ADVANCE HEALTH CARE (UK) LTD,21/01/2021,485.73,6554-Professional Services-Priv Contractor & Other Agencies,THIRD PARTY PAYMENTS,PRIVATE CONTRACTOR,REVENUE
Walsall Council,http://opendatacommunities.org/id/metropolitan-district-council/walsall,WC122-461,31.01.2021,ADULT SOCIAL CARE,ADVANCE HEALTH CARE (UK) LTD,21/01/2021,485.73,6554-Professional Services-Priv Contractor & Other Agencies,THIRD PARTY PAYMENTS,PRIVATE CONTRACTOR,REVENUE
Walsall Council,http://opendatacommunities.org/id/metropolitan-district-council/walsall,WC122-462,31.01.2021,ADULT SOCIAL CARE,ADVANCE HEALTH CARE (UK) LTD,21/01/2021,485.73,6554-Professional Services-Priv Contractor & Other Agencies,THIRD PARTY PAYMENTS,PRIVATE CONTRACTOR,REVENUE
Walsall Council,http://opendatacommunities.org/id/metropolitan-district-council/walsall,WC122-463,31.01.2021,ADULT SOCIAL CARE,ADVANCE HEALTH CARE (UK) LTD,21/01/2021,485.73,6554-Professional Services-Priv Contractor & Other Agencies,THIRD PARTY PAYMENTS,PRIVATE CONTRACTOR,REVENUE
Walsall Council,http://opendatacommunities.org/id/metropolitan-district-council/walsall,WC122-464,31.01.2021,ADULT SOCIAL CARE,ADVANCE HEALTH CARE (UK) LTD,25/01/2021,485.73,6554-Professional Services-Priv Contractor & Other Agencies,THIRD PARTY PAYMENTS,PRIVATE CONTRACTOR,REVENUE
Walsall Council,http://opendatacommunities.org/id/metropolitan-district-council/walsall,WC122-465,31.01.2021,ADULT SOCIAL CARE,ADVANCE HEALTH CARE (UK) LTD,21/01/2021,485.73,6554-Professional Services-Priv Contractor & Other Agencies,THIRD PARTY PAYMENTS,PRIVATE CONTRACTOR,REVENUE
Walsall Council,http://opendatacommunities.org/id/metropolitan-district-council/walsall,WC122-466,31.01.2021,ADULT SOCIAL CARE,ADVANCE HEALTH CARE (UK) LTD,25/01/2021,485.73,6554-Professional Services-Priv Contractor & Other Agencies,THIRD PARTY PAYMENTS,PRIVATE CONTRACTOR,REVENUE
Walsall Council,http://opendatacommunities.org/id/metropolitan-district-council/walsall,WC122-467,31.01.2021,ADULT SOCIAL CARE,ADVANCE HEALTH CARE (UK) LTD,25/01/2021,485.73,6554-Professional Services-Priv Contractor & Other Agencies,THIRD PARTY PAYMENTS,PRIVATE CONTRACTOR,REVENUE
Walsall Council,http://opendatacommunities.org/id/metropolitan-district-council/walsall,WC122-468,31.01.2021,ADULT SOCIAL CARE,ADVANCE HEALTH CARE (UK) LTD,25/01/2021,485.73,6554-Professional Services-Priv Contractor & Other Agencies,THIRD PARTY PAYMENTS,PRIVATE CONTRACTOR,REVENUE
Walsall Council,http://opendatacommunities.org/id/metropolitan-district-council/walsall,WC122-469,31.01.2021,ADULT SOCIAL CARE,ADVANCE HEALTH CARE (UK) LTD,25/01/2021,485.73,6554-Professional Services-Priv Contractor & Other Agencies,THIRD PARTY PAYMENTS,PRIVATE CONTRACTOR,REVENUE
Walsall Council,http://opendatacommunities.org/id/metropolitan-district-council/walsall,WC122-470,31.01.2021,ADULT SOCIAL CARE,ADVANCE HEALTH CARE (UK) LTD,25/01/2021,485.73,6554-Professional Services-Priv Contractor & Other Agencies,THIRD PARTY PAYMENTS,PRIVATE CONTRACTOR,REVENUE
Walsall Council,http://opendatacommunities.org/id/metropolitan-district-council/walsall,WC122-471,31.01.2021,ADULT SOCIAL CARE,ADVANCE HEALTH CARE (UK) LTD,25/01/2021,609.09,6554-Professional Services-Priv Contractor & Other Agencies,THIRD PARTY PAYMENTS,PRIVATE CONTRACTOR,REVENUE
Walsall Council,http://opendatacommunities.org/id/metropolitan-district-council/walsall,WC122-472,31.01.2021,ADULT SOCIAL CARE,ADVANCE HEALTH CARE (UK) LTD,13/01/2021,817.40,6541-Domiciliary Care,THIRD PARTY PAYMENTS,PRIVATE CONTRACTOR,REVENUE
Walsall Council,http://opendatacommunities.org/id/metropolitan-district-council/walsall,WC122-473,31.01.2021,ADULT SOCIAL CARE,ADVANCE HEALTH CARE (UK) LTD,13/01/2021,760.72,6541-Domiciliary Care,THIRD PARTY PAYMENTS,PRIVATE CONTRACTOR,REVENUE
Walsall Council,http://opendatacommunities.org/id/metropolitan-district-council/walsall,WC122-474,31.01.2021,ADULT SOCIAL CARE,ADVANCE HEALTH CARE (UK) LTD,13/01/2021,"1,017.72",6541-Domiciliary Care,THIRD PARTY PAYMENTS,PRIVATE CONTRACTOR,REVENUE
Walsall Council,http://opendatacommunities.org/id/metropolitan-district-council/walsall,WC122-475,31.01.2021,ADULT SOCIAL CARE,ADVANCE HEALTH CARE (UK) LTD,13/01/2021,842.96,6541-Domiciliary Care,THIRD PARTY PAYMENTS,PRIVATE CONTRACTOR,REVENUE
Walsall Council,http://opendatacommunities.org/id/metropolitan-district-council/walsall,WC122-476,31.01.2021,ADULT SOCIAL CARE,ADVANCE HEALTH CARE (UK) LTD,13/01/2021,699.18,6541-Domiciliary Care,THIRD PARTY PAYMENTS,PRIVATE CONTRACTOR,REVENUE
Walsall Council,http://opendatacommunities.org/id/metropolitan-district-council/walsall,WC122-477,31.01.2021,ADULT SOCIAL CARE,ADVANCE HEALTH CARE (UK) LTD,13/01/2021,740.16,6541-Domiciliary Care,THIRD PARTY PAYMENTS,PRIVATE CONTRACTOR,REVENUE
Walsall Council,http://opendatacommunities.org/id/metropolitan-district-council/walsall,WC122-478,31.01.2021,CHILDRENS,ADVENTURELAND DAY NURSERY,05/01/2021,"4,608.45",1184-Other-Grants to Other Orgs,SUPPLIES & SERVICES,GRANTS (EXP) & SUBSCRIPTIONS,REVENUE
Walsall Council,http://opendatacommunities.org/id/metropolitan-district-council/walsall,WC122-479,31.01.2021,CHILDRENS,ADVENTURELAND DAY NURSERY,05/01/2021,"19,735.65",1184-Other-Grants to Other Orgs,SUPPLIES & SERVICES,GRANTS (EXP) & SUBSCRIPTIONS,REVENUE
Walsall Council,http://opendatacommunities.org/id/metropolitan-district-council/walsall,WC122-480,31.01.2021,ADULT SOCIAL CARE,ADVINIA CARE HOMES LTD - HAMMERWICH HALL CARE HOME,15/01/2021,"2,308.00",6541-Residential EMI,THIRD PARTY PAYMENTS,PRIVATE CONTRACTOR,REVENUE
Walsall Council,http://opendatacommunities.org/id/metropolitan-district-council/walsall,WC122-481,31.01.2021,ADULT SOCIAL CARE,ADVINIA CARE HOMES LTD - HAMMERWICH HALL CARE HOME,15/01/2021,"2,044.00",6541-Residential,THIRD PARTY PAYMENTS,PRIVATE CONTRACTOR,REVENUE
Walsall Council,http://opendatacommunities.org/id/metropolitan-district-council/walsall,WC122-482,31.01.2021,ECONOMY & ENVIRONMENT,AECOM INFRASTRUCTURE & ENVIRONMENT UK LIMITED,07/01/2021,"1,097.11",6411-Professional Fees & Services,SUPPLIES & SERVICES,SERVICES,REVENUE
Walsall Council,http://opendatacommunities.org/id/metropolitan-district-council/walsall,WC122-483,31.01.2021,ECONOMY & ENVIRONMENT,AECOM INFRASTRUCTURE & ENVIRONMENT UK LIMITED,07/01/2021,"12,665.00",6411-Professional Fees & Services,SUPPLIES & SERVICES,SERVICES,REVENUE
Walsall Council,http://opendatacommunities.org/id/metropolitan-district-council/walsall,WC122-484,31.01.2021,CHILDRENS,REDACTED,08/01/2021,540.00,6223-Foster Carers Maintenance Allowance,TRANSFER PAYMENTS,CHILDREN SOCIAL SERVICES CLIENT,REVENUE
Walsall Council,http://opendatacommunities.org/id/metropolitan-district-council/walsall,WC122-485,31.01.2021,CHILDRENS,REDACTED,08/01/2021,540.00,6223-Foster Carers Maintenance Allowance,TRANSFER PAYMENTS,CHILDREN SOCIAL SERVICES CLIENT,REVENUE
Walsall Council,http://opendatacommunities.org/id/metropolitan-district-council/walsall,WC122-486,31.01.2021,RESOURCES AND TRANSFORMATION,AFRICAN FRENCH SPEAKING COMMUNITY SUPPORT,25/01/2021,"9,785.80",6312-Grants to Other Orgs,SUPPLIES & SERVICES,GRANTS (EXP) & SUBSCRIPTIONS,REVENUE
Walsall Council,http://opendatacommunities.org/id/metropolitan-district-council/walsall,WC122-487,31.01.2021,ADULT SOCIAL CARE,REDACTED,06/01/2021,"2,455.56",6541-Direct Payment,THIRD PARTY PAYMENTS,PRIVATE CONTRACTOR,REVENUE
Walsall Council,http://opendatacommunities.org/id/metropolitan-district-council/walsall,WC122-488,31.01.2021,ADULT SOCIAL CARE,ALDERGROVE MANOR LTD,15/01/2021,"2,308.00",6541-Residential EMI,THIRD PARTY PAYMENTS,PRIVATE CONTRACTOR,REVENUE
Walsall Council,http://opendatacommunities.org/id/metropolitan-district-council/walsall,WC122-489,31.01.2021,ADULT SOCIAL CARE,ALDERGROVE MANOR LTD,15/01/2021,"2,308.00",6541-Residential EMI,THIRD PARTY PAYMENTS,PRIVATE CONTRACTOR,REVENUE
Walsall Council,http://opendatacommunities.org/id/metropolitan-district-council/walsall,WC122-490,31.01.2021,CHILDRENS,ALDRIDGE & BARONS LIMITED,28/01/2021,720.00,6241-Hire of Vehicle with Driver,TRANSPORT,DIRECT TRANSPORT COSTS,REVENUE
Walsall Council,http://opendatacommunities.org/id/metropolitan-district-council/walsall,WC122-491,31.01.2021,CHILDRENS,ALDRIDGE & BARONS LIMITED,28/01/2021,909.60,6241-Hire of Vehicle with Driver,TRANSPORT,DIRECT TRANSPORT COSTS,REVENUE
Walsall Council,http://opendatacommunities.org/id/metropolitan-district-council/walsall,WC122-492,31.01.2021,CHILDRENS,ALDRIDGE & BARONS LIMITED,28/01/2021,"1,350.00",6241-Hire of Vehicle with Driver,TRANSPORT,DIRECT TRANSPORT COSTS,REVENUE
Walsall Council,http://opendatacommunities.org/id/metropolitan-district-council/walsall,WC122-493,31.01.2021,CHILDRENS,ALDRIDGE & BARONS LIMITED,28/01/2021,774.00,6241-Hire of Vehicle with Driver,TRANSPORT,DIRECT TRANSPORT COSTS,REVENUE
Walsall Council,http://opendatacommunities.org/id/metropolitan-district-council/walsall,WC122-494,31.01.2021,CHILDRENS,ALDRIDGE & BARONS LIMITED,28/01/2021,579.88,6241-Hire of Vehicle with Driver,TRANSPORT,DIRECT TRANSPORT COSTS,REVENUE
Walsall Council,http://opendatacommunities.org/id/metropolitan-district-council/walsall,WC122-495,31.01.2021,CHILDRENS,ALDRIDGE & BARONS LIMITED,28/01/2021,950.00,6241-Hire of Vehicle with Driver,TRANSPORT,DIRECT TRANSPORT COSTS,REVENUE
Walsall Council,http://opendatacommunities.org/id/metropolitan-district-council/walsall,WC122-496,31.01.2021,CHILDRENS,ALDRIDGE & BARONS LIMITED,28/01/2021,756.00,6241-Hire of Vehicle with Driver,TRANSPORT,DIRECT TRANSPORT COSTS,REVENUE
Walsall Council,http://opendatacommunities.org/id/metropolitan-district-council/walsall,WC122-497,31.01.2021,CHILDRENS,ALDRIDGE & BARONS LIMITED,28/01/2021,580.00,6241-Hire of Vehicle with Driver,TRANSPORT,DIRECT TRANSPORT COSTS,REVENUE
Walsall Council,http://opendatacommunities.org/id/metropolitan-district-council/walsall,WC122-498,31.01.2021,CHILDRENS,ALDRIDGE & BARONS LIMITED,28/01/2021,"2,045.00",6241-Hire of Vehicle with Driver,TRANSPORT,DIRECT TRANSPORT COSTS,REVENUE
Walsall Council,http://opendatacommunities.org/id/metropolitan-district-council/walsall,WC122-499,31.01.2021,CHILDRENS,ALDRIDGE & BARONS LIMITED,28/01/2021,900.00,6241-Hire of Vehicle with Driver,TRANSPORT,DIRECT TRANSPORT COSTS,REVENUE
Walsall Council,http://opendatacommunities.org/id/metropolitan-district-council/walsall,WC122-500,31.01.2021,CHILDRENS,ALDRIDGE & BARONS LIMITED,28/01/2021,"1,040.00",6241-Hire of Vehicle with Driver,TRANSPORT,DIRECT TRANSPORT COSTS,REVENUE
Walsall Council,http://opendatacommunities.org/id/metropolitan-district-council/walsall,WC122-501,31.01.2021,CHILDRENS,ALDRIDGE & BARONS LIMITED,28/01/2021,502.20,6241-Hire of Vehicle with Driver,TRANSPORT,DIRECT TRANSPORT COSTS,REVENUE
Walsall Council,http://opendatacommunities.org/id/metropolitan-district-council/walsall,WC122-502,31.01.2021,CHILDRENS,ALDRIDGE & BARONS LIMITED,28/01/2021,940.00,6241-Hire of Vehicle with Driver,TRANSPORT,DIRECT TRANSPORT COSTS,REVENUE
Walsall Council,http://opendatacommunities.org/id/metropolitan-district-council/walsall,WC122-503,31.01.2021,CHILDRENS,ALDRIDGE & BARONS LIMITED,28/01/2021,357.20,6241-Hire of Vehicle with Driver,TRANSPORT,DIRECT TRANSPORT COSTS,REVENUE
Walsall Council,http://opendatacommunities.org/id/metropolitan-district-council/walsall,WC122-504,31.01.2021,CHILDRENS,ALDRIDGE & BARONS LIMITED,28/01/2021,"1,264.00",6241-Hire of Vehicle with Driver,TRANSPORT,DIRECT TRANSPORT COSTS,REVENUE
Walsall Council,http://opendatacommunities.org/id/metropolitan-district-council/walsall,WC122-505,31.01.2021,CHILDRENS,ALDRIDGE & BARONS LIMITED,28/01/2021,700.00,6241-Hire of Vehicle with Driver,TRANSPORT,DIRECT TRANSPORT COSTS,REVENUE
Walsall Council,http://opendatacommunities.org/id/metropolitan-district-council/walsall,WC122-506,31.01.2021,CHILDRENS,ALDRIDGE & BARONS LIMITED,28/01/2021,324.00,6241-Hire of Vehicle with Driver,TRANSPORT,DIRECT TRANSPORT COSTS,REVENUE
Walsall Council,http://opendatacommunities.org/id/metropolitan-district-council/walsall,WC122-507,31.01.2021,CHILDRENS,ALDRIDGE & BARONS LIMITED,28/01/2021,460.00,6241-Hire of Vehicle with Driver,TRANSPORT,DIRECT TRANSPORT COSTS,REVENUE
Walsall Council,http://opendatacommunities.org/id/metropolitan-district-council/walsall,WC122-508,31.01.2021,CHILDRENS,ALDRIDGE & BARONS LIMITED,28/01/2021,615.60,6241-Hire of Vehicle with Driver,TRANSPORT,DIRECT TRANSPORT COSTS,REVENUE
Walsall Council,http://opendatacommunities.org/id/metropolitan-district-council/walsall,WC122-509,31.01.2021,CHILDRENS,ALDRIDGE & BARONS LIMITED,28/01/2021,"1,150.20",6241-Hire of Vehicle with Driver,TRANSPORT,DIRECT TRANSPORT COSTS,REVENUE
Walsall Council,http://opendatacommunities.org/id/metropolitan-district-council/walsall,WC122-510,31.01.2021,CHILDRENS,ALDRIDGE & BARONS LIMITED,28/01/2021,"1,050.00",6241-Hire of Vehicle with Driver,TRANSPORT,DIRECT TRANSPORT COSTS,REVENUE
Walsall Council,http://opendatacommunities.org/id/metropolitan-district-council/walsall,WC122-511,31.01.2021,CHILDRENS,ALDRIDGE & BARONS LIMITED,28/01/2021,637.20,6241-Hire of Vehicle with Driver,TRANSPORT,DIRECT TRANSPORT COSTS,REVENUE
Walsall Council,http://opendatacommunities.org/id/metropolitan-district-council/walsall,WC122-512,31.01.2021,CHILDRENS,ALDRIDGE & BARONS LIMITED,28/01/2021,820.00,6241-Hire of Vehicle with Driver,TRANSPORT,DIRECT TRANSPORT COSTS,REVENUE
Walsall Council,http://opendatacommunities.org/id/metropolitan-district-council/walsall,WC122-513,31.01.2021,CHILDRENS,ALDRIDGE & BARONS LIMITED,28/01/2021,756.00,6241-Hire of Vehicle with Driver,TRANSPORT,DIRECT TRANSPORT COSTS,REVENUE
Walsall Council,http://opendatacommunities.org/id/metropolitan-district-council/walsall,WC122-514,31.01.2021,CHILDRENS,ALDRIDGE & BARONS LIMITED,28/01/2021,972.00,6241-Hire of Vehicle with Driver,TRANSPORT,DIRECT TRANSPORT COSTS,REVENUE
Walsall Council,http://opendatacommunities.org/id/metropolitan-district-council/walsall,WC122-515,31.01.2021,CHILDRENS,ALDRIDGE & BARONS LIMITED,28/01/2021,962.28,6241-Hire of Vehicle with Driver,TRANSPORT,DIRECT TRANSPORT COSTS,REVENUE
Walsall Council,http://opendatacommunities.org/id/metropolitan-district-council/walsall,WC122-516,31.01.2021,CHILDRENS,ALDRIDGE & BARONS LIMITED,28/01/2021,"1,000.00",6241-Hire of Vehicle with Driver,TRANSPORT,DIRECT TRANSPORT COSTS,REVENUE
Walsall Council,http://opendatacommunities.org/id/metropolitan-district-council/walsall,WC122-517,31.01.2021,CHILDRENS,ALDRIDGE & BARONS LIMITED,28/01/2021,694.75,6241-Hire of Vehicle with Driver,TRANSPORT,DIRECT TRANSPORT COSTS,REVENUE
Walsall Council,http://opendatacommunities.org/id/metropolitan-district-council/walsall,WC122-518,31.01.2021,CHILDRENS,ALDRIDGE & BARONS LIMITED,28/01/2021,848.25,6241-Hire of Vehicle with Driver,TRANSPORT,DIRECT TRANSPORT COSTS,REVENUE
Walsall Council,http://opendatacommunities.org/id/metropolitan-district-council/walsall,WC122-519,31.01.2021,CHILDRENS,ALDRIDGE & BARONS LIMITED,28/01/2021,"1,391.60",6241-Hire of Vehicle with Driver,TRANSPORT,DIRECT TRANSPORT COSTS,REVENUE
Walsall Council,http://opendatacommunities.org/id/metropolitan-district-council/walsall,WC122-520,31.01.2021,CHILDRENS,ALDRIDGE & BARONS LIMITED,28/01/2021,880.20,6241-Hire of Vehicle with Driver,TRANSPORT,DIRECT TRANSPORT COSTS,REVENUE
Walsall Council,http://opendatacommunities.org/id/metropolitan-district-council/walsall,WC122-521,31.01.2021,CHILDRENS,ALDRIDGE & BARONS LIMITED,28/01/2021,800.00,6241-Hire of Vehicle with Driver,TRANSPORT,DIRECT TRANSPORT COSTS,REVENUE
Walsall Council,http://opendatacommunities.org/id/metropolitan-district-council/walsall,WC122-522,31.01.2021,CHILDRENS,ALDRIDGE & BARONS LIMITED,28/01/2021,500.00,6241-Hire of Vehicle with Driver,TRANSPORT,DIRECT TRANSPORT COSTS,REVENUE
Walsall Council,http://opendatacommunities.org/id/metropolitan-district-council/walsall,WC122-523,31.01.2021,CHILDRENS,ALDRIDGE ARCHITECTURAL DESIGN LTD,15/01/2021,753.60,6223-Special Guardianship Orders,TRANSFER PAYMENTS,CHILDREN SOCIAL SERVICES CLIENT,REVENUE
Walsall Council,http://opendatacommunities.org/id/metropolitan-district-council/walsall,WC122-524,31.01.2021,ADULT SOCIAL CARE,REDACTED,06/01/2021,"1,480.32",6541-Direct Payment,THIRD PARTY PAYMENTS,PRIVATE CONTRACTOR,REVENUE
Walsall Council,http://opendatacommunities.org/id/metropolitan-district-council/walsall,WC122-525,31.01.2021,ADULT SOCIAL CARE,REDACTED,06/01/2021,"1,943.20",6541-Direct Payment,THIRD PARTY PAYMENTS,PRIVATE CONTRACTOR,REVENUE
Walsall Council,http://opendatacommunities.org/id/metropolitan-district-council/walsall,WC122-526,31.01.2021,ADULT SOCIAL CARE,REDACTED,06/01/2021,947.76,6541-Direct Payment,THIRD PARTY PAYMENTS,PRIVATE CONTRACTOR,REVENUE
Walsall Council,http://opendatacommunities.org/id/metropolitan-district-council/walsall,WC122-527,31.01.2021,ADULT SOCIAL CARE,REDACTED,06/01/2021,"5,337.28",6541-Direct Payment,THIRD PARTY PAYMENTS,PRIVATE CONTRACTOR,REVENUE
Walsall Council,http://opendatacommunities.org/id/metropolitan-district-council/walsall,WC122-528,31.01.2021,RESOURCES AND TRANSFORMATION,ALIGNED ASSETS LTD,29/01/2021,"1,413.21",6623-Computer Equipment,SUPPLIES & SERVICES,COMMUNICATIONS & COMPUTING,REVENUE
Walsall Council,http://opendatacommunities.org/id/metropolitan-district-council/walsall,WC122-529,31.01.2021,RESOURCES AND TRANSFORMATION,ALIGNED ASSETS LTD,29/01/2021,"2,615.84",6623-Computer Equipment,SUPPLIES & SERVICES,COMMUNICATIONS & COMPUTING,REVENUE
Walsall Council,http://opendatacommunities.org/id/metropolitan-district-council/walsall,WC122-530,31.01.2021,ADULT SOCIAL CARE,REDACTED,08/01/2021,"1,332.88",6541-Shared Lives,THIRD PARTY PAYMENTS,PRIVATE CONTRACTOR,REVENUE
Walsall Council,http://opendatacommunities.org/id/metropolitan-district-council/walsall,WC122-531,31.01.2021,CHILDRENS,REDACTED,08/01/2021,312.24,6223-Special Guardianship Orders,TRANSFER PAYMENTS,CHILDREN SOCIAL SERVICES CLIENT,REVENUE
Walsall Council,http://opendatacommunities.org/id/metropolitan-district-council/walsall,WC122-532,31.01.2021,CHILDRENS,ALL SAINTS NATIONAL ACADEMY #1,25/01/2021,"4,299.24",1220-Top Up Funding -Grants to Schools,SUPPLIES & SERVICES,GRANTS (EXP) & SUBSCRIPTIONS,REVENUE
Walsall Council,http://opendatacommunities.org/id/metropolitan-district-council/walsall,WC122-533,31.01.2021,ADULT SOCIAL CARE,REDACTED,06/01/2021,"1,943.20",6541-Direct Payment,THIRD PARTY PAYMENTS,PRIVATE CONTRACTOR,REVENUE
Walsall Council,http://opendatacommunities.org/id/metropolitan-district-council/walsall,WC122-534,31.01.2021,ECONOMY & ENVIRONMENT,ALLIANCE LEISURE SERVICES LTD,15/01/2021,250.00,6413-External Training,INDIRECT EMPLOYEES,EXTERNAL TRAINING,REVENUE
Walsall Council,http://opendatacommunities.org/id/metropolitan-district-council/walsall,WC122-535,31.01.2021,RESOURCES AND TRANSFORMATION,ALLIED PUBLICITY SERVICES (MANCHESTER) LIMITED T/A APS GROUP,13/01/2021,"1,194.20",6312-External Printing Services,SUPPLIES & SERVICES,PRINTING STATIONERY & GENERAL OFFICE,REVENUE
Walsall Council,http://opendatacommunities.org/id/metropolitan-district-council/walsall,WC122-536,31.01.2021,ECONOMY & ENVIRONMENT,ALLSORTS OFFICE SUPPLIES LTD,25/01/2021,"2,640.00",6410-Purchase of Furniture & Equipment,SUPPLIES & SERVICES,EQUIPMENT FURNITURE & MATERIALS,REVENUE
Walsall Council,http://opendatacommunities.org/id/metropolitan-district-council/walsall,WC122-537,31.01.2021,ADULT SOCIAL CARE,ALMA COURT,15/01/2021,"5,939.20",6541-Nursing EMI,THIRD PARTY PAYMENTS,PRIVATE CONTRACTOR,REVENUE
Walsall Council,http://opendatacommunities.org/id/metropolitan-district-council/walsall,WC122-538,31.01.2021,ADULT SOCIAL CARE,ALMA COURT,15/01/2021,"4,737.92",6541-Nursing EMI,THIRD PARTY PAYMENTS,PRIVATE CONTRACTOR,REVENUE
Walsall Council,http://opendatacommunities.org/id/metropolitan-district-council/walsall,WC122-539,31.01.2021,ADULT SOCIAL CARE,ALMA COURT,15/01/2021,"6,553.60",6541-Residential,THIRD PARTY PAYMENTS,PRIVATE CONTRACTOR,REVENUE
Walsall Council,http://opendatacommunities.org/id/metropolitan-district-council/walsall,WC122-540,31.01.2021,CHILDRENS,ALMOZENE NURSERY & CHILDRENS CENTRE,05/01/2021,"5,266.80",1184-Other-Grants to Other Orgs,SUPPLIES & SERVICES,GRANTS (EXP) & SUBSCRIPTIONS,REVENUE
Walsall Council,http://opendatacommunities.org/id/metropolitan-district-council/walsall,WC122-541,31.01.2021,CHILDRENS,ALMOZENE NURSERY & CHILDRENS CENTRE,05/01/2021,"10,964.25",1184-Other-Grants to Other Orgs,SUPPLIES & SERVICES,GRANTS (EXP) & SUBSCRIPTIONS,REVENUE
Walsall Council,http://opendatacommunities.org/id/metropolitan-district-council/walsall,WC122-542,31.01.2021,CHILDRENS,ALMOZENE NURSERY & CHILDRENS CENTRE,22/01/2021,600.00,1184-Other-Grants to Other Orgs,SUPPLIES & SERVICES,GRANTS (EXP) & SUBSCRIPTIONS,REVENUE
Walsall Council,http://opendatacommunities.org/id/metropolitan-district-council/walsall,WC122-543,31.01.2021,CHILDRENS,ALMOZENE NURSERY & CHILDRENS CENTRE,18/01/2021,"3,895.99",1220-Top Up Funding -Grants to Schools,SUPPLIES & SERVICES,GRANTS (EXP) & SUBSCRIPTIONS,REVENUE
Walsall Council,http://opendatacommunities.org/id/metropolitan-district-council/walsall,WC122-544,31.01.2021,ADULT SOCIAL CARE,ALPHA HEALTH CARE LTD,15/01/2021,"2,396.00",6541-Nursing,THIRD PARTY PAYMENTS,PRIVATE CONTRACTOR,REVENUE
Walsall Council,http://opendatacommunities.org/id/metropolitan-district-council/walsall,WC122-545,31.01.2021,ADULT SOCIAL CARE,ALPHA HEALTH CARE LTD,15/01/2021,"2,696.00",6541-Nursing EMI,THIRD PARTY PAYMENTS,PRIVATE CONTRACTOR,REVENUE
Walsall Council,http://opendatacommunities.org/id/metropolitan-district-council/walsall,WC122-546,31.01.2021,ADULT SOCIAL CARE,ALPHA HEALTH CARE LTD,15/01/2021,"3,290.36",6541-Nursing EMI,THIRD PARTY PAYMENTS,PRIVATE CONTRACTOR,REVENUE
Walsall Council,http://opendatacommunities.org/id/metropolitan-district-council/walsall,WC122-547,31.01.2021,ADULT SOCIAL CARE,ALPHA HEALTH CARE LTD,15/01/2021,"2,308.00",6541-Residential EMI,THIRD PARTY PAYMENTS,PRIVATE CONTRACTOR,REVENUE
Walsall Council,http://opendatacommunities.org/id/metropolitan-district-council/walsall,WC122-548,31.01.2021,ADULT SOCIAL CARE,ALPHA HEALTH CARE LTD,15/01/2021,"-4,791.08",6541-Nursing EMI,THIRD PARTY PAYMENTS,PRIVATE CONTRACTOR,REVENUE
Walsall Council,http://opendatacommunities.org/id/metropolitan-district-council/walsall,WC122-549,31.01.2021,ADULT SOCIAL CARE,ALPHA HEALTH CARE LTD,15/01/2021,"2,937.76",6541-Nursing,THIRD PARTY PAYMENTS,PRIVATE CONTRACTOR,REVENUE
Walsall Council,http://opendatacommunities.org/id/metropolitan-district-council/walsall,WC122-550,31.01.2021,ADULT SOCIAL CARE,ALPHA HEALTH CARE LTD,15/01/2021,"3,180.00",6541-Residential,THIRD PARTY PAYMENTS,PRIVATE CONTRACTOR,REVENUE
Walsall Council,http://opendatacommunities.org/id/metropolitan-district-council/walsall,WC122-551,31.01.2021,ADULT SOCIAL CARE,ALPHA HEALTH CARE LTD,15/01/2021,"2,308.00",6541-Residential EMI,THIRD PARTY PAYMENTS,PRIVATE CONTRACTOR,REVENUE
Walsall Council,http://opendatacommunities.org/id/metropolitan-district-council/walsall,WC122-552,31.01.2021,ADULT SOCIAL CARE,ALPHA HEALTH CARE LTD,15/01/2021,"2,696.00",6541-Nursing EMI,THIRD PARTY PAYMENTS,PRIVATE CONTRACTOR,REVENUE
Walsall Council,http://opendatacommunities.org/id/metropolitan-district-council/walsall,WC122-553,31.01.2021,ADULT SOCIAL CARE,ALPHA HEALTH CARE LTD,15/01/2021,"2,937.88",6541-Nursing EMI,THIRD PARTY PAYMENTS,PRIVATE CONTRACTOR,REVENUE
Walsall Council,http://opendatacommunities.org/id/metropolitan-district-council/walsall,WC122-554,31.01.2021,ADULT SOCIAL CARE,ALPHA HEALTH CARE LTD,15/01/2021,"7,000.00",6541-Nursing EMI,THIRD PARTY PAYMENTS,PRIVATE CONTRACTOR,REVENUE
Walsall Council,http://opendatacommunities.org/id/metropolitan-district-council/walsall,WC122-555,31.01.2021,ADULT SOCIAL CARE,ALPHA HEALTH CARE LTD,15/01/2021,"2,881.84",6541-Nursing EMI,THIRD PARTY PAYMENTS,PRIVATE CONTRACTOR,REVENUE
Walsall Council,http://opendatacommunities.org/id/metropolitan-district-council/walsall,WC122-556,31.01.2021,ADULT SOCIAL CARE,ALPHA HEALTH CARE LTD,15/01/2021,"2,831.48",6541-Residential EMI,THIRD PARTY PAYMENTS,PRIVATE CONTRACTOR,REVENUE
Walsall Council,http://opendatacommunities.org/id/metropolitan-district-council/walsall,WC122-557,31.01.2021,ADULT SOCIAL CARE,ALPHA HEALTH CARE LTD,15/01/2021,"2,881.80",6541-Nursing EMI,THIRD PARTY PAYMENTS,PRIVATE CONTRACTOR,REVENUE
Walsall Council,http://opendatacommunities.org/id/metropolitan-district-council/walsall,WC122-558,31.01.2021,ADULT SOCIAL CARE,ALPHA HEALTH CARE LTD,15/01/2021,"2,696.00",6541-Nursing EMI,THIRD PARTY PAYMENTS,PRIVATE CONTRACTOR,REVENUE
Walsall Council,http://opendatacommunities.org/id/metropolitan-district-council/walsall,WC122-559,31.01.2021,ADULT SOCIAL CARE,ALPHA HEALTH CARE LTD,15/01/2021,"2,308.00",6541-Residential EMI,THIRD PARTY PAYMENTS,PRIVATE CONTRACTOR,REVENUE
Walsall Council,http://opendatacommunities.org/id/metropolitan-district-council/walsall,WC122-560,31.01.2021,ADULT SOCIAL CARE,ALPHA HEALTH CARE LTD,15/01/2021,"3,180.00",6541-Residential EMI,THIRD PARTY PAYMENTS,PRIVATE CONTRACTOR,REVENUE
Walsall Council,http://opendatacommunities.org/id/metropolitan-district-council/walsall,WC122-561,31.01.2021,ADULT SOCIAL CARE,ALPHA HEALTH CARE LTD,15/01/2021,"2,308.00",6541-Residential EMI,THIRD PARTY PAYMENTS,PRIVATE CONTRACTOR,REVENUE
Walsall Council,http://opendatacommunities.org/id/metropolitan-district-council/walsall,WC122-562,31.01.2021,ADULT SOCIAL CARE,ALPHA HEALTH CARE LTD,15/01/2021,"3,064.32",6541-Nursing EMI,THIRD PARTY PAYMENTS,PRIVATE CONTRACTOR,REVENUE
Walsall Council,http://opendatacommunities.org/id/metropolitan-district-council/walsall,WC122-563,31.01.2021,ADULT SOCIAL CARE,ALPHA HEALTH CARE LTD,15/01/2021,"1,978.29",6541-Residential EMI,THIRD PARTY PAYMENTS,PRIVATE CONTRACTOR,REVENUE
Walsall Council,http://opendatacommunities.org/id/metropolitan-district-council/walsall,WC122-564,31.01.2021,ADULT SOCIAL CARE,ALPHA HEALTH CARE LTD,15/01/2021,"2,044.00",6541-Residential,THIRD PARTY PAYMENTS,PRIVATE CONTRACTOR,REVENUE
Walsall Council,http://opendatacommunities.org/id/metropolitan-district-council/walsall,WC122-565,31.01.2021,ADULT SOCIAL CARE,ALPHA HEALTH CARE LTD,15/01/2021,"3,035.72",6541-Residential EMI,THIRD PARTY PAYMENTS,PRIVATE CONTRACTOR,REVENUE
Walsall Council,http://opendatacommunities.org/id/metropolitan-district-council/walsall,WC122-566,31.01.2021,ADULT SOCIAL CARE,ALPHA HEALTH CARE LTD,15/01/2021,"3,600.00",6541-Nursing EMI,THIRD PARTY PAYMENTS,PRIVATE CONTRACTOR,REVENUE
Walsall Council,http://opendatacommunities.org/id/metropolitan-district-council/walsall,WC122-567,31.01.2021,ADULT SOCIAL CARE,ALPHA HEALTH CARE LTD,15/01/2021,"7,600.00",6541-Residential,THIRD PARTY PAYMENTS,PRIVATE CONTRACTOR,REVENUE
Walsall Council,http://opendatacommunities.org/id/metropolitan-district-council/walsall,WC122-568,31.01.2021,ADULT SOCIAL CARE,ALPHA HEALTH CARE LTD,22/01/2021,"7,750.00",6554-Professional Services-Priv Contractor & Other Agencies,THIRD PARTY PAYMENTS,PRIVATE CONTRACTOR,REVENUE
Walsall Council,http://opendatacommunities.org/id/metropolitan-district-council/walsall,WC122-569,31.01.2021,ADULT SOCIAL CARE,ALPHA HEALTH CARE LTD,22/01/2021,"4,207.14",6554-Professional Services-Priv Contractor & Other Agencies,THIRD PARTY PAYMENTS,PRIVATE CONTRACTOR,REVENUE
Walsall Council,http://opendatacommunities.org/id/metropolitan-district-council/walsall,WC122-570,31.01.2021,ADULT SOCIAL CARE,ALPHA HEALTH CARE LTD,22/01/2021,"4,207.14",6554-Professional Services-Priv Contractor & Other Agencies,THIRD PARTY PAYMENTS,PRIVATE CONTRACTOR,REVENUE
Walsall Council,http://opendatacommunities.org/id/metropolitan-district-council/walsall,WC122-571,31.01.2021,ADULT SOCIAL CARE,ALPHA HEALTH CARE LTD,27/01/2021,"1,357.14",6554-Professional Services-Priv Contractor & Other Agencies,THIRD PARTY PAYMENTS,PRIVATE CONTRACTOR,REVENUE
Walsall Council,http://opendatacommunities.org/id/metropolitan-district-council/walsall,WC122-572,31.01.2021,ADULT SOCIAL CARE,ALPHA HEALTH CARE LTD,27/01/2021,"2,442.86",6554-Professional Services-Priv Contractor & Other Agencies,THIRD PARTY PAYMENTS,PRIVATE CONTRACTOR,REVENUE
Walsall Council,http://opendatacommunities.org/id/metropolitan-district-council/walsall,WC122-573,31.01.2021,ADULT SOCIAL CARE,ALPHA HEALTH CARE LTD,29/01/2021,"8,859.70",6554-Professional Services-Priv Contractor & Other Agencies,THIRD PARTY PAYMENTS,PRIVATE CONTRACTOR,REVENUE
Walsall Council,http://opendatacommunities.org/id/metropolitan-district-council/walsall,WC122-574,31.01.2021,ADULT SOCIAL CARE,ALPHA HEALTH CARE LTD,29/01/2021,"6,071.43",6554-Professional Services-Priv Contractor & Other Agencies,THIRD PARTY PAYMENTS,PRIVATE CONTRACTOR,REVENUE
Walsall Council,http://opendatacommunities.org/id/metropolitan-district-council/walsall,WC122-575,31.01.2021,ADULT SOCIAL CARE,ALPHA HEALTH CARE LTD,29/01/2021,800.00,6554-Professional Services-Priv Contractor & Other Agencies,THIRD PARTY PAYMENTS,PRIVATE CONTRACTOR,REVENUE
Walsall Council,http://opendatacommunities.org/id/metropolitan-district-council/walsall,WC122-576,31.01.2021,ADULT SOCIAL CARE,ALPHA HEALTH CARE LTD,29/01/2021,"3,600.00",6554-Professional Services-Priv Contractor & Other Agencies,THIRD PARTY PAYMENTS,PRIVATE CONTRACTOR,REVENUE
Walsall Council,http://opendatacommunities.org/id/metropolitan-district-council/walsall,WC122-577,31.01.2021,ADULT SOCIAL CARE,ALPHA HEALTH CARE LTD,29/01/2021,"7,398.00",6554-Professional Services-Priv Contractor & Other Agencies,THIRD PARTY PAYMENTS,PRIVATE CONTRACTOR,REVENUE
Walsall Council,http://opendatacommunities.org/id/metropolitan-district-council/walsall,WC122-578,31.01.2021,CHILDRENS,ALPHA TRAINING ACADEMY UK LTD,09/01/2021,"2,425.00",1187-Materials,SUPPLIES & SERVICES,EQUIPMENT FURNITURE & MATERIALS,REVENUE
Walsall Council,http://opendatacommunities.org/id/metropolitan-district-council/walsall,WC122-579,31.01.2021,CHILDRENS,ALPHA TRAINING ACADEMY UK LTD,13/01/2021,"3,621.00",1220-Professional Fees & Services,SUPPLIES & SERVICES,SERVICES,REVENUE
Walsall Council,http://opendatacommunities.org/id/metropolitan-district-council/walsall,WC122-580,31.01.2021,CHILDRENS,AMAH NURSERIES LIMITED T/A BANANA MOON WALSALL,05/01/2021,"2,633.40",1184-Other-Grants to Other Orgs,SUPPLIES & SERVICES,GRANTS (EXP) & SUBSCRIPTIONS,REVENUE
Walsall Council,http://opendatacommunities.org/id/metropolitan-district-council/walsall,WC122-581,31.01.2021,CHILDRENS,AMAH NURSERIES LIMITED T/A BANANA MOON WALSALL,05/01/2021,"13,157.10",1184-Other-Grants to Other Orgs,SUPPLIES & SERVICES,GRANTS (EXP) & SUBSCRIPTIONS,REVENUE
Walsall Council,http://opendatacommunities.org/id/metropolitan-district-council/walsall,WC122-582,31.01.2021,CHILDRENS,AMAH NURSERIES LIMITED T/A BANANA MOON WALSALL,22/01/2021,600.00,1184-Other-Grants to Other Orgs,SUPPLIES & SERVICES,GRANTS (EXP) & SUBSCRIPTIONS,REVENUE
Walsall Council,http://opendatacommunities.org/id/metropolitan-district-council/walsall,WC122-583,31.01.2021,CHILDRENS,REDACTED,08/01/2021,318.08,6223-Residents Orders,TRANSFER PAYMENTS,CHILDREN SOCIAL SERVICES CLIENT,REVENUE
Walsall Council,http://opendatacommunities.org/id/metropolitan-district-council/walsall,WC122-584,31.01.2021,ADULT SOCIAL CARE,REDACTED,06/01/2021,"1,547.04",6541-Direct Payment,THIRD PARTY PAYMENTS,PRIVATE CONTRACTOR,REVENUE
Walsall Council,http://opendatacommunities.org/id/metropolitan-district-council/walsall,WC122-585,31.01.2021,ADULT SOCIAL CARE,REDACTED,06/01/2021,"1,155.00",6541-Direct Payment,THIRD PARTY PAYMENTS,PRIVATE CONTRACTOR,REVENUE
Walsall Council,http://opendatacommunities.org/id/metropolitan-district-council/walsall,WC122-586,31.01.2021,ECONOMY & ENVIRONMENT,AMEY OW LTD,19/01/2021,"11,545.82",6411-Professional Services-Priv Contractor & Other Agencies,THIRD PARTY PAYMENTS,PRIVATE CONTRACTOR,REVENUE
Walsall Council,http://opendatacommunities.org/id/metropolitan-district-council/walsall,WC122-587,31.01.2021,ECONOMY & ENVIRONMENT CAPITAL,AMEY OW LTD,19/01/2021,"5,152.85",7200-Project Fees,CAPITAL,"NEW CONSTRUCTION,CONVERSION & RENOVATION",REVENUE
Walsall Council,http://opendatacommunities.org/id/metropolitan-district-council/walsall,WC122-588,31.01.2021,ADULT SOCIAL CARE,AMG NURSING CARE SERVICES,13/01/2021,"11,076.98",6541-Community Supported Living/Supported Accommodation,THIRD PARTY PAYMENTS,PRIVATE CONTRACTOR,REVENUE
Walsall Council,http://opendatacommunities.org/id/metropolitan-district-council/walsall,WC122-589,31.01.2021,ADULT SOCIAL CARE,AMG NURSING CARE SERVICES,13/01/2021,"11,101.32",6541-Community Supported Living/Supported Accommodation,THIRD PARTY PAYMENTS,PRIVATE CONTRACTOR,REVENUE
Walsall Council,http://opendatacommunities.org/id/metropolitan-district-council/walsall,WC122-590,31.01.2021,ADULT SOCIAL CARE,AMG NURSING CARE SERVICES,13/01/2021,"11,101.32",6541-Community Supported Living/Supported Accommodation,THIRD PARTY PAYMENTS,PRIVATE CONTRACTOR,REVENUE
Walsall Council,http://opendatacommunities.org/id/metropolitan-district-council/walsall,WC122-591,31.01.2021,ADULT SOCIAL CARE,AMG NURSING CARE SERVICES,13/01/2021,"10,947.14",6541-Community Supported Living/Supported Accommodation,THIRD PARTY PAYMENTS,PRIVATE CONTRACTOR,REVENUE
Walsall Council,http://opendatacommunities.org/id/metropolitan-district-council/walsall,WC122-592,31.01.2021,ADULT SOCIAL CARE,AMG NURSING CARE SERVICES,13/01/2021,"11,182.48",6541-Community Supported Living/Supported Accommodation,THIRD PARTY PAYMENTS,PRIVATE CONTRACTOR,REVENUE
Walsall Council,http://opendatacommunities.org/id/metropolitan-district-council/walsall,WC122-593,31.01.2021,ADULT SOCIAL CARE,AMG NURSING CARE SERVICES,13/01/2021,"11,076.98",6541-Community Supported Living/Supported Accommodation,THIRD PARTY PAYMENTS,PRIVATE CONTRACTOR,REVENUE
Walsall Council,http://opendatacommunities.org/id/metropolitan-district-council/walsall,WC122-594,31.01.2021,ADULT SOCIAL CARE,AMG NURSING CARE SERVICES,13/01/2021,"8,289.48",6541-Community Supported Living/Supported Accommodation,THIRD PARTY PAYMENTS,PRIVATE CONTRACTOR,REVENUE
Walsall Council,http://opendatacommunities.org/id/metropolitan-district-council/walsall,WC122-595,31.01.2021,CHILDRENS,AMG NURSING CARE SERVICES,15/01/2021,"2,644.72",6220-Professional Fees & Services,SUPPLIES & SERVICES,SERVICES,REVENUE
Walsall Council,http://opendatacommunities.org/id/metropolitan-district-council/walsall,WC122-596,31.01.2021,CHILDRENS,REDACTED,08/01/2021,600.00,6223-Foster Carers Maintenance Allowance,TRANSFER PAYMENTS,CHILDREN SOCIAL SERVICES CLIENT,REVENUE
Walsall Council,http://opendatacommunities.org/id/metropolitan-district-council/walsall,WC122-597,31.01.2021,CHILDRENS,REDACTED,08/01/2021,340.00,6223-Internal Foster Carers-Carer Fees,TRANSFER PAYMENTS,CHILDREN SOCIAL SERVICES CLIENT,REVENUE
Walsall Council,http://opendatacommunities.org/id/metropolitan-district-council/walsall,WC122-598,31.01.2021,ADULT SOCIAL CARE,ANCHOR CAREHOMES LTD - HARDEN HALL,15/01/2021,"2,308.00",6541-Residential EMI,THIRD PARTY PAYMENTS,PRIVATE CONTRACTOR,REVENUE
Walsall Council,http://opendatacommunities.org/id/metropolitan-district-council/walsall,WC122-599,31.01.2021,ADULT SOCIAL CARE,ANCHOR CAREHOMES LTD - HARDEN HALL,15/01/2021,"2,044.00",6541-Residential,THIRD PARTY PAYMENTS,PRIVATE CONTRACTOR,REVENUE
Walsall Council,http://opendatacommunities.org/id/metropolitan-district-council/walsall,WC122-600,31.01.2021,ADULT SOCIAL CARE,ANCHOR CAREHOMES LTD - HARDEN HALL,15/01/2021,"2,044.00",6541-Residential,THIRD PARTY PAYMENTS,PRIVATE CONTRACTOR,REVENUE
Walsall Council,http://opendatacommunities.org/id/metropolitan-district-council/walsall,WC122-601,31.01.2021,ADULT SOCIAL CARE,ANCHOR CAREHOMES LTD - HARDEN HALL,15/01/2021,"2,094.96",6541-Residential,THIRD PARTY PAYMENTS,PRIVATE CONTRACTOR,REVENUE
Walsall Council,http://opendatacommunities.org/id/metropolitan-district-council/walsall,WC122-602,31.01.2021,ADULT SOCIAL CARE,ANCHOR CAREHOMES LTD - HARDEN HALL,15/01/2021,"2,332.24",6541-Residential EMI,THIRD PARTY PAYMENTS,PRIVATE CONTRACTOR,REVENUE
Walsall Council,http://opendatacommunities.org/id/metropolitan-district-council/walsall,WC122-603,31.01.2021,ADULT SOCIAL CARE,ANCHOR CAREHOMES LTD - HARDEN HALL,15/01/2021,"2,308.00",6541-Residential EMI,THIRD PARTY PAYMENTS,PRIVATE CONTRACTOR,REVENUE
Walsall Council,http://opendatacommunities.org/id/metropolitan-district-council/walsall,WC122-604,31.01.2021,ADULT SOCIAL CARE,ANCHOR CAREHOMES LTD - HARDEN HALL,15/01/2021,"2,044.00",6541-Residential,THIRD PARTY PAYMENTS,PRIVATE CONTRACTOR,REVENUE
Walsall Council,http://opendatacommunities.org/id/metropolitan-district-council/walsall,WC122-605,31.01.2021,ADULT SOCIAL CARE,ANCHOR CAREHOMES LTD - HARDEN HALL,15/01/2021,"2,308.00",6541-Residential EMI,THIRD PARTY PAYMENTS,PRIVATE CONTRACTOR,REVENUE
Walsall Council,http://opendatacommunities.org/id/metropolitan-district-council/walsall,WC122-606,31.01.2021,ADULT SOCIAL CARE,ANCHOR CAREHOMES LTD - HARDEN HALL,15/01/2021,"2,308.00",6541-Residential EMI,THIRD PARTY PAYMENTS,PRIVATE CONTRACTOR,REVENUE
Walsall Council,http://opendatacommunities.org/id/metropolitan-district-council/walsall,WC122-607,31.01.2021,ADULT SOCIAL CARE,ANCHOR CAREHOMES LTD - HARDEN HALL,15/01/2021,"2,308.00",6541-Residential EMI,THIRD PARTY PAYMENTS,PRIVATE CONTRACTOR,REVENUE
Walsall Council,http://opendatacommunities.org/id/metropolitan-district-council/walsall,WC122-608,31.01.2021,ADULT SOCIAL CARE,ANCHOR CAREHOMES LTD - HARDEN HALL,15/01/2021,"2,308.00",6541-Residential EMI,THIRD PARTY PAYMENTS,PRIVATE CONTRACTOR,REVENUE
Walsall Council,http://opendatacommunities.org/id/metropolitan-district-council/walsall,WC122-609,31.01.2021,ADULT SOCIAL CARE,ANCHOR CAREHOMES LTD - HARDEN HALL,15/01/2021,"2,308.00",6541-Residential EMI,THIRD PARTY PAYMENTS,PRIVATE CONTRACTOR,REVENUE
Walsall Council,http://opendatacommunities.org/id/metropolitan-district-council/walsall,WC122-610,31.01.2021,ADULT SOCIAL CARE,ANCHOR CAREHOMES LTD - HARDEN HALL,15/01/2021,"-5,633.43",6541-Residential EMI,THIRD PARTY PAYMENTS,PRIVATE CONTRACTOR,REVENUE
Walsall Council,http://opendatacommunities.org/id/metropolitan-district-council/walsall,WC122-611,31.01.2021,ADULT SOCIAL CARE,ANCHOR CAREHOMES LTD - HARDEN HALL,15/01/2021,"2,266.12",6541-Residential,THIRD PARTY PAYMENTS,PRIVATE CONTRACTOR,REVENUE
Walsall Council,http://opendatacommunities.org/id/metropolitan-district-council/walsall,WC122-612,31.01.2021,ADULT SOCIAL CARE,ANCHOR CAREHOMES LTD - HARDEN HALL,15/01/2021,"2,332.24",6541-Residential EMI,THIRD PARTY PAYMENTS,PRIVATE CONTRACTOR,REVENUE
Walsall Council,http://opendatacommunities.org/id/metropolitan-district-council/walsall,WC122-613,31.01.2021,ADULT SOCIAL CARE,ANCHOR CAREHOMES LTD - HARDEN HALL,15/01/2021,"2,312.24",6541-Residential EMI,THIRD PARTY PAYMENTS,PRIVATE CONTRACTOR,REVENUE
Walsall Council,http://opendatacommunities.org/id/metropolitan-district-council/walsall,WC122-614,31.01.2021,ADULT SOCIAL CARE,ANCHOR CAREHOMES LTD - HARDEN HALL,15/01/2021,"2,308.00",6541-Residential EMI,THIRD PARTY PAYMENTS,PRIVATE CONTRACTOR,REVENUE
Walsall Council,http://opendatacommunities.org/id/metropolitan-district-council/walsall,WC122-615,31.01.2021,ADULT SOCIAL CARE,ANCHOR CAREHOMES LTD - HARDEN HALL,15/01/2021,"2,308.00",6541-Residential EMI,THIRD PARTY PAYMENTS,PRIVATE CONTRACTOR,REVENUE
Walsall Council,http://opendatacommunities.org/id/metropolitan-district-council/walsall,WC122-616,31.01.2021,ADULT SOCIAL CARE,ANCHOR CAREHOMES LTD - HARDEN HALL,15/01/2021,"2,358.96",6541-Residential EMI,THIRD PARTY PAYMENTS,PRIVATE CONTRACTOR,REVENUE
Walsall Council,http://opendatacommunities.org/id/metropolitan-district-council/walsall,WC122-617,31.01.2021,ADULT SOCIAL CARE,ANCHOR CAREHOMES LTD - HARDEN HALL,15/01/2021,"2,332.24",6541-Residential EMI,THIRD PARTY PAYMENTS,PRIVATE CONTRACTOR,REVENUE
Walsall Council,http://opendatacommunities.org/id/metropolitan-district-council/walsall,WC122-618,31.01.2021,ADULT SOCIAL CARE,ANCHOR CAREHOMES LTD - HARDEN HALL,15/01/2021,"2,271.48",6541-Residential EMI,THIRD PARTY PAYMENTS,PRIVATE CONTRACTOR,REVENUE
Walsall Council,http://opendatacommunities.org/id/metropolitan-district-council/walsall,WC122-619,31.01.2021,ADULT SOCIAL CARE,ANCHOR CAREHOMES LTD - HARDEN HALL,15/01/2021,"2,044.00",6541-Residential,THIRD PARTY PAYMENTS,PRIVATE CONTRACTOR,REVENUE
Walsall Council,http://opendatacommunities.org/id/metropolitan-district-council/walsall,WC122-620,31.01.2021,ADULT SOCIAL CARE,ANCHOR CAREHOMES LTD - HARDEN HALL,15/01/2021,"2,312.24",6541-Residential EMI,THIRD PARTY PAYMENTS,PRIVATE CONTRACTOR,REVENUE
Walsall Council,http://opendatacommunities.org/id/metropolitan-district-council/walsall,WC122-621,31.01.2021,ADULT SOCIAL CARE,ANCHOR CAREHOMES LTD - HARDEN HALL,15/01/2021,"2,308.00",6541-Residential EMI,THIRD PARTY PAYMENTS,PRIVATE CONTRACTOR,REVENUE
Walsall Council,http://opendatacommunities.org/id/metropolitan-district-council/walsall,WC122-622,31.01.2021,ADULT SOCIAL CARE,ANCHOR CAREHOMES LTD - HARDEN HALL,15/01/2021,"2,332.24",6541-Residential EMI,THIRD PARTY PAYMENTS,PRIVATE CONTRACTOR,REVENUE
Walsall Council,http://opendatacommunities.org/id/metropolitan-district-council/walsall,WC122-623,31.01.2021,ADULT SOCIAL CARE,ANCHOR CAREHOMES LTD - HARDEN HALL,15/01/2021,"2,308.00",6541-Residential EMI,THIRD PARTY PAYMENTS,PRIVATE CONTRACTOR,REVENUE
Walsall Council,http://opendatacommunities.org/id/metropolitan-district-council/walsall,WC122-624,31.01.2021,ADULT SOCIAL CARE,ANCHOR CAREHOMES LTD - HARDEN HALL,15/01/2021,"2,044.00",6541-Residential,THIRD PARTY PAYMENTS,PRIVATE CONTRACTOR,REVENUE
Walsall Council,http://opendatacommunities.org/id/metropolitan-district-council/walsall,WC122-625,31.01.2021,ADULT SOCIAL CARE,ANCHOR CAREHOMES LTD - HARDEN HALL,15/01/2021,"2,308.00",6541-Residential EMI,THIRD PARTY PAYMENTS,PRIVATE CONTRACTOR,REVENUE
Walsall Council,http://opendatacommunities.org/id/metropolitan-district-council/walsall,WC122-626,31.01.2021,ADULT SOCIAL CARE,ANCHOR CAREHOMES LTD - HARDEN HALL,15/01/2021,"2,308.00",6541-Residential EMI,THIRD PARTY PAYMENTS,PRIVATE CONTRACTOR,REVENUE
Walsall Council,http://opendatacommunities.org/id/metropolitan-district-council/walsall,WC122-627,31.01.2021,ADULT SOCIAL CARE,ANCHOR CAREHOMES LTD - HARDEN HALL,15/01/2021,"2,044.00",6541-Residential,THIRD PARTY PAYMENTS,PRIVATE CONTRACTOR,REVENUE
Walsall Council,http://opendatacommunities.org/id/metropolitan-district-council/walsall,WC122-628,31.01.2021,ADULT SOCIAL CARE,ANCHOR CAREHOMES LTD - HARDEN HALL,15/01/2021,"2,044.00",6541-Residential,THIRD PARTY PAYMENTS,PRIVATE CONTRACTOR,REVENUE
Walsall Council,http://opendatacommunities.org/id/metropolitan-district-council/walsall,WC122-629,31.01.2021,ADULT SOCIAL CARE,ANCHOR CAREHOMES LTD - HARDEN HALL,15/01/2021,"2,308.00",6541-Residential EMI,THIRD PARTY PAYMENTS,PRIVATE CONTRACTOR,REVENUE
Walsall Council,http://opendatacommunities.org/id/metropolitan-district-council/walsall,WC122-630,31.01.2021,ADULT SOCIAL CARE,ANCHOR CAREHOMES LTD - HARDEN HALL,15/01/2021,"2,054.96",6541-Residential,THIRD PARTY PAYMENTS,PRIVATE CONTRACTOR,REVENUE
Walsall Council,http://opendatacommunities.org/id/metropolitan-district-council/walsall,WC122-631,31.01.2021,ADULT SOCIAL CARE,ANCHOR CAREHOMES LTD - HARDEN HALL,15/01/2021,"2,308.00",6541-Residential EMI,THIRD PARTY PAYMENTS,PRIVATE CONTRACTOR,REVENUE
Walsall Council,http://opendatacommunities.org/id/metropolitan-district-council/walsall,WC122-632,31.01.2021,CHILDRENS,REDACTED,08/01/2021,312.24,6223-Special Guardianship Orders,TRANSFER PAYMENTS,CHILDREN SOCIAL SERVICES CLIENT,REVENUE
Walsall Council,http://opendatacommunities.org/id/metropolitan-district-council/walsall,WC122-633,31.01.2021,ADULT SOCIAL CARE,REDACTED,06/01/2021,518.00,6541-Direct Payment,THIRD PARTY PAYMENTS,PRIVATE CONTRACTOR,REVENUE
Walsall Council,http://opendatacommunities.org/id/metropolitan-district-council/walsall,WC122-634,31.01.2021,ADULT SOCIAL CARE,REDACTED,06/01/2021,"2,683.36",6541-Direct Payment,THIRD PARTY PAYMENTS,PRIVATE CONTRACTOR,REVENUE
Walsall Council,http://opendatacommunities.org/id/metropolitan-district-council/walsall,WC122-635,31.01.2021,CHILDRENS CAPITAL,ANDREWS ELECTRICAL LTD,05/01/2021,586.00,7150-Site Works Contractors,CAPITAL,"NEW CONSTRUCTION,CONVERSION & RENOVATION",REVENUE
Walsall Council,http://opendatacommunities.org/id/metropolitan-district-council/walsall,WC122-636,31.01.2021,CHILDRENS CAPITAL,ANDREWS ELECTRICAL LTD,18/01/2021,"2,000.00",7150-Site Works Contractors,CAPITAL,"NEW CONSTRUCTION,CONVERSION & RENOVATION",REVENUE
Walsall Council,http://opendatacommunities.org/id/metropolitan-district-council/walsall,WC122-637,31.01.2021,CHILDRENS CAPITAL,ANDREWS ELECTRICAL LTD,27/01/2021,250.00,7150-Site Works Contractors,CAPITAL,"NEW CONSTRUCTION,CONVERSION & RENOVATION",REVENUE
Walsall Council,http://opendatacommunities.org/id/metropolitan-district-council/walsall,WC122-638,31.01.2021,CHILDRENS,REDACTED,08/01/2021,500.16,6223-Special Guardianship Orders,TRANSFER PAYMENTS,CHILDREN SOCIAL SERVICES CLIENT,REVENUE
Walsall Council,http://opendatacommunities.org/id/metropolitan-district-council/walsall,WC122-639,31.01.2021,CHILDRENS,REDACTED,08/01/2021,368.76,6223-Special Guardianship Orders,TRANSFER PAYMENTS,CHILDREN SOCIAL SERVICES CLIENT,REVENUE
Walsall Council,http://opendatacommunities.org/id/metropolitan-district-council/walsall,WC122-640,31.01.2021,CHILDRENS,REDACTED,08/01/2021,312.04,6223-Special Guardianship Orders,TRANSFER PAYMENTS,CHILDREN SOCIAL SERVICES CLIENT,REVENUE
Walsall Council,http://opendatacommunities.org/id/metropolitan-district-council/walsall,WC122-641,31.01.2021,CHILDRENS,ANGELS AND BUTTERFLIES CHILDMINDING,04/01/2021,658.35,1184-Other-Grants to Other Orgs,SUPPLIES & SERVICES,GRANTS (EXP) & SUBSCRIPTIONS,REVENUE
Walsall Council,http://opendatacommunities.org/id/metropolitan-district-council/walsall,WC122-642,31.01.2021,CHILDRENS,ANGELS AND BUTTERFLIES CHILDMINDING,04/01/2021,"5,555.22",1184-Other-Grants to Other Orgs,SUPPLIES & SERVICES,GRANTS (EXP) & SUBSCRIPTIONS,REVENUE
Walsall Council,http://opendatacommunities.org/id/metropolitan-district-council/walsall,WC122-643,31.01.2021,ADULT SOCIAL CARE,REDACTED,06/01/2021,"1,408.36",6541-Direct Payment,THIRD PARTY PAYMENTS,PRIVATE CONTRACTOR,REVENUE
Walsall Council,http://opendatacommunities.org/id/metropolitan-district-council/walsall,WC122-644,31.01.2021,ADULT SOCIAL CARE,ANSON COURT RESIDENTIAL HOME,15/01/2021,"2,308.00",6541-Residential EMI,THIRD PARTY PAYMENTS,PRIVATE CONTRACTOR,REVENUE
Walsall Council,http://opendatacommunities.org/id/metropolitan-district-council/walsall,WC122-645,31.01.2021,ADULT SOCIAL CARE,ANSON COURT RESIDENTIAL HOME,15/01/2021,"2,308.00",6541-Residential EMI,THIRD PARTY PAYMENTS,PRIVATE CONTRACTOR,REVENUE
Walsall Council,http://opendatacommunities.org/id/metropolitan-district-council/walsall,WC122-646,31.01.2021,ADULT SOCIAL CARE,ANSON COURT RESIDENTIAL HOME,15/01/2021,"2,308.00",6541-Residential EMI,THIRD PARTY PAYMENTS,PRIVATE CONTRACTOR,REVENUE
Walsall Council,http://opendatacommunities.org/id/metropolitan-district-council/walsall,WC122-647,31.01.2021,ADULT SOCIAL CARE,ANSON COURT RESIDENTIAL HOME,15/01/2021,"2,164.00",6541-Residential,THIRD PARTY PAYMENTS,PRIVATE CONTRACTOR,REVENUE
Walsall Council,http://opendatacommunities.org/id/metropolitan-district-council/walsall,WC122-648,31.01.2021,ADULT SOCIAL CARE,ANSON COURT RESIDENTIAL HOME,15/01/2021,"2,308.00",6541-Residential EMI,THIRD PARTY PAYMENTS,PRIVATE CONTRACTOR,REVENUE
Walsall Council,http://opendatacommunities.org/id/metropolitan-district-council/walsall,WC122-649,31.01.2021,ADULT SOCIAL CARE,ANSON COURT RESIDENTIAL HOME,15/01/2021,"2,308.00",6541-Residential EMI,THIRD PARTY PAYMENTS,PRIVATE CONTRACTOR,REVENUE
Walsall Council,http://opendatacommunities.org/id/metropolitan-district-council/walsall,WC122-650,31.01.2021,ADULT SOCIAL CARE,ANSON COURT RESIDENTIAL HOME,15/01/2021,"2,308.00",6541-Residential EMI,THIRD PARTY PAYMENTS,PRIVATE CONTRACTOR,REVENUE
Walsall Council,http://opendatacommunities.org/id/metropolitan-district-council/walsall,WC122-651,31.01.2021,ADULT SOCIAL CARE,ANSON COURT RESIDENTIAL HOME,15/01/2021,"2,308.00",6541-Residential EMI,THIRD PARTY PAYMENTS,PRIVATE CONTRACTOR,REVENUE
Walsall Council,http://opendatacommunities.org/id/metropolitan-district-council/walsall,WC122-652,31.01.2021,ADULT SOCIAL CARE,ANSON COURT RESIDENTIAL HOME,15/01/2021,"2,308.00",6541-Residential EMI,THIRD PARTY PAYMENTS,PRIVATE CONTRACTOR,REVENUE
Walsall Council,http://opendatacommunities.org/id/metropolitan-district-council/walsall,WC122-653,31.01.2021,ADULT SOCIAL CARE,ANSON COURT RESIDENTIAL HOME,15/01/2021,"2,308.00",6541-Residential EMI,THIRD PARTY PAYMENTS,PRIVATE CONTRACTOR,REVENUE
Walsall Council,http://opendatacommunities.org/id/metropolitan-district-council/walsall,WC122-654,31.01.2021,ADULT SOCIAL CARE,ANSON COURT RESIDENTIAL HOME,15/01/2021,"2,308.00",6541-Residential EMI,THIRD PARTY PAYMENTS,PRIVATE CONTRACTOR,REVENUE
Walsall Council,http://opendatacommunities.org/id/metropolitan-district-council/walsall,WC122-655,31.01.2021,ADULT SOCIAL CARE,ANSON COURT RESIDENTIAL HOME,15/01/2021,"2,172.24",6541-Residential,THIRD PARTY PAYMENTS,PRIVATE CONTRACTOR,REVENUE
Walsall Council,http://opendatacommunities.org/id/metropolitan-district-council/walsall,WC122-656,31.01.2021,ADULT SOCIAL CARE,ANSON COURT RESIDENTIAL HOME,15/01/2021,"2,044.00",6541-Residential,THIRD PARTY PAYMENTS,PRIVATE CONTRACTOR,REVENUE
Walsall Council,http://opendatacommunities.org/id/metropolitan-district-council/walsall,WC122-657,31.01.2021,ADULT SOCIAL CARE,ANSON COURT RESIDENTIAL HOME,15/01/2021,"2,308.00",6541-Residential EMI,THIRD PARTY PAYMENTS,PRIVATE CONTRACTOR,REVENUE
Walsall Council,http://opendatacommunities.org/id/metropolitan-district-council/walsall,WC122-658,31.01.2021,CHILDRENS,REDACTED,08/01/2021,333.12,6223-Special Guardianship Orders,TRANSFER PAYMENTS,CHILDREN SOCIAL SERVICES CLIENT,REVENUE
Walsall Council,http://opendatacommunities.org/id/metropolitan-district-council/walsall,WC122-659,31.01.2021,ECONOMY & ENVIRONMENT,APCOA PARKING SERVICES (UK) LTD,27/01/2021,"33,019.95",6411-Professional Services-Priv Contractor & Other Agencies,THIRD PARTY PAYMENTS,PRIVATE CONTRACTOR,REVENUE
Walsall Council,http://opendatacommunities.org/id/metropolitan-district-council/walsall,WC122-660,31.01.2021,CHILDRENS,APP CARZ,28/01/2021,440.00,6241-Hire of Vehicle with Driver,TRANSPORT,DIRECT TRANSPORT COSTS,REVENUE
Walsall Council,http://opendatacommunities.org/id/metropolitan-district-council/walsall,WC122-661,31.01.2021,CHILDRENS,APP CARZ,28/01/2021,500.00,6241-Hire of Vehicle with Driver,TRANSPORT,DIRECT TRANSPORT COSTS,REVENUE
Walsall Council,http://opendatacommunities.org/id/metropolitan-district-council/walsall,WC122-662,31.01.2021,CHILDRENS,APP CARZ,28/01/2021,"-1,315.00",6241-Hire of Vehicle with Driver,TRANSPORT,DIRECT TRANSPORT COSTS,REVENUE
Walsall Council,http://opendatacommunities.org/id/metropolitan-district-council/walsall,WC122-663,31.01.2021,CHILDRENS,APP CARZ,28/01/2021,729.00,6241-Hire of Vehicle with Driver,TRANSPORT,DIRECT TRANSPORT COSTS,REVENUE
Walsall Council,http://opendatacommunities.org/id/metropolitan-district-council/walsall,WC122-664,31.01.2021,CHILDRENS,APP CARZ,28/01/2021,336.60,6241-Hire of Vehicle with Driver,TRANSPORT,DIRECT TRANSPORT COSTS,REVENUE
Walsall Council,http://opendatacommunities.org/id/metropolitan-district-council/walsall,WC122-665,31.01.2021,CHILDRENS,APP CARZ,28/01/2021,576.00,6241-Hire of Vehicle with Driver,TRANSPORT,DIRECT TRANSPORT COSTS,REVENUE
Walsall Council,http://opendatacommunities.org/id/metropolitan-district-council/walsall,WC122-666,31.01.2021,CHILDRENS,APP CARZ,28/01/2021,560.00,6241-Hire of Vehicle with Driver,TRANSPORT,DIRECT TRANSPORT COSTS,REVENUE
Walsall Council,http://opendatacommunities.org/id/metropolitan-district-council/walsall,WC122-667,31.01.2021,CHILDRENS,APP CARZ,28/01/2021,640.00,6241-Hire of Vehicle with Driver,TRANSPORT,DIRECT TRANSPORT COSTS,REVENUE
Walsall Council,http://opendatacommunities.org/id/metropolitan-district-council/walsall,WC122-668,31.01.2021,CHILDRENS,APP CARZ,28/01/2021,396.00,6241-Hire of Vehicle with Driver,TRANSPORT,DIRECT TRANSPORT COSTS,REVENUE
Walsall Council,http://opendatacommunities.org/id/metropolitan-district-council/walsall,WC122-669,31.01.2021,CHILDRENS,APP CARZ,28/01/2021,"2,137.00",6241-Hire of Vehicle with Driver,TRANSPORT,DIRECT TRANSPORT COSTS,REVENUE
Walsall Council,http://opendatacommunities.org/id/metropolitan-district-council/walsall,WC122-670,31.01.2021,CHILDRENS,APP CARZ,28/01/2021,"-2,190.00",6241-Hire of Vehicle with Driver,TRANSPORT,DIRECT TRANSPORT COSTS,REVENUE
Walsall Council,http://opendatacommunities.org/id/metropolitan-district-council/walsall,WC122-671,31.01.2021,CHILDRENS,APP CARZ,28/01/2021,-786.00,6241-Hire of Vehicle with Driver,TRANSPORT,DIRECT TRANSPORT COSTS,REVENUE
Walsall Council,http://opendatacommunities.org/id/metropolitan-district-council/walsall,WC122-672,31.01.2021,CHILDRENS,APP CARZ,28/01/2021,640.00,6241-Hire of Vehicle with Driver,TRANSPORT,DIRECT TRANSPORT COSTS,REVENUE
Walsall Council,http://opendatacommunities.org/id/metropolitan-district-council/walsall,WC122-673,31.01.2021,CHILDRENS,APPLE TRANSCRIPTION LIMITED,25/01/2021,323.70,6220-School Only Payments - Catering,THIRD PARTY PAYMENTS,INDEPENDENT UNIT WITHIN COUNCIL,REVENUE
Walsall Council,http://opendatacommunities.org/id/metropolitan-district-council/walsall,WC122-674,31.01.2021,ADULT SOCIAL CARE,ARBORETUM NURSING HOME.,12/01/2021,"11,920.00",6554-Professional Services-Priv Contractor & Other Agencies,THIRD PARTY PAYMENTS,PRIVATE CONTRACTOR,REVENUE
Walsall Council,http://opendatacommunities.org/id/metropolitan-district-council/walsall,WC122-675,31.01.2021,ADULT SOCIAL CARE,ARBORETUM NURSING HOME.,21/01/2021,"11,920.00",6554-Professional Services-Priv Contractor & Other Agencies,THIRD PARTY PAYMENTS,PRIVATE CONTRACTOR,REVENUE
Walsall Council,http://opendatacommunities.org/id/metropolitan-district-council/walsall,WC122-676,31.01.2021,ADULT SOCIAL CARE,ARBORETUM NURSING HOME.,15/01/2021,"2,396.00",6541-Nursing,THIRD PARTY PAYMENTS,PRIVATE CONTRACTOR,REVENUE
Walsall Council,http://opendatacommunities.org/id/metropolitan-district-council/walsall,WC122-677,31.01.2021,ADULT SOCIAL CARE,ARBORETUM NURSING HOME.,15/01/2021,"2,396.00",6541-Nursing,THIRD PARTY PAYMENTS,PRIVATE CONTRACTOR,REVENUE
Walsall Council,http://opendatacommunities.org/id/metropolitan-district-council/walsall,WC122-678,31.01.2021,ADULT SOCIAL CARE,ARBORETUM NURSING HOME.,15/01/2021,"2,396.00",6541-Nursing,THIRD PARTY PAYMENTS,PRIVATE CONTRACTOR,REVENUE
Walsall Council,http://opendatacommunities.org/id/metropolitan-district-council/walsall,WC122-679,31.01.2021,ADULT SOCIAL CARE,ARBORETUM NURSING HOME.,15/01/2021,"2,396.00",6541-Nursing,THIRD PARTY PAYMENTS,PRIVATE CONTRACTOR,REVENUE
Walsall Council,http://opendatacommunities.org/id/metropolitan-district-council/walsall,WC122-680,31.01.2021,ADULT SOCIAL CARE,ARBORETUM NURSING HOME.,15/01/2021,"2,576.00",6541-Nursing,THIRD PARTY PAYMENTS,PRIVATE CONTRACTOR,REVENUE
Walsall Council,http://opendatacommunities.org/id/metropolitan-district-council/walsall,WC122-681,31.01.2021,ADULT SOCIAL CARE,ARBORETUM NURSING HOME.,15/01/2021,"2,396.00",6541-Nursing,THIRD PARTY PAYMENTS,PRIVATE CONTRACTOR,REVENUE
Walsall Council,http://opendatacommunities.org/id/metropolitan-district-council/walsall,WC122-682,31.01.2021,ADULT SOCIAL CARE,ARBORETUM NURSING HOME.,15/01/2021,"2,396.00",6541-Nursing,THIRD PARTY PAYMENTS,PRIVATE CONTRACTOR,REVENUE
Walsall Council,http://opendatacommunities.org/id/metropolitan-district-council/walsall,WC122-683,31.01.2021,ADULT SOCIAL CARE,ARBORETUM NURSING HOME.,15/01/2021,"2,552.00",6541-Nursing,THIRD PARTY PAYMENTS,PRIVATE CONTRACTOR,REVENUE
Walsall Council,http://opendatacommunities.org/id/metropolitan-district-council/walsall,WC122-684,31.01.2021,ADULT SOCIAL CARE,ARBORETUM NURSING HOME.,15/01/2021,"2,396.00",6541-Nursing,THIRD PARTY PAYMENTS,PRIVATE CONTRACTOR,REVENUE
Walsall Council,http://opendatacommunities.org/id/metropolitan-district-council/walsall,WC122-685,31.01.2021,ADULT SOCIAL CARE,ARBORETUM NURSING HOME.,15/01/2021,"2,576.00",6541-Nursing,THIRD PARTY PAYMENTS,PRIVATE CONTRACTOR,REVENUE
Walsall Council,http://opendatacommunities.org/id/metropolitan-district-council/walsall,WC122-686,31.01.2021,ADULT SOCIAL CARE,ARBORETUM NURSING HOME.,15/01/2021,"2,576.00",6541-Nursing,THIRD PARTY PAYMENTS,PRIVATE CONTRACTOR,REVENUE
Walsall Council,http://opendatacommunities.org/id/metropolitan-district-council/walsall,WC122-687,31.01.2021,ADULT SOCIAL CARE,ARBORETUM NURSING HOME.,15/01/2021,"2,396.00",6541-Nursing,THIRD PARTY PAYMENTS,PRIVATE CONTRACTOR,REVENUE
Walsall Council,http://opendatacommunities.org/id/metropolitan-district-council/walsall,WC122-688,31.01.2021,ADULT SOCIAL CARE,ARBORETUM NURSING HOME.,15/01/2021,"2,396.00",6541-Nursing,THIRD PARTY PAYMENTS,PRIVATE CONTRACTOR,REVENUE
Walsall Council,http://opendatacommunities.org/id/metropolitan-district-council/walsall,WC122-689,31.01.2021,ADULT SOCIAL CARE,ARBORETUM NURSING HOME.,15/01/2021,"2,396.00",6541-Nursing,THIRD PARTY PAYMENTS,PRIVATE CONTRACTOR,REVENUE
Walsall Council,http://opendatacommunities.org/id/metropolitan-district-council/walsall,WC122-690,31.01.2021,ADULT SOCIAL CARE,ARBORETUM NURSING HOME.,15/01/2021,"2,576.00",6541-Nursing,THIRD PARTY PAYMENTS,PRIVATE CONTRACTOR,REVENUE
Walsall Council,http://opendatacommunities.org/id/metropolitan-district-council/walsall,WC122-691,31.01.2021,ADULT SOCIAL CARE,ARBORETUM NURSING HOME.,15/01/2021,256.71,6541-Nursing,THIRD PARTY PAYMENTS,PRIVATE CONTRACTOR,REVENUE
Walsall Council,http://opendatacommunities.org/id/metropolitan-district-council/walsall,WC122-692,31.01.2021,ADULT SOCIAL CARE,ARBORETUM NURSING HOME.,15/01/2021,"2,396.00",6541-Nursing,THIRD PARTY PAYMENTS,PRIVATE CONTRACTOR,REVENUE
Walsall Council,http://opendatacommunities.org/id/metropolitan-district-council/walsall,WC122-693,31.01.2021,ADULT SOCIAL CARE,ARBORETUM NURSING HOME.,12/01/2021,"-2,660.71",6554-Professional Services-Priv Contractor & Other Agencies,THIRD PARTY PAYMENTS,PRIVATE CONTRACTOR,REVENUE
Walsall Council,http://opendatacommunities.org/id/metropolitan-district-council/walsall,WC122-694,31.01.2021,ECONOMY & ENVIRONMENT,ARCADIS,07/01/2021,"18,382.25",6313-Consultant Fees,SUPPLIES & SERVICES,SERVICES,REVENUE
Walsall Council,http://opendatacommunities.org/id/metropolitan-district-council/walsall,WC122-695,31.01.2021,ECONOMY & ENVIRONMENT,ARCADIS,07/01/2021,"18,382.25",6313-Consultant Fees,SUPPLIES & SERVICES,SERVICES,REVENUE
Walsall Council,http://opendatacommunities.org/id/metropolitan-district-council/walsall,WC122-696,31.01.2021,ECONOMY & ENVIRONMENT,ARCADIS,07/01/2021,"3,257.50",6313-Consultant Fees,SUPPLIES & SERVICES,SERVICES,REVENUE
Walsall Council,http://opendatacommunities.org/id/metropolitan-district-council/walsall,WC122-697,31.01.2021,ECONOMY & ENVIRONMENT,ARCADIS,07/01/2021,"6,702.50",6313-Consultant Fees,SUPPLIES & SERVICES,SERVICES,REVENUE
Walsall Council,http://opendatacommunities.org/id/metropolitan-district-council/walsall,WC122-698,31.01.2021,ECONOMY & ENVIRONMENT,ARCADIS,07/01/2021,"13,117.75",6313-Consultant Fees,SUPPLIES & SERVICES,SERVICES,REVENUE
Walsall Council,http://opendatacommunities.org/id/metropolitan-district-council/walsall,WC122-699,31.01.2021,ECONOMY & ENVIRONMENT,ARCADIS,07/01/2021,"13,117.75",6313-Consultant Fees,SUPPLIES & SERVICES,SERVICES,REVENUE
Walsall Council,http://opendatacommunities.org/id/metropolitan-district-council/walsall,WC122-700,31.01.2021,ECONOMY & ENVIRONMENT,ARCADIS,15/01/2021,"49,500.00",6313-Consultant Fees,SUPPLIES & SERVICES,SERVICES,REVENUE
Walsall Council,http://opendatacommunities.org/id/metropolitan-district-council/walsall,WC122-701,31.01.2021,ECONOMY & ENVIRONMENT,ARCO GROUP,19/01/2021,-263.66,6410-Clothing & Laundry,SUPPLIES & SERVICES,"CLOTHES, UNIFORM & LAUNDRY",REVENUE
Walsall Council,http://opendatacommunities.org/id/metropolitan-district-council/walsall,WC122-702,31.01.2021,ECONOMY & ENVIRONMENT,ARCO GROUP,19/01/2021,263.56,6410-Clothing & Laundry,SUPPLIES & SERVICES,"CLOTHES, UNIFORM & LAUNDRY",REVENUE
Walsall Council,http://opendatacommunities.org/id/metropolitan-district-council/walsall,WC122-703,31.01.2021,ECONOMY & ENVIRONMENT,ARCO GROUP,19/01/2021,263.66,6410-Clothing & Laundry,SUPPLIES & SERVICES,"CLOTHES, UNIFORM & LAUNDRY",REVENUE
Walsall Council,http://opendatacommunities.org/id/metropolitan-district-council/walsall,WC122-704,31.01.2021,CHILDRENS CAPITAL,ASBESTOS ABATEMENT SERVICES,04/01/2021,"2,300.00",7150-Site Works Contractors,CAPITAL,"NEW CONSTRUCTION,CONVERSION & RENOVATION",REVENUE
Walsall Council,http://opendatacommunities.org/id/metropolitan-district-council/walsall,WC122-705,31.01.2021,CHILDRENS CAPITAL,ASBESTOS ABATEMENT SERVICES,05/01/2021,"2,278.00",7150-Site Works Contractors,CAPITAL,"NEW CONSTRUCTION,CONVERSION & RENOVATION",REVENUE
Walsall Council,http://opendatacommunities.org/id/metropolitan-district-council/walsall,WC122-706,31.01.2021,CHILDRENS CAPITAL,ASBESTOS ABATEMENT SERVICES,13/01/2021,-350.00,7150-Site Works Contractors,CAPITAL,"NEW CONSTRUCTION,CONVERSION & RENOVATION",REVENUE
Walsall Council,http://opendatacommunities.org/id/metropolitan-district-council/walsall,WC122-707,31.01.2021,CHILDRENS CAPITAL,ASBESTOS ABATEMENT SERVICES,13/01/2021,350.00,7150-Site Works Contractors,CAPITAL,"NEW CONSTRUCTION,CONVERSION & RENOVATION",REVENUE
Walsall Council,http://opendatacommunities.org/id/metropolitan-district-council/walsall,WC122-708,31.01.2021,CHILDRENS CAPITAL,ASBESTOS ABATEMENT SERVICES,04/01/2021,350.00,7150-Site Works Contractors,CAPITAL,"NEW CONSTRUCTION,CONVERSION & RENOVATION",REVENUE
Walsall Council,http://opendatacommunities.org/id/metropolitan-district-council/walsall,WC122-709,31.01.2021,CHILDRENS,ASCENDANT SOLUTIONS LTD,07/01/2021,"8,000.00",6632-Computer Equipment,SUPPLIES & SERVICES,COMMUNICATIONS & COMPUTING,REVENUE
Walsall Council,http://opendatacommunities.org/id/metropolitan-district-council/walsall,WC122-710,31.01.2021,ADULT SOCIAL CARE,ASH GRANGE CARE HOME,15/01/2021,"2,696.00",6541-Nursing EMI,THIRD PARTY PAYMENTS,PRIVATE CONTRACTOR,REVENUE
Walsall Council,http://opendatacommunities.org/id/metropolitan-district-council/walsall,WC122-711,31.01.2021,ADULT SOCIAL CARE,ASH GRANGE CARE HOME,15/01/2021,"2,396.00",6541-Nursing,THIRD PARTY PAYMENTS,PRIVATE CONTRACTOR,REVENUE
Walsall Council,http://opendatacommunities.org/id/metropolitan-district-council/walsall,WC122-712,31.01.2021,ADULT SOCIAL CARE,ASH GRANGE CARE HOME,15/01/2021,"2,696.00",6541-Nursing EMI,THIRD PARTY PAYMENTS,PRIVATE CONTRACTOR,REVENUE
Walsall Council,http://opendatacommunities.org/id/metropolitan-district-council/walsall,WC122-713,31.01.2021,ADULT SOCIAL CARE,ASH GRANGE CARE HOME,15/01/2021,"2,581.16",6541-Residential,THIRD PARTY PAYMENTS,PRIVATE CONTRACTOR,REVENUE
Walsall Council,http://opendatacommunities.org/id/metropolitan-district-council/walsall,WC122-714,31.01.2021,ADULT SOCIAL CARE,ASH GRANGE CARE HOME,15/01/2021,"2,396.00",6541-Nursing,THIRD PARTY PAYMENTS,PRIVATE CONTRACTOR,REVENUE
Walsall Council,http://opendatacommunities.org/id/metropolitan-district-council/walsall,WC122-715,31.01.2021,ADULT SOCIAL CARE,ASH GRANGE CARE HOME,15/01/2021,"2,423.72",6541-Nursing,THIRD PARTY PAYMENTS,PRIVATE CONTRACTOR,REVENUE
Walsall Council,http://opendatacommunities.org/id/metropolitan-district-council/walsall,WC122-716,31.01.2021,ADULT SOCIAL CARE,ASH GRANGE CARE HOME,15/01/2021,"2,696.00",6541-Nursing EMI,THIRD PARTY PAYMENTS,PRIVATE CONTRACTOR,REVENUE
Walsall Council,http://opendatacommunities.org/id/metropolitan-district-council/walsall,WC122-717,31.01.2021,ADULT SOCIAL CARE,ASH GRANGE CARE HOME,15/01/2021,"2,396.00",6541-Nursing,THIRD PARTY PAYMENTS,PRIVATE CONTRACTOR,REVENUE
Walsall Council,http://opendatacommunities.org/id/metropolitan-district-council/walsall,WC122-718,31.01.2021,ADULT SOCIAL CARE,ASH GRANGE CARE HOME,15/01/2021,"2,396.00",6541-Nursing,THIRD PARTY PAYMENTS,PRIVATE CONTRACTOR,REVENUE
Walsall Council,http://opendatacommunities.org/id/metropolitan-district-council/walsall,WC122-719,31.01.2021,ADULT SOCIAL CARE,ASH GRANGE CARE HOME,15/01/2021,"2,044.00",6541-Residential,THIRD PARTY PAYMENTS,PRIVATE CONTRACTOR,REVENUE
Walsall Council,http://opendatacommunities.org/id/metropolitan-district-council/walsall,WC122-720,31.01.2021,ADULT SOCIAL CARE,ASH GRANGE CARE HOME,15/01/2021,"2,796.00",6541-Nursing,THIRD PARTY PAYMENTS,PRIVATE CONTRACTOR,REVENUE
Walsall Council,http://opendatacommunities.org/id/metropolitan-district-council/walsall,WC122-721,31.01.2021,ADULT SOCIAL CARE,ASH GRANGE CARE HOME,15/01/2021,"-11,657.14",6541-Residential,THIRD PARTY PAYMENTS,PRIVATE CONTRACTOR,REVENUE
Walsall Council,http://opendatacommunities.org/id/metropolitan-district-council/walsall,WC122-722,31.01.2021,ADULT SOCIAL CARE,ASH GRANGE CARE HOME,15/01/2021,"2,044.00",6541-Residential,THIRD PARTY PAYMENTS,PRIVATE CONTRACTOR,REVENUE
Walsall Council,http://opendatacommunities.org/id/metropolitan-district-council/walsall,WC122-723,31.01.2021,ADULT SOCIAL CARE,ASH GRANGE CARE HOME,15/01/2021,"2,396.00",6541-Nursing,THIRD PARTY PAYMENTS,PRIVATE CONTRACTOR,REVENUE
Walsall Council,http://opendatacommunities.org/id/metropolitan-district-council/walsall,WC122-724,31.01.2021,ADULT SOCIAL CARE,ASH GRANGE CARE HOME,15/01/2021,"2,396.00",6541-Nursing,THIRD PARTY PAYMENTS,PRIVATE CONTRACTOR,REVENUE
Walsall Council,http://opendatacommunities.org/id/metropolitan-district-council/walsall,WC122-725,31.01.2021,ADULT SOCIAL CARE,ASH GRANGE CARE HOME,15/01/2021,"2,396.00",6541-Nursing,THIRD PARTY PAYMENTS,PRIVATE CONTRACTOR,REVENUE
Walsall Council,http://opendatacommunities.org/id/metropolitan-district-council/walsall,WC122-726,31.01.2021,ADULT SOCIAL CARE,ASH GRANGE CARE HOME,15/01/2021,"2,396.00",6541-Nursing,THIRD PARTY PAYMENTS,PRIVATE CONTRACTOR,REVENUE
Walsall Council,http://opendatacommunities.org/id/metropolitan-district-council/walsall,WC122-727,31.01.2021,ADULT SOCIAL CARE,ASH GRANGE CARE HOME,15/01/2021,"2,396.00",6541-Nursing,THIRD PARTY PAYMENTS,PRIVATE CONTRACTOR,REVENUE
Walsall Council,http://opendatacommunities.org/id/metropolitan-district-council/walsall,WC122-728,31.01.2021,ADULT SOCIAL CARE,ASH GRANGE CARE HOME,15/01/2021,"2,396.00",6541-Nursing,THIRD PARTY PAYMENTS,PRIVATE CONTRACTOR,REVENUE
Walsall Council,http://opendatacommunities.org/id/metropolitan-district-council/walsall,WC122-729,31.01.2021,ADULT SOCIAL CARE,ASH GRANGE CARE HOME,15/01/2021,"2,396.00",6541-Nursing,THIRD PARTY PAYMENTS,PRIVATE CONTRACTOR,REVENUE
Walsall Council,http://opendatacommunities.org/id/metropolitan-district-council/walsall,WC122-730,31.01.2021,ADULT SOCIAL CARE,ASH GRANGE CARE HOME,15/01/2021,"2,396.00",6541-Nursing,THIRD PARTY PAYMENTS,PRIVATE CONTRACTOR,REVENUE
Walsall Council,http://opendatacommunities.org/id/metropolitan-district-council/walsall,WC122-731,31.01.2021,ADULT SOCIAL CARE,ASH GRANGE CARE HOME,15/01/2021,"2,774.96",6541-Nursing,THIRD PARTY PAYMENTS,PRIVATE CONTRACTOR,REVENUE
Walsall Council,http://opendatacommunities.org/id/metropolitan-district-council/walsall,WC122-732,31.01.2021,ADULT SOCIAL CARE,ASH GRANGE CARE HOME,27/01/2021,428.57,6554-Professional Services-Priv Contractor & Other Agencies,THIRD PARTY PAYMENTS,PRIVATE CONTRACTOR,REVENUE
Walsall Council,http://opendatacommunities.org/id/metropolitan-district-council/walsall,WC122-733,31.01.2021,ADULT SOCIAL CARE,REDACTED,06/01/2021,"1,423.64",6541-Direct Payment,THIRD PARTY PAYMENTS,PRIVATE CONTRACTOR,REVENUE
Walsall Council,http://opendatacommunities.org/id/metropolitan-district-council/walsall,WC122-734,31.01.2021,ECONOMY & ENVIRONMENT,ASKEWS AND HOLTS LIBRARY SERVICES LTD,06/01/2021,"4,744.10",6414-Library Books,SUPPLIES & SERVICES,EQUIPMENT FURNITURE & MATERIALS,REVENUE
Walsall Council,http://opendatacommunities.org/id/metropolitan-district-council/walsall,WC122-735,31.01.2021,ADULT SOCIAL CARE,REDACTED,06/01/2021,743.24,6541-Direct Payment,THIRD PARTY PAYMENTS,PRIVATE CONTRACTOR,REVENUE
Walsall Council,http://opendatacommunities.org/id/metropolitan-district-council/walsall,WC122-736,31.01.2021,ADULT SOCIAL CARE,ASPECTS CARE LTD,13/01/2021,302.26,6541-Community Supported Living/Supported Accommodation,THIRD PARTY PAYMENTS,PRIVATE CONTRACTOR,REVENUE
Walsall Council,http://opendatacommunities.org/id/metropolitan-district-council/walsall,WC122-737,31.01.2021,ADULT SOCIAL CARE,ASPECTS CARE LTD,13/01/2021,503.32,6541-Community Supported Living/Supported Accommodation,THIRD PARTY PAYMENTS,PRIVATE CONTRACTOR,REVENUE
Walsall Council,http://opendatacommunities.org/id/metropolitan-district-council/walsall,WC122-738,31.01.2021,ADULT SOCIAL CARE,ASPECTS CARE LTD,13/01/2021,327.21,6541-Community Supported Living/Supported Accommodation,THIRD PARTY PAYMENTS,PRIVATE CONTRACTOR,REVENUE
Walsall Council,http://opendatacommunities.org/id/metropolitan-district-council/walsall,WC122-739,31.01.2021,ADULT SOCIAL CARE,ASPECTS CARE LTD,13/01/2021,345.40,6541-Community Supported Living/Supported Accommodation,THIRD PARTY PAYMENTS,PRIVATE CONTRACTOR,REVENUE
Walsall Council,http://opendatacommunities.org/id/metropolitan-district-council/walsall,WC122-740,31.01.2021,ADULT SOCIAL CARE,ASPECTS CARE LTD,13/01/2021,417.04,6541-Community Supported Living/Supported Accommodation,THIRD PARTY PAYMENTS,PRIVATE CONTRACTOR,REVENUE
Walsall Council,http://opendatacommunities.org/id/metropolitan-district-council/walsall,WC122-741,31.01.2021,ADULT SOCIAL CARE,ASPECTS CARE LTD,13/01/2021,503.44,6541-Community Supported Living/Supported Accommodation,THIRD PARTY PAYMENTS,PRIVATE CONTRACTOR,REVENUE
Walsall Council,http://opendatacommunities.org/id/metropolitan-district-council/walsall,WC122-742,31.01.2021,ADULT SOCIAL CARE,ASPECTS CARE LTD,13/01/2021,503.44,6541-Community Supported Living/Supported Accommodation,THIRD PARTY PAYMENTS,PRIVATE CONTRACTOR,REVENUE
Walsall Council,http://opendatacommunities.org/id/metropolitan-district-council/walsall,WC122-743,31.01.2021,ADULT SOCIAL CARE,ASPECTS CARE LTD,13/01/2021,791.04,6541-Community Supported Living/Supported Accommodation,THIRD PARTY PAYMENTS,PRIVATE CONTRACTOR,REVENUE
Walsall Council,http://opendatacommunities.org/id/metropolitan-district-council/walsall,WC122-744,31.01.2021,ADULT SOCIAL CARE,ASPECTS CARE LTD,13/01/2021,316.36,6541-Community Supported Living/Supported Accommodation,THIRD PARTY PAYMENTS,PRIVATE CONTRACTOR,REVENUE
Walsall Council,http://opendatacommunities.org/id/metropolitan-district-council/walsall,WC122-745,31.01.2021,ADULT SOCIAL CARE,ASPECTS CARE LTD,13/01/2021,"1,078.64",6541-Community Supported Living/Supported Accommodation,THIRD PARTY PAYMENTS,PRIVATE CONTRACTOR,REVENUE
Walsall Council,http://opendatacommunities.org/id/metropolitan-district-council/walsall,WC122-746,31.01.2021,ADULT SOCIAL CARE,ASPECTS CARE LTD,13/01/2021,517.68,6541-Community Supported Living/Supported Accommodation,THIRD PARTY PAYMENTS,PRIVATE CONTRACTOR,REVENUE
Walsall Council,http://opendatacommunities.org/id/metropolitan-district-council/walsall,WC122-747,31.01.2021,ADULT SOCIAL CARE,ASPECTS CARE LTD,13/01/2021,488.92,6541-Community Supported Living/Supported Accommodation,THIRD PARTY PAYMENTS,PRIVATE CONTRACTOR,REVENUE
Walsall Council,http://opendatacommunities.org/id/metropolitan-district-council/walsall,WC122-748,31.01.2021,ADULT SOCIAL CARE,ASPECTS CARE LTD,13/01/2021,560.96,6541-Community Supported Living/Supported Accommodation,THIRD PARTY PAYMENTS,PRIVATE CONTRACTOR,REVENUE
Walsall Council,http://opendatacommunities.org/id/metropolitan-district-council/walsall,WC122-749,31.01.2021,ADULT SOCIAL CARE,ASPECTS CARE LTD,13/01/2021,517.68,6541-Community Supported Living/Supported Accommodation,THIRD PARTY PAYMENTS,PRIVATE CONTRACTOR,REVENUE
Walsall Council,http://opendatacommunities.org/id/metropolitan-district-council/walsall,WC122-750,31.01.2021,ADULT SOCIAL CARE,ASPECTS CARE LTD,13/01/2021,460.44,6541-Community Supported Living/Supported Accommodation,THIRD PARTY PAYMENTS,PRIVATE CONTRACTOR,REVENUE
Walsall Council,http://opendatacommunities.org/id/metropolitan-district-council/walsall,WC122-751,31.01.2021,ADULT SOCIAL CARE,ASPECTS CARE LTD,13/01/2021,791.04,6541-Community Supported Living/Supported Accommodation,THIRD PARTY PAYMENTS,PRIVATE CONTRACTOR,REVENUE
Walsall Council,http://opendatacommunities.org/id/metropolitan-district-council/walsall,WC122-752,31.01.2021,RESOURCES AND TRANSFORMATION,ASTECH CONSULTANTS LTD,11/01/2021,"2,500.00",6610-Computer Equipment,SUPPLIES & SERVICES,COMMUNICATIONS & COMPUTING,REVENUE
Walsall Council,http://opendatacommunities.org/id/metropolitan-district-council/walsall,WC122-753,31.01.2021,RESOURCES AND TRANSFORMATION,ASTUN TECHNOLOGY LIMITED,14/01/2021,"1,275.00",6623-Computer Equipment,SUPPLIES & SERVICES,COMMUNICATIONS & COMPUTING,REVENUE
Walsall Council,http://opendatacommunities.org/id/metropolitan-district-council/walsall,WC122-754,31.01.2021,CHILDRENS,REDACTED,26/01/2021,635.88,6222-Transfer Payments - Social Services Clients,TRANSFER PAYMENTS,ADULT SOCIAL SERVICES CLIENT,REVENUE
Walsall Council,http://opendatacommunities.org/id/metropolitan-district-council/walsall,WC122-755,31.01.2021,RESOURCES AND TRANSFORMATION,ATKINS LIMITED,04/01/2021,"-8,316.38",6313-Professional Services-Priv Contractor & Other Agencies,THIRD PARTY PAYMENTS,PRIVATE CONTRACTOR,REVENUE
Walsall Council,http://opendatacommunities.org/id/metropolitan-district-council/walsall,WC122-756,31.01.2021,RESOURCES AND TRANSFORMATION,ATKINS LIMITED,04/01/2021,"8,316.38",6313-Professional Services-Priv Contractor & Other Agencies,THIRD PARTY PAYMENTS,PRIVATE CONTRACTOR,REVENUE
Walsall Council,http://opendatacommunities.org/id/metropolitan-district-council/walsall,WC122-757,31.01.2021,ECONOMY & ENVIRONMENT,ATKINS LIMITED,26/01/2021,250.00,6411-Professional Services-Priv Contractor & Other Agencies,THIRD PARTY PAYMENTS,PRIVATE CONTRACTOR,REVENUE
Walsall Council,http://opendatacommunities.org/id/metropolitan-district-council/walsall,WC122-758,31.01.2021,ADULT SOCIAL CARE,AURORA GRAPHICS & DISPLAYS LTD,04/01/2021,"1,998.00",6623-Outwork Print & Design,SUPPLIES & SERVICES,PRINTING STATIONERY & GENERAL OFFICE,REVENUE
Walsall Council,http://opendatacommunities.org/id/metropolitan-district-council/walsall,WC122-759,31.01.2021,ADULT SOCIAL CARE,AURORA GRAPHICS & DISPLAYS LTD,04/01/2021,297.48,6623-Outwork Print & Design,SUPPLIES & SERVICES,PRINTING STATIONERY & GENERAL OFFICE,REVENUE
Walsall Council,http://opendatacommunities.org/id/metropolitan-district-council/walsall,WC122-760,31.01.2021,ADULT SOCIAL CARE,AURORA GRAPHICS & DISPLAYS LTD,04/01/2021,306.40,6623-Outwork Print & Design,SUPPLIES & SERVICES,PRINTING STATIONERY & GENERAL OFFICE,REVENUE
Walsall Council,http://opendatacommunities.org/id/metropolitan-district-council/walsall,WC122-761,31.01.2021,ADULT SOCIAL CARE,AURORA GRAPHICS & DISPLAYS LTD,12/01/2021,495.00,6623-Outwork Print & Design,SUPPLIES & SERVICES,PRINTING STATIONERY & GENERAL OFFICE,REVENUE
Walsall Council,http://opendatacommunities.org/id/metropolitan-district-council/walsall,WC122-762,31.01.2021,ADULT SOCIAL CARE,AURORA GRAPHICS & DISPLAYS LTD,21/01/2021,630.00,6623-Outwork Print & Design,SUPPLIES & SERVICES,PRINTING STATIONERY & GENERAL OFFICE,REVENUE
Walsall Council,http://opendatacommunities.org/id/metropolitan-district-council/walsall,WC122-763,31.01.2021,ADULT SOCIAL CARE,AURORA GRAPHICS & DISPLAYS LTD,21/01/2021,360.00,6623-Outwork Print & Design,SUPPLIES & SERVICES,PRINTING STATIONERY & GENERAL OFFICE,REVENUE
Walsall Council,http://opendatacommunities.org/id/metropolitan-district-council/walsall,WC122-764,31.01.2021,ADULT SOCIAL CARE,AURORA GRAPHICS & DISPLAYS LTD,21/01/2021,480.00,6623-Outwork Print & Design,SUPPLIES & SERVICES,PRINTING STATIONERY & GENERAL OFFICE,REVENUE
Walsall Council,http://opendatacommunities.org/id/metropolitan-district-council/walsall,WC122-765,31.01.2021,ADULT SOCIAL CARE,AURORA GRAPHICS & DISPLAYS LTD,21/01/2021,283.50,6623-Outwork Print & Design,SUPPLIES & SERVICES,PRINTING STATIONERY & GENERAL OFFICE,REVENUE
Walsall Council,http://opendatacommunities.org/id/metropolitan-district-council/walsall,WC122-766,31.01.2021,ADULT SOCIAL CARE,AURORA GRAPHICS & DISPLAYS LTD,21/01/2021,"1,086.00",6623-Outwork Print & Design,SUPPLIES & SERVICES,PRINTING STATIONERY & GENERAL OFFICE,REVENUE
Walsall Council,http://opendatacommunities.org/id/metropolitan-district-council/walsall,WC122-767,31.01.2021,ADULT SOCIAL CARE,AUTISM WEST MIDLANDS,15/01/2021,"7,344.60",6541-Residential,THIRD PARTY PAYMENTS,PRIVATE CONTRACTOR,REVENUE
Walsall Council,http://opendatacommunities.org/id/metropolitan-district-council/walsall,WC122-768,31.01.2021,ADULT SOCIAL CARE,AUTISM WEST MIDLANDS,15/01/2021,"5,675.88",6541-Residential,THIRD PARTY PAYMENTS,PRIVATE CONTRACTOR,REVENUE
Walsall Council,http://opendatacommunities.org/id/metropolitan-district-council/walsall,WC122-769,31.01.2021,ECONOMY & ENVIRONMENT,AUTO EXTRACT SYSTEMS LTD,22/01/2021,720.00,6410-Professional Services-Priv Contractor & Other Agencies,THIRD PARTY PAYMENTS,PRIVATE CONTRACTOR,REVENUE
Walsall Council,http://opendatacommunities.org/id/metropolitan-district-council/walsall,WC122-770,31.01.2021,ECONOMY & ENVIRONMENT,AUTORITE INDUSTRIES (WILLENHALL)LTD,13/01/2021,-270.00,6440-Professional Services-Priv Contractor & Other Agencies,THIRD PARTY PAYMENTS,PRIVATE CONTRACTOR,REVENUE
Walsall Council,http://opendatacommunities.org/id/metropolitan-district-council/walsall,WC122-771,31.01.2021,ECONOMY & ENVIRONMENT,AUTORITE INDUSTRIES (WILLENHALL)LTD,13/01/2021,270.00,6440-Professional Services-Priv Contractor & Other Agencies,THIRD PARTY PAYMENTS,PRIVATE CONTRACTOR,REVENUE
Walsall Council,http://opendatacommunities.org/id/metropolitan-district-council/walsall,WC122-772,31.01.2021,ECONOMY & ENVIRONMENT,AUTORITE INDUSTRIES (WILLENHALL)LTD,13/01/2021,270.00,6440-Professional Fees & Services,SUPPLIES & SERVICES,SERVICES,REVENUE
Walsall Council,http://opendatacommunities.org/id/metropolitan-district-council/walsall,WC122-773,31.01.2021,ADULT SOCIAL CARE,AVERY HOMES NELSON LIMITED,15/01/2021,"2,044.00",6541-Residential,THIRD PARTY PAYMENTS,PRIVATE CONTRACTOR,REVENUE
Walsall Council,http://opendatacommunities.org/id/metropolitan-district-council/walsall,WC122-774,31.01.2021,ADULT SOCIAL CARE,AVERY HOMES NELSON LIMITED,15/01/2021,"2,044.00",6541-Residential,THIRD PARTY PAYMENTS,PRIVATE CONTRACTOR,REVENUE
Walsall Council,http://opendatacommunities.org/id/metropolitan-district-council/walsall,WC122-775,31.01.2021,ADULT SOCIAL CARE,REDACTED,06/01/2021,"3,360.40",6541-Direct Payment,THIRD PARTY PAYMENTS,PRIVATE CONTRACTOR,REVENUE
Walsall Council,http://opendatacommunities.org/id/metropolitan-district-council/walsall,WC122-776,31.01.2021,RESOURCES AND TRANSFORMATION,BAART HARRIES NEWALL,29/01/2021,"2,800.00",7300-Site Works Contractors,CAPITAL,"NEW CONSTRUCTION,CONVERSION & RENOVATION",REVENUE
Walsall Council,http://opendatacommunities.org/id/metropolitan-district-council/walsall,WC122-777,31.01.2021,CHILDRENS,BABINGTON GROUP,22/01/2021,"5,118.00",6314-External Training,INDIRECT EMPLOYEES,EXTERNAL TRAINING,REVENUE
Walsall Council,http://opendatacommunities.org/id/metropolitan-district-council/walsall,WC122-778,31.01.2021,CHILDRENS,BACK CARE SOLUTIONS LTD,15/01/2021,647.00,6211-Repair & Maintenance of Furniture & Equipment,SUPPLIES & SERVICES,EQUIPMENT FURNITURE & MATERIALS,REVENUE
Walsall Council,http://opendatacommunities.org/id/metropolitan-district-council/walsall,WC122-779,31.01.2021,ECONOMY & ENVIRONMENT,BAKER HALL PARTNERSHIP,13/01/2021,"1,346.00",6413-Professional Fees & Services,SUPPLIES & SERVICES,SERVICES,REVENUE
Walsall Council,http://opendatacommunities.org/id/metropolitan-district-council/walsall,WC122-780,31.01.2021,ADULT SOCIAL CARE,REDACTED,06/01/2021,372.00,6541-Direct Payment,THIRD PARTY PAYMENTS,PRIVATE CONTRACTOR,REVENUE
Walsall Council,http://opendatacommunities.org/id/metropolitan-district-council/walsall,WC122-781,31.01.2021,ADULT SOCIAL CARE,REDACTED,06/01/2021,"3,771.16",6541-Direct Payment,THIRD PARTY PAYMENTS,PRIVATE CONTRACTOR,REVENUE
Walsall Council,http://opendatacommunities.org/id/metropolitan-district-council/walsall,WC122-782,31.01.2021,CHILDRENS,BALTIMORE CONSULTING LTD,13/01/2021,"1,550.00",6241-Professional Fees & Services,SUPPLIES & SERVICES,SERVICES,REVENUE
Walsall Council,http://opendatacommunities.org/id/metropolitan-district-council/walsall,WC122-783,31.01.2021,CHILDRENS,BALTIMORE CONSULTING LTD,28/01/2021,930.00,6241-Professional Fees & Services,SUPPLIES & SERVICES,SERVICES,REVENUE
Walsall Council,http://opendatacommunities.org/id/metropolitan-district-council/walsall,WC122-784,31.01.2021,CHILDRENS,BALTIMORE CONSULTING LTD,21/01/2021,"1,550.00",6241-Professional Fees & Services,SUPPLIES & SERVICES,SERVICES,REVENUE
Walsall Council,http://opendatacommunities.org/id/metropolitan-district-council/walsall,WC122-785,31.01.2021,CHILDRENS,BANYA FAMILY PLACEMENT AGENCY LTD,22/01/2021,"4,588.60",6223-Independent Foster Care-Oth Agency Provision,THIRD PARTY PAYMENTS,PRIVATE CONTRACTOR,REVENUE
Walsall Council,http://opendatacommunities.org/id/metropolitan-district-council/walsall,WC122-786,31.01.2021,CHILDRENS,REDACTED,08/01/2021,600.00,6223-Foster Carers Maintenance Allowance,TRANSFER PAYMENTS,CHILDREN SOCIAL SERVICES CLIENT,REVENUE
Walsall Council,http://opendatacommunities.org/id/metropolitan-district-council/walsall,WC122-787,31.01.2021,CHILDRENS,REDACTED,08/01/2021,340.00,6223-Internal Foster Carers-Carer Fees,TRANSFER PAYMENTS,CHILDREN SOCIAL SERVICES CLIENT,REVENUE
Walsall Council,http://opendatacommunities.org/id/metropolitan-district-council/walsall,WC122-788,31.01.2021,CHILDRENS,BARR BEACON SCHOOL TRUST,22/01/2021,"17,358.24",1220-Top Up Funding -Grants to Schools,SUPPLIES & SERVICES,GRANTS (EXP) & SUBSCRIPTIONS,REVENUE
Walsall Council,http://opendatacommunities.org/id/metropolitan-district-council/walsall,WC122-789,31.01.2021,ECONOMY & ENVIRONMENT,BAT FABRICATIONS LTD,22/01/2021,460.00,6410-Materials,SUPPLIES & SERVICES,EQUIPMENT FURNITURE & MATERIALS,REVENUE
Walsall Council,http://opendatacommunities.org/id/metropolitan-district-council/walsall,WC122-790,31.01.2021,ADULT SOCIAL CARE,BAUER CORPORATE SERVICES - BAUER RADIO LTD,19/01/2021,"5,483.14",6420-Consultant Fees,SUPPLIES & SERVICES,SERVICES,REVENUE
Walsall Council,http://opendatacommunities.org/id/metropolitan-district-council/walsall,WC122-791,31.01.2021,ADULT SOCIAL CARE,BAUER CORPORATE SERVICES - BAUER RADIO LTD,29/01/2021,"4,710.34",6420-Consultant Fees,SUPPLIES & SERVICES,SERVICES,REVENUE
Walsall Council,http://opendatacommunities.org/id/metropolitan-district-council/walsall,WC122-792,31.01.2021,CHILDRENS,BEACON CHILDCARE LTD,22/01/2021,"12,200.00",6223-External Residential Care-Oth Agency Provision,THIRD PARTY PAYMENTS,PRIVATE CONTRACTOR,REVENUE
Walsall Council,http://opendatacommunities.org/id/metropolitan-district-council/walsall,WC122-793,31.01.2021,CHILDRENS CAPITAL,BEADEN POWERLEC LIMITED,15/01/2021,630.00,7155-Site Works Contractors,CAPITAL,"NEW CONSTRUCTION,CONVERSION & RENOVATION",REVENUE
Walsall Council,http://opendatacommunities.org/id/metropolitan-district-council/walsall,WC122-794,31.01.2021,CHILDRENS,BECKIE'S CHILDMINDING,04/01/2021,"1,316.70",1184-Other-Grants to Other Orgs,SUPPLIES & SERVICES,GRANTS (EXP) & SUBSCRIPTIONS,REVENUE
Walsall Council,http://opendatacommunities.org/id/metropolitan-district-council/walsall,WC122-795,31.01.2021,CHILDRENS,BECKYS CHILDMINDING SERVICE,04/01/2021,"1,316.70",1184-Other-Grants to Other Orgs,SUPPLIES & SERVICES,GRANTS (EXP) & SUBSCRIPTIONS,REVENUE
Walsall Council,http://opendatacommunities.org/id/metropolitan-district-council/walsall,WC122-796,31.01.2021,CHILDRENS,BECKYS CHILDMINDING SERVICE,04/01/2021,"1,644.64",1184-Other-Grants to Other Orgs,SUPPLIES & SERVICES,GRANTS (EXP) & SUBSCRIPTIONS,REVENUE
Walsall Council,http://opendatacommunities.org/id/metropolitan-district-council/walsall,WC122-797,31.01.2021,ADULT SOCIAL CARE,BELVIDERE COURT,15/01/2021,"2,396.00",6541-Nursing,THIRD PARTY PAYMENTS,PRIVATE CONTRACTOR,REVENUE
Walsall Council,http://opendatacommunities.org/id/metropolitan-district-council/walsall,WC122-798,31.01.2021,ADULT SOCIAL CARE,BELVIDERE COURT,15/01/2021,"2,867.20",6541-Residential,THIRD PARTY PAYMENTS,PRIVATE CONTRACTOR,REVENUE
Walsall Council,http://opendatacommunities.org/id/metropolitan-district-council/walsall,WC122-799,31.01.2021,ADULT SOCIAL CARE,BELVIDERE COURT,18/01/2021,"2,652.71",6554-Professional Services-Priv Contractor & Other Agencies,THIRD PARTY PAYMENTS,PRIVATE CONTRACTOR,REVENUE
Walsall Council,http://opendatacommunities.org/id/metropolitan-district-council/walsall,WC122-800,31.01.2021,ADULT SOCIAL CARE,BELVIDERE COURT,18/01/2021,814.50,6554-Professional Services-Priv Contractor & Other Agencies,THIRD PARTY PAYMENTS,PRIVATE CONTRACTOR,REVENUE
Walsall Council,http://opendatacommunities.org/id/metropolitan-district-council/walsall,WC122-801,31.01.2021,ADULT SOCIAL CARE,BENEDON HEALTHCARE LTD,13/01/2021,"1,381.44",6541-Community Supported Living/Supported Accommodation,THIRD PARTY PAYMENTS,PRIVATE CONTRACTOR,REVENUE
Walsall Council,http://opendatacommunities.org/id/metropolitan-district-council/walsall,WC122-802,31.01.2021,ADULT SOCIAL CARE,BENEDON HEALTHCARE LTD,13/01/2021,"4,381.77",6541-Community Supported Living/Supported Accommodation,THIRD PARTY PAYMENTS,PRIVATE CONTRACTOR,REVENUE
Walsall Council,http://opendatacommunities.org/id/metropolitan-district-council/walsall,WC122-803,31.01.2021,ADULT SOCIAL CARE,REDACTED,06/01/2021,"2,689.32",6541-Direct Payment,THIRD PARTY PAYMENTS,PRIVATE CONTRACTOR,REVENUE
Walsall Council,http://opendatacommunities.org/id/metropolitan-district-council/walsall,WC122-804,31.01.2021,ADULT SOCIAL CARE,BENTLEY COURT PRIORY,15/01/2021,"2,696.00",6541-Nursing EMI,THIRD PARTY PAYMENTS,PRIVATE CONTRACTOR,REVENUE
Walsall Council,http://opendatacommunities.org/id/metropolitan-district-council/walsall,WC122-805,31.01.2021,ADULT SOCIAL CARE,BENTLEY COURT PRIORY,15/01/2021,"2,696.00",6541-Nursing EMI,THIRD PARTY PAYMENTS,PRIVATE CONTRACTOR,REVENUE
Walsall Council,http://opendatacommunities.org/id/metropolitan-district-council/walsall,WC122-806,31.01.2021,ADULT SOCIAL CARE,BENTLEY COURT PRIORY,15/01/2021,"2,396.00",6541-Nursing,THIRD PARTY PAYMENTS,PRIVATE CONTRACTOR,REVENUE
Walsall Council,http://opendatacommunities.org/id/metropolitan-district-council/walsall,WC122-807,31.01.2021,ADULT SOCIAL CARE,BENTLEY COURT PRIORY,15/01/2021,"2,396.00",6541-Nursing,THIRD PARTY PAYMENTS,PRIVATE CONTRACTOR,REVENUE
Walsall Council,http://opendatacommunities.org/id/metropolitan-district-council/walsall,WC122-808,31.01.2021,ADULT SOCIAL CARE,BENTLEY COURT PRIORY,15/01/2021,"2,696.00",6541-Nursing EMI,THIRD PARTY PAYMENTS,PRIVATE CONTRACTOR,REVENUE
